Workbook

Sheet Notes
B1: Impact of Spring Price Endorsement (SPE) Estimate Worksheet
K2: =CropYear -> 2020
J3: Crop Year

Sheet Dryland Crop
B1: =Title & " - Dry Crop" -> Impact of Spring Price Endorsement (SPE) Estimate Worksheet - Dry Crop | N1: VOLUME_MEASURE_UID
B3: Complete the colored boxes to compare specific examples. | N3: 1 | O3: Bushel
N4: 1923 | O4: Pound
B5: Dryland Stubble | D5: Crop Only | F5: Crop Insurance with SPE option
B6: Unit of Measure that is applicable | F6: Comparison | L6: AG_PROD_USE_Conversion
B7: Crop | F7: =IF(ISBLANK(D7),"",D7) ->  | G7: =IF(ISBLANK(D7),"",D7) ->  | H7: =IF(ISBLANK(D7),"",D7) ->  | I7: =IF(ISBLANK(D7),"",D7) ->  | L7: =(VLOOKUP(D7,Ag_to_volume,4,FALSE)) -> 
D8: =IF(L7=N3,L9&" "&O3,L9&" "&O4) -> 
B9: Spring Insurance Price | D9: =IF(ISBLANK(D7),0,(HLOOKUP(D7,DryCropNormals,4,FALSE)*1)) -> 0 | F9: =IF(ISBLANK(D7),0,HLOOKUP(F7,DryCropNormals,4,FALSE)*1) -> 0 | G9: =IF(ISBLANK(D7),0,HLOOKUP(G7,DryCropNormals,4,FALSE)*1) -> 0 | H9: =IF(ISBLANK(D7),0,HLOOKUP(H7,DryCropNormals,4,FALSE)*1) -> 0 | I9: =IF(ISBLANK(D7),0,HLOOKUP(I7,DryCropNormals,4,FALSE)*1) -> 0 | L9: Price expressed in $ per
B10: Fall Market Price
B11: Risk Area | F11: =IF(ISBLANK(D11),"",$D$11) ->  | G11: =IF(ISBLANK(D11),"",$D$11) ->  | H11: =IF(ISBLANK(D11),"",$D$11) ->  | I11: =IF(ISBLANK(D11),"",$D$11) -> 
B12: Coverage Level | F12: =IF(ISBLANK(D12),"",$D$12) ->  | G12: =IF(ISBLANK(D12),"",$D$12) ->  | H12: =IF(ISBLANK(D12),"",$D$12) ->  | I12: =IF(ISBLANK(D12),"",$D$12) -> 
B13: Individual Normal /ac | F13: =$D$13 -> 0 | G13: =$D$13 -> 0 | H13: =$D$13 -> 0 | I13: =$D$13 -> 0
B14: RA Normal Yield /ac | D14: =IF(ISBLANK(D11),0,HLOOKUP(D7,DryCropNormals,D11+4,FALSE)) -> 0 | F14: =D14 -> 0 | G14: =D14 -> 0 | H14: =D14 -> 0 | I14: =D14 -> 0
B15: Acres Insured | F15: =IF(ISBLANK($D$15),"",$D$15) ->  | G15: =IF(ISBLANK($D$15),"",$D$15) ->  | H15: =IF(ISBLANK($D$15),"",$D$15) ->  | I15: =IF(ISBLANK($D$15),"",$D$15) -> 
B16: Final Yield /ac | D16: =IF(D13="",(D14*D12),D13*D12)/100 -> 0 | F16: =$D$16 -> 0 | G16: =$D$16 -> 0 | H16: =$D$16 -> 0 | I16: =$D$16 -> 0
B17: Production Coverage | D17: =IF(ISBLANK(D15),0,(D16*D15)) -> 0 | F17: =D17 -> 0 | G17: =D17 -> 0 | H17: =D17 -> 0 | I17: =D17 -> 0
B19: $ Coverage on Production | D19: =(D17*D9) -> 0 | F19: =F17*F9 -> 0 | G19: =G17*G9 -> 0 | H19: =H17*H9 -> 0 | I19: =I17*I9 -> 0 | K19: Hide here and after
B21: Premium Cost | D21: =IFERROR(VLOOKUP(D46,Dry_Crop_Rate,5,FALSE)*D17*D9*0.01,0) -> 0 | F21: =IFERROR(VLOOKUP(F46,Dry_Crop_Rate,6,FALSE)*F17*F9*0.01,0) -> 0 | G21: =IFERROR(VLOOKUP(G46,Dry_Crop_Rate,6,FALSE)*G17*G9*0.01,0) -> 0 | H21: =IFERROR(VLOOKUP(H46,Dry_Crop_Rate,6,FALSE)*H17*H9*0.01,0) -> 0 | I21: =IFERROR(VLOOKUP(I46,Dry_Crop_Rate,6,FALSE)*I17*I9*0.01,0) -> 0
B23: Fall VPB Price | D23: =IF(D10<(D9*1.1),D9,IF(D10<(D9*1.5),D10,(D9*1.5))) -> 0 | F23: =IF(F10<(F9*1.1),F9,IF(F10<(F9*1.5),F10,(F9*1.5))) -> 0 | G23: =IF(G10<(G9*1.1),G9,IF(G10<(G9*1.5),G10,(G9*1.5))) -> 0 | H23: =IF(H10<(H9*1.1),H9,IF(H10<(H9*1.5),H10,(H9*1.5))) -> 0 | I23: =IF(I10<(I9*1.1),I9,IF(I10<(I9*1.5),I10,(I9*1.5))) -> 0
B24: Fall SPE Price | D24: N/A | F24: =IF(ISBLANK(F10),0,IF(F10>(F9*0.9),F9,IF(F10>(F9*0.5),F10,F9*0.5))) -> 0 | G24: =IF(ISBLANK(G10),0,IF(G10>(G9*0.9),G9,IF(G10>(G9*0.5),G10,G9*0.5))) -> 0 | H24: =IF(ISBLANK(H10),0,IF(H10>(H9*0.9),H9,IF(H10>(H9*0.5),H10,H9*0.5))) -> 0 | I24: =IF(ISBLANK(I10),0,IF(I10>(I9*0.9),I9,IF(I10>(I9*0.5),I10,I9*0.5))) -> 0
B26: Harvested Production
B27: Production Shortfall | D27: =IF(ISBLANK(D26),0,IF(D17-D26<0,0,D17-D26)) -> 0 | F27: =IF(ISBLANK(F26),0,IF(F17-F26<0,0,F17-F26)) -> 0 | G27: =IF(ISBLANK(G26),0,IF(G17-G26<0,0,G17-G26)) -> 0 | H27: =IF(ISBLANK(H26),0,IF(H17-H26<0,0,H17-H26)) -> 0 | I27: =IF(ISBLANK(I26),0,IF(I17-I26<0,0,I17-I26)) -> 0
B29: CI Payment on Shortfall | D29: =D27*D9 -> 0 | F29: =F27*F9 -> 0 | G29: =G27*G9 -> 0 | H29: =H27*H9 -> 0 | I29: =I27*I9 -> 0
B30: VPB Payment on Shortfall | D30: =D27*(D23-D9) -> 0 | F30: =F27*(F23-F9) -> 0 | G30: =G27*(G23-G9) -> 0 | H30: =H27*(H23-H9) -> 0 | I30: =I27*(I23-I9) -> 0
B31: SPE Payment with 10% Deductible | D31: N/A | F31: =IF(F10="",0,IF(F26="",0,IF(F24<F9,((F9*0.9-F24))*MIN(F26,F17),0))) -> 0 | G31: =IF(G10="",0,IF(G26="",0,IF(G24<G9,((G9*0.9-G24))*MIN(G26,G17),0))) -> 0 | H31: =IF(H10="",0,IF(H26="",0,IF(H24<H9,((H9*0.9-H24))*MIN(H26,H17),0))) -> 0 | I31: =IF(I10="",0,IF(I26="",0,IF(I24<I9,((I9*0.9-I24))*MIN(I26,I17),0))) -> 0
B32: Total Payments | D32: =(D29+D30) -> 0 | F32: =(F29+F30+F31) -> 0 | G32: =(G29+G30+G31) -> 0 | H32: =(H29+H30+H31) -> 0 | I32: =(I29+I30+I31) -> 0
B34: Benefit from Insurance | D34: =(D32-D21) -> 0 | F34: =(F32-F21) -> 0 | G34: =(G32-G21) -> 0 | H34: =(H32-H21) -> 0 | I34: =(I32-I21) -> 0
B35: Est Revenue from Market | D35: =MIN(D26,D17)*D10 -> 0 | F35: =MIN(F26,F17)*F10 -> 0 | G35: =MIN(G26,G17)*G10 -> 0 | H35: =MIN(H26,H17)*H10 -> 0 | I35: =MIN(I26,I17)*I10 -> 0
C37: Premium Costs do not include hail endorsement or producer discounts or surcharges.
B39: DISCLAIMER: | C39: The calculations from these worksheets are ESTIMATES. These amounts are not to be used for billing or payment of claims.
A41: Hide here and after
D46: =IF(ISBLANK(D7),"",D11&D7&D12) ->  | F46: =IF(ISBLANK(D7),"",F11&F7&F12) ->  | G46: =IF(ISBLANK(D7),"",G11&G7&G12) ->  | H46: =IF(ISBLANK(D7),"",H11&H7&H12) ->  | I46: =IF(ISBLANK(D7),"",I11&I7&I12) -> 
D47: =VLOOKUP(D46,Dry_Crop_Rate,5,FALSE) ->  | F47: =VLOOKUP(F46,Dry_Crop_Rate,6,FALSE) ->  | G47: =VLOOKUP(G46,Dry_Crop_Rate,6,FALSE) ->  | H47: =VLOOKUP(H46,Dry_Crop_Rate,6,FALSE) ->  | I47: =VLOOKUP(I46,Dry_Crop_Rate,6,FALSE) -> 

Sheet Dryland Silage Greenfeed
B1: =Title & " - Dry Silage/Greenfeed" -> Impact of Spring Price Endorsement (SPE) Estimate Worksheet - Dry Silage/Greenfeed
B3: =Instructions -> Complete the colored boxes to compare specific examples.
B5: Dryland Stubble | D5: Area Based Dry | F5: Area Based Insurance with SPE option
D6: Silage/Greenfeed | F6: Silage/Greenfeed
B7: Crop | F7: =IF(ISBLANK(D7),"",D7) ->  | G7: =IF(ISBLANK(D7),"",D7) ->  | H7: =IF(ISBLANK(D7),"",D7) ->  | I7: =IF(ISBLANK(D7),"",D7) -> 
D8: Price expressed in $ per Bushel
B9: Spring Insurance Price | D9: =IF(ISBLANK(D7),0,LOOKUP(D7,Dry_Silage_Greenfeed_Normals,'Dry Silage Normals (data)'!B3:E3))*1 -> 0 | F9: =IF(ISBLANK(D7),0,LOOKUP(D7,Dry_Silage_Greenfeed_Normals,'Dry Silage Normals (data)'!B3:E3))*1 -> 0 | G9: =IF(ISBLANK(D7),0,LOOKUP(D7,Dry_Silage_Greenfeed_Normals,'Dry Silage Normals (data)'!B3:E3))*1 -> 0 | H9: =IF(ISBLANK(D7),0,LOOKUP(D7,Dry_Silage_Greenfeed_Normals,'Dry Silage Normals (data)'!B3:E3))*1 -> 0 | I9: =IF(ISBLANK(D7),0,LOOKUP(D7,Dry_Silage_Greenfeed_Normals,'Dry Silage Normals (data)'!B3:E3))*1 -> 0
B10: Fall Market Price | J10: 10
B11: Risk Area | F11: =D11 -> 0 | G11: =D11 -> 0 | H11: =D11 -> 0 | I11: =D11 -> 0
B12: Coverage Level | D12: 80 | F12: 80 | G12: 80 | H12: 80 | I12: 80
K13: Hide here and after
B14: Acres Insured | F14: =IF(ISBLANK($D$14),"",$D$14) ->  | G14: =IF(ISBLANK($D$14),"",$D$14) ->  | H14: =IF(ISBLANK($D$14),"",$D$14) ->  | I14: =IF(ISBLANK($D$14),"",$D$14) -> 
B15: RA Normal Yield /ac | D15: =IF(ISBLANK(D11),0,HLOOKUP(D7, Dry_Silage_Normals,D11+2,FALSE)) -> 0 | F15: =D15 -> 0 | G15: =D15 -> 0 | H15: =D15 -> 0 | I15: =D15 -> 0
B16: $ Coverage on Production | D16: =IF(D44=0,0,IF(D7='Dry Silage Normals (data)'!$C$2,D44*D9+D14*50,IF(D7='Dry Silage Normals (data)'!$E$2,D44*D9+D14*50,D44*D9))) -> 0 | F16: =IF(F44=0,0,IF(F7='Dry Silage Normals (data)'!$C$2,F44*F9+F14*50,IF(F7='Dry Silage Normals (data)'!$E$2,F44*F9+F14*50,F44*F9))) -> 0 | G16: =IF(G44=0,0,IF(ISBLANK(D7),0,IF(G7='Dry Silage Normals (data)'!$C$2,G44*G9+G14*50,IF(G7='Dry Silage Normals (data)'!$E$2,G44*G9+G14*50,G44*G9)))) -> 0 | H16: =IF(H44=0,0,(IF(ISBLANK(D7),0,IF(H7='Dry Silage Normals (data)'!$C$2,H44*H9+H14*50,IF(H7='Dry Silage Normals (data)'!$E$2,H44*H9+H14*50,H44*H9))))) -> 0 | I16: =IF(I44=0,0,(IF(ISBLANK(D7),0,IF(I7='Dry Silage Normals (data)'!$C$2,I44*I9+I14*50,IF(I7='Dry Silage Normals (data)'!$E$2,I44*I9+I14*50,I44*I9))))) -> 0
B18: Premium Cost | D18: =IFERROR(VLOOKUP(D49,Dry_Silage_Greenfeed_Rates,5,FALSE)*D16*0.01,0) -> 0 | F18: =IFERROR(VLOOKUP(F49,'Dry Silage Rates (data)'!$A$2:$F$236,6,FALSE)*F16*0.01,0) -> 0 | G18: =IFERROR(VLOOKUP(G49,'Dry Silage Rates (data)'!$A$2:$F$236,6,FALSE)*G16*0.01,0) -> 0 | H18: =IFERROR(VLOOKUP(H49,'Dry Silage Rates (data)'!$A$2:$F$236,6,FALSE)*H16*0.01,0) -> 0 | I18: =IFERROR(VLOOKUP(I49,'Dry Silage Rates (data)'!$A$2:$F$236,6,FALSE)*I16*0.01,0) -> 0
B20: Fall VPB Price | D20: =IF(D10<(D9*1.1),D9,IF(D10<(D9*1.5),D10,(D9*1.5))) -> 0 | F20: =IF(F10<(F9*1.1),F9,IF(F10<(F9*1.5),F10,(F9*1.5))) -> 0 | G20: =IF(G10<(G9*1.1),G9,IF(G10<(G9*1.5),G10,(G9*1.5))) -> 0 | H20: =IF(H10<(H9*1.1),H9,IF(H10<(H9*1.5),H10,(H9*1.5))) -> 0 | I20: =IF(I10<(I9*1.1),I9,IF(I10<(I9*1.5),I10,(I9*1.5))) -> 0
B21: Fall SPE Price | D21: N/A | F21: =IF(F10>(F9*0.9),F9,IF(F10>(F9*0.5),F10,F9*0.5)) -> 0 | G21: =IF(G10>(G9*0.9),G9,IF(G10>(G9*0.5),G10,G9*0.5)) -> 0 | H21: =IF(H10>(H9*0.9),H9,IF(H10>(H9*0.5),H10,H9*0.5)) -> 0 | I21: =IF(I10>(I9*0.9),I9,IF(I10>(I9*0.5),I10,I9*0.5)) -> 0
B23: Harvested Production | K23: The formulas below are necessary to calculate the addition of $50 if the crop is corn
B24: Production Shortfall | D24: =IF(ISBLANK(D23),0,IF(D23>0.999,0,D16-(D16*D23))) -> 0 | F24: =IF(ISBLANK(F23),0,IF(F23>0.999,0,F16-(F16*F23))) -> 0 | G24: =IF(ISBLANK(G23),0,IF(G23>0.999,0,G16-(G16*G23))) -> 0 | H24: =IF(ISBLANK(H23),0,IF(H23>0.999,0,H16-(H16*H23))) -> 0 | I24: =IF(ISBLANK(I23),0,IF(I23>0.999,0,I16-(I16*I23))) -> 0
L25: Dry | M25: SPE | N25: SPE | O25: SPE | P25: SPE
B26: CI Payment on Shortfall | D26: =D24 -> 0 | F26: =F24 -> 0 | G26: =G24 -> 0 | H26: =H24 -> 0 | I26: =I24 -> 0 | L26: =D23 -> 0 | M26: =G23 -> 0 | N26: =H23 -> 0 | O26: =H23 -> 0 | P26: =I23 -> 0
B27: VPB Payment on Shortfall | D27: =D24*(D20-D9) -> 0 | F27: =F24*(F20-F9) -> 0 | G27: =G24*(G20-G9) -> 0 | H27: =H24*(H20-H9) -> 0 | I27: =I24*(I20-I9) -> 0 | K27: =(((D15*D12)/100)*D20)+('Properties (Data)'!$E$8) -> 50 | L27: =$K$27*D14*(1-D23)-D26 -> 0 | M27: =IFERROR($K$28*F14*(1-F23)-F26,0) -> 0 | N27: =IFERROR($K$29*G14*(1-G23)-G26,0) -> 0 | O27: =IFERROR($K$30*H14*(1-H23)-H26,0) -> 0 | P27: =IFERROR($K$31*I14*(1-I23)-I26,0) -> 0
B28: SPE Payment with 10% Deductible | D28: N/A | F28: =IF(F10="",0,IF(F23="",0,IF(F9=0,0,IF(F21<F9,((F9*0.9)-F21))/F9*F16*MIN(F23,1)))) -> 0 | G28: =IF(G10="",0,IF(G23="",0,IF(G9=0,0,IF(G21<G9,((G9*0.9)-G21))/G9*G16*MIN(G23,1)))) -> 0 | H28: =IF(H10="",0,IF(H23="",0,IF(H9=0,0,IF(H21<H9,((H9*0.9)-H21))/H9*H16*MIN(H23,1)))) -> 0 | I28: =IF(I10="",0,IF(I23="",0,IF(I9=0,0,IF(I21<I9,((I9*0.9)-I21))/I9*I16*MIN(I23,1)))) -> 0 | K28: =(((F15*F12)/100)*F20)+('Properties (Data)'!$E$8) -> 50
B29: Total Payments | D29: =SUM(D26:D27) -> 0 | F29: =SUM(F26:F28) -> 0 | G29: =SUM(G26:G28) -> 0 | H29: =SUM(H26:H28) -> 0 | I29: =SUM(I26:I28) -> 0 | K29: =(((G15*G12)/100)*G20)+('Properties (Data)'!E8) -> 50
K30: =(((H15*H12)/100)*H20)+('Properties (Data)'!E8) -> 50
B31: Benefit from Insurance | D31: =SUM(D29-D18) -> 0 | F31: =SUM(F29-F18) -> 0 | G31: =SUM(G29-G18) -> 0 | H31: =SUM(H29-H18) -> 0 | I31: =SUM(I29-I18) -> 0 | K31: =(((I15*I12)/100)*I20)+('Properties (Data)'!E8) -> 50
C34: =Premium_Costs -> Premium Costs do not include hail endorsement or producer discounts or surcharges.
B36: DISCLAIMER: | C36: =Disclaimer -> The calculations from these worksheets are ESTIMATES. These amounts are not to be used for billing or payment of claims.
A38: Hide here and after
B43: newcov | D43: =IF(ISBLANK(D14),0,(D16/D20)) -> 0 | F43: =IF(ISBLANK(D14),0,F16/F20) -> 0 | G43: =IF(ISBLANK(D14),0,(G16/G20)) -> 0 | H43: =IF(ISBLANK(D14),0,(H16/H20)) -> 0 | I43: =IF(ISBLANK(D14),0,(I16/I20)) -> 0
B44: prod cov | D44: =IF(ISBLANK(D14),0,(D15*D12*D14*0.01)) -> 0 | F44: =IF(ISBLANK(D14),0,(F15*F12*F14*0.01)) -> 0 | G44: =IF(ISBLANK(D14),0,(G15*G12*G14*0.01)) -> 0 | H44: =IF(ISBLANK(D14),0,(H15*H12*H14*0.01)) -> 0 | I44: =IF(ISBLANK(D14),0,(I15*I12*I14*0.01)) -> 0
B45: adj prod | D45: =IF(ISBLANK(D23),0,(D44*D23)) -> 0 | F45: =F44*F23 -> 0 | G45: =G44*G23 -> 0 | H45: =H44*H23 -> 0 | I45: =I44*I23 -> 0
B46: shortfall | D46: =IF(D44-D45<0,0,D44-D45) -> 0 | F46: =IF(F44-F45<0,0,F44-F45) -> 0 | G46: =IF(G44-G45<0,0,G44-G45) -> 0 | H46: =IF(H44-H45<0,0,H44-H45) -> 0 | I46: =IF(I44-I45<0,0,I44-I45) -> 0
D48: 3BarleyProxy(Corn)80
D49: =D11&D7&D12 -> 80 | F49: =F11&F7&F12 -> 080 | G49: =G11&G7&G12 -> 080 | H49: =H11&H7&H12 -> 080 | I49: =I11&I7&I12 -> 080
D50: =VLOOKUP(D49,Dry_Silage_Greenfeed_Data,5,FALSE) ->  | F50: =VLOOKUP(D49,Dry_Silage_Greenfeed_Data,6,FALSE) ->  | G50: =VLOOKUP(D49,Dry_Silage_Greenfeed_Data,6,FALSE) ->  | H50: =VLOOKUP(D49,Dry_Silage_Greenfeed_Data,6,FALSE) ->  | I50: =VLOOKUP(D49,Dry_Silage_Greenfeed_Data,6,FALSE) -> 

Sheet Irrigated Crop
B1: =Title & " - Irrigated Crop" -> Impact of Spring Price Endorsement (SPE) Estimate Worksheet - Irrigated Crop | N1: VOLUME_MEASURE_UID
B3: =Instructions -> Complete the colored boxes to compare specific examples. | L3: AG_PROD_USE_Conversion | N3: 1 | O3: Bushel
L4: =VLOOKUP(D7,Irr_Ag_Prod_Volume,4,FALSE) ->  | N4: 1923 | O4: Pound
B5: Irrigated Stubble | D5: Crop Only | F5: Crop Insurance with SPE option
B6: Unit of Measure that is applicable | F6: Comparison | L6: Price expressed in $ per
B7: Crop | F7: =IF(ISBLANK(D7),"",D7) ->  | G7: =IF(ISBLANK(D7),"",D7) ->  | H7: =IF(ISBLANK(D7),"",D7) ->  | I7: =IF(ISBLANK(D7),"",D7) -> 
D8: =IF(L4=N3,L6& " " & O3,L6 & " " & O4) -> 
B9: Spring Insurance Price | D9: =IF(ISBLANK(D7),0,HLOOKUP(D7,'Irr Crop Normals (data)'!C8:AQ11,4,FALSE))*1 -> 0 | F9: =IF(ISBLANK(D7),0,HLOOKUP(D7,'Irr Crop Normals (data)'!C8:AQ11,4,FALSE))*1 -> 0 | G9: =IF(ISBLANK(D7),0,HLOOKUP(D7,'Irr Crop Normals (data)'!C8:AQ11,4,FALSE))*1 -> 0 | H9: =IF(ISBLANK(D7),0,HLOOKUP(D7,'Irr Crop Normals (data)'!C8:AQ11,4,FALSE))*1 -> 0 | I9: =IF(ISBLANK(D7),0,HLOOKUP(D7,'Irr Crop Normals (data)'!C8:AQ11,4,FALSE))*1 -> 0
B10: Fall Market Price
B11: Risk Area | F11: =+$D$11 -> 0 | G11: =+$D$11 -> 0 | H11: =+$D$11 -> 0 | I11: =+$D$11 -> 0
B12: Coverage Level | F12: =+$D$12 -> 0 | G12: =+$D$12 -> 0 | H12: =+$D$12 -> 0 | I12: =+$D$12 -> 0
B13: Individual Normal /ac | F13: =+$D$13 -> 0 | G13: =+$D$13 -> 0 | H13: =+$D$13 -> 0 | I13: =+$D$13 -> 0
B14: RA Normal Yield /ac | D14: =IF(ISBLANK(D11),0,HLOOKUP(D7,Irr_Crop_Normals,D11+4,TRUE)) -> 0 | F14: =$D$14 -> 0 | G14: =$D$14 -> 0 | H14: =$D$14 -> 0 | I14: =$D$14 -> 0
B15: Acres Insured | F15: =$D$15 -> 0 | G15: =$D$15 -> 0 | H15: =$D$15 -> 0 | I15: =$D$15 -> 0
B16: Final Yield /ac | D16: =IF(D13="",(D14*D12),D13*D12)/100 -> 0 | F16: =$D16 -> 0 | G16: 0 | H16: 0 | I16: 0 | K16: Hide here and after
B17: Production Coverage | D17: =IF(ISBLANK(D15),0,(D16*D15)) -> 0 | F17: 0 | G17: 0 | H17: 0 | I17: 0
B19: $ Coverage on Production | D19: =+D17*D9 -> 0 | F19: =+F17*F9 -> 0 | G19: =+G17*G9 -> 0 | H19: =+H17*H9 -> 0 | I19: =+I17*I9 -> 0
B21: Premium Cost | D21: =IFERROR(VLOOKUP(D46,'Irrigated Crop Rates (data)'!$A$2:$F$820,5,FALSE)*D17*D9*0.01,0) -> 0 | F21: =IFERROR(VLOOKUP(F46,'Irrigated Crop Rates (data)'!$A$2:$F$820,6,FALSE)*F17*F9*0.01,0) -> 0 | G21: =IFERROR(VLOOKUP(G46,'Irrigated Crop Rates (data)'!$A$2:$F$820,6,FALSE)*G17*G9*0.01,0) -> 0 | H21: =IFERROR(VLOOKUP(H46,'Irrigated Crop Rates (data)'!$A$2:$F$820,6,FALSE)*H17*H9*0.01,0) -> 0 | I21: =IFERROR(VLOOKUP(I46,'Irrigated Crop Rates (data)'!$A$2:$F$820,6,FALSE)*I17*I9*0.01,0) -> 0
B23: Fall VPB Price | D23: =+IF(D10<(D9*1.1),D9,IF(D10<(D9*1.5),D10,(D9*1.5))) -> 0 | F23: =+IF(F10<(F9*1.1),F9,IF(F10<(F9*1.5),F10,(F9*1.5))) -> 0 | G23: =+IF(G10<(G9*1.1),G9,IF(G10<(G9*1.5),G10,(G9*1.5))) -> 0 | H23: =+IF(H10<(H9*1.1),H9,IF(H10<(H9*1.5),H10,(H9*1.5))) -> 0 | I23: =+IF(I10<(I9*1.1),I9,IF(I10<(I9*1.5),I10,(I9*1.5))) -> 0
B24: Fall SPE Price | D24: N/A | F24: =+IF(F10>(F9*0.9),F9,IF(F10>(F9*0.5),F10,F9*0.5)) -> 0 | G24: =+IF(G10>(G9*0.9),G9,IF(G10>(G9*0.5),G10,G9*0.5)) -> 0 | H24: =+IF(H10>(H9*0.9),H9,IF(H10>(H9*0.5),H10,H9*0.5)) -> 0 | I24: =+IF(I10>(I9*0.9),I9,IF(I10>(I9*0.5),I10,I9*0.5)) -> 0
B26: Harvested Production
B27: Production Shortfall | D27: =IF(ISBLANK(D26),0,IF(D17-D26<0,0,D17-D26)) -> 0 | F27: =IF(ISBLANK(F26),0,IF(F17-F26<0,0,F17-F26)) -> 0 | G27: =IF(ISBLANK(G26),0,IF(G17-G26<0,0,G17-G26)) -> 0 | H27: =IF(ISBLANK(H26),0,IF(H17-H26<0,0,H17-H26)) -> 0 | I27: =IF(ISBLANK(I26),0,IF(I17-I26<0,0,I17-I26)) -> 0
B29: CI Payment on Shortfall | D29: =+D27*D9 -> 0 | F29: =+F27*F9 -> 0 | G29: =+G27*G9 -> 0 | H29: =+H27*H9 -> 0 | I29: =+I27*I9 -> 0
B30: VPB Payment on Shortfall | D30: =+D27*(D23-D9) -> 0 | F30: =+F27*(F23-F9) -> 0 | G30: =+G27*(G23-G9) -> 0 | H30: =+H27*(H23-H9) -> 0 | I30: =+I27*(I23-I9) -> 0
B31: SPE Payment with 10% Deductible | D31: N/A | F31: =IF(F10="",0,IF(F26="",0,IF(F24<F9,((F9*0.9-F24))*MIN(F26,F17),0))) -> 0 | G31: =IF(G10="",0,IF(G26="",0,IF(G24<G9,((G9*0.9-G24))*MIN(G26,G17),0))) -> 0 | H31: =IF(H10="",0,IF(H26="",0,IF(H24<H9,((H9*0.9-H24))*MIN(H26,H17),0))) -> 0 | I31: =IF(I10="",0,IF(I26="",0,IF(I24<I9,((I9*0.9-I24))*MIN(I26,I17),0))) -> 0
B32: Total Payments | D32: =SUM(D29:D30) -> 0 | F32: =SUM(F29:F31) -> 0 | G32: =SUM(G29:G31) -> 0 | H32: =SUM(H29:H31) -> 0 | I32: =SUM(I29:I31) -> 0
B34: Benefit from Insurance | D34: =SUM(D32-D21) -> 0 | F34: =SUM(F32-F21) -> 0 | G34: =SUM(G32-G21) -> 0 | H34: =SUM(H32-H21) -> 0 | I34: =SUM(I32-I21) -> 0
B35: Est Revenue from Market | D35: =MIN(D26,D17)*D10 -> 0 | F35: =MIN(F26,F17)*F10 -> 0 | G35: =MIN(G26,G17)*G10 -> 0 | H35: =MIN(H26,H17)*H10 -> 0 | I35: =MIN(I26,I17)*I10 -> 0
C37: =Premium_Costs -> Premium Costs do not include hail endorsement or producer discounts or surcharges.
B39: DISCLAIMER: | C39: =Disclaimer -> The calculations from these worksheets are ESTIMATES. These amounts are not to be used for billing or payment of claims.
A41: Hide here and after
D46: =+D11&D7&D12 ->  | F46: =+F11&F7&F12 -> 00 | G46: =+G11&G7&G12 -> 00 | H46: =+H11&H7&H12 -> 00 | I46: =+I11&I7&I12 -> 00
D47: =VLOOKUP(D46,Irr_Crop,5,FALSE) ->  | F47: =+VLOOKUP(F46,Irr_Crop,6,FALSE) ->  | G47: =+VLOOKUP(G46,Irr_Crop,6,FALSE) ->  | H47: =+VLOOKUP(H46,Irr_Crop,6,FALSE) ->  | I47: =+VLOOKUP(I46,Irr_Crop,6,FALSE) -> 

Sheet Irrigated Silage Greenfeed
B1: =Title & " - Irrigated Silage/Greenfeed" -> Impact of Spring Price Endorsement (SPE) Estimate Worksheet - Irrigated Silage/Greenfeed | N1: VOLUME_MEASURE_UID
B3: =Instructions -> Complete the colored boxes to compare specific examples. | N3: 1 | O3: Bushel
N4: 1923 | O4: Pound
B5: Irrigated Stubble | D5: Area Based Irrigated | F5: Area Based Insurance with SPE option
D6: Silage/Greenfeed | F6: Silage/Greenfeed | L6: AG_PROD_USE_Conversion
B7: Crop | F7: =IF(ISBLANK(D7),"",D7) ->  | G7: =IF(ISBLANK(D7),"",D7) ->  | H7: =IF(ISBLANK(D7),"",D7) ->  | I7: =IF(ISBLANK(D7),"",D7) ->  | L7: =VLOOKUP(E7,Ag_to_volume,4,FALSE) -> 
D8: Price expressed in $ per Bushel
B9: Spring Insurance Price | D9: =IF(ISBLANK(D7),0,LOOKUP(D7,'Irr Silage Normals (data)'!$B$4:$C$4,'Irr Silage Normals (data)'!$B$6:$E$6)*1) -> 0 | F9: =IF(ISBLANK(D7),0,LOOKUP(F7,'Irr Silage Normals (data)'!$B$4:$C$4,'Irr Silage Normals (data)'!$B$6:$E$6)*1) -> 0 | G9: =IF(ISBLANK(D7),0,LOOKUP(G7,'Irr Silage Normals (data)'!$B$4:$C$4,'Irr Silage Normals (data)'!$B$6:$E$6)*1) -> 0 | H9: =IF(ISBLANK(D7),0,LOOKUP(H7,'Irr Silage Normals (data)'!$B$4:$C$4,'Irr Silage Normals (data)'!$B$6:$E$6)*1) -> 0 | I9: =IF(ISBLANK(D7),0,LOOKUP(I7,'Irr Silage Normals (data)'!$B$4:$C$4,'Irr Silage Normals (data)'!$B$6:$E$6)*1) -> 0 | L9: Price expressed in $ per
B10: Fall Market Price
B11: Risk Area | F11: =D11 -> 0 | G11: =D11 -> 0 | H11: =D11 -> 0 | I11: =D11 -> 0
B12: Coverage Level | D12: 80 | F12: 80 | G12: 80 | H12: 80 | I12: 80
B14: Acres Insured | F14: =D14 -> 0 | G14: =D14 -> 0 | H14: =D14 -> 0 | I14: =D14 -> 0
B15: RA Normal Yield /ac | D15: =IF(ISBLANK(D11),0,HLOOKUP(D7,'Irr Silage Normals (data)'!$B$4:$D$15,D11+3,FALSE)) -> 0 | F15: =IF(ISBLANK(D7),0,HLOOKUP(F7,'Irr Silage Normals (data)'!$B$4:$D$15,F11+3,FALSE)) -> 0 | G15: =IF(ISBLANK(D7),0,HLOOKUP(G7,'Irr Silage Normals (data)'!$B$4:$D$15,G11+3,FALSE)) -> 0 | H15: =IF(ISBLANK(D7),0,HLOOKUP(H7,'Irr Silage Normals (data)'!$B$4:$D$15,H11+3,FALSE)) -> 0 | I15: =IF(ISBLANK(D7),0,HLOOKUP(I7,'Irr Silage Normals (data)'!$B$4:$D$15,I11+3,FALSE)) -> 0
B16: $ Coverage on Production | D16: =IF(D7='Irr Silage Normals (data)'!C4,D43*D9+D14*50,(D43*D9)) -> 0 | F16: =IF(F7='Irr Silage Normals (data)'!C4,(F43*F9+F14*50),F43*F9) -> 0 | G16: =+IF(G7='Irr Silage Normals (data)'!C4,G43*G9+G14*50,(G43*G9)) -> 0 | H16: =+IF(H7='Irr Silage Normals (data)'!C4,H43*H9+H14*50,(H43*H9)) -> 0 | I16: =IF(I7='Irr Silage Normals (data)'!C4,I43*I9+I14*50,(I43*I9)) -> 0
B18: Premium Cost | D18: =IFERROR(VLOOKUP(D47,Irr_Silage_Rates,5,FALSE)*D16*0.01,0) -> 0 | F18: =IFERROR(VLOOKUP(F47,Irr_Silage_Rates,6,FALSE)*F16*0.01,0) -> 0 | G18: =IFERROR(VLOOKUP(G47,Irr_Silage_Rates,6,FALSE)*G16*0.01,0) -> 0 | H18: =IFERROR(VLOOKUP(H47,Irr_Silage_Rates,6,FALSE)*H16*0.01,0) -> 0 | I18: =IFERROR(VLOOKUP(I47,Irr_Silage_Rates,6,FALSE)*I16*0.01,0) -> 0
B20: Fall VPB Price | D20: =IF(D10<(D9*1.1),D9,IF(D10<(D9*1.5),D10,(D9*1.5))) -> 0 | F20: =IF(F10<(F9*1.1),F9,IF(F10<(F9*1.5),F10,(F9*1.5))) -> 0 | G20: =IF(G10<(G9*1.1),G9,IF(G10<(G9*1.5),G10,(G9*1.5))) -> 0 | H20: =IF(H10<(H9*1.1),H9,IF(H10<(H9*1.5),H10,(H9*1.5))) -> 0 | I20: =IF(I10<(I9*1.1),I9,IF(I10<(I9*1.5),I10,(I9*1.5))) -> 0
B21: Fall SPE Price | D21: N/A | F21: =IF(F10>(F9*0.9),F9,IF(F10>(F9*0.5),F10,F9*0.5)) -> 0 | G21: =IF(G10>(G9*0.9),G9,IF(G10>(G9*0.5),G10,G9*0.5)) -> 0 | H21: =IF(H10>(H9*0.9),H9,IF(H10>(H9*0.5),H10,H9*0.5)) -> 0 | I21: =IF(I10>(I9*0.9),I9,IF(I10>(I9*0.5),I10,I9*0.5)) -> 0
B23: Harvested Production | L23: Dry | M23: SPE | N23: SPE | O23: SPE | P23: SPE
B24: Production Shortfall | D24: =IF(ISBLANK(D23),0,IF(D23>0.999,0,D16-(D16*D23))) -> 0 | F24: =IF(ISBLANK(F23),0,IF(F23>0.999,0,F16-(F16*F23))) -> 0 | G24: =IF(ISBLANK(G23),0,IF(G23>0.999,0,G16-(G16*G23))) -> 0 | H24: =IF(ISBLANK(H23),0,IF(H23>0.999,0,H16-(H16*H23))) -> 0 | I24: =IF(ISBLANK(I23),0,IF(I23>0.999,0,I16-(I16*I23))) -> 0 | L24: =D25 -> 0 | M24: =G25 -> 0 | N24: =H25 -> 0 | O24: =H25 -> 0 | P24: =I25 -> 0
K25: =IF(ISBLANK(D11),0,(((D$15*D$12)/100)*D$20)+('Properties (Data)'!$E$8)) -> 0 | L25: =$K25*D14*(1-D23)-D26 -> 0 | M25: =$K26*F14*(1-F23)-F26 -> 0 | N25: =$K27*G14*(1-G23)-G26 -> 0 | O25: =$K28*H14*(1-H23)-H26 -> 0 | P25: =$K29*I14*(1-I23)-I26 -> 0
B26: CI Payment on Shortfall | D26: =D24 -> 0 | F26: =F24 -> 0 | G26: =G24 -> 0 | H26: =H24 -> 0 | I26: =I24 -> 0 | K26: =(((F$15*F$12)/100)*F$20)+('Properties (Data)'!$E$8) -> 50
B27: VPB Payment on Shortfall | D27: =IF(D20=0,0,IF(D7='Irr Silage Normals (data)'!C4,L25,SUM(D26*((D20-D9)/D9)))) -> 0 | F27: =IF(F20=0,0,IF(F7='Irr Silage Normals (data)'!C4,M25,SUM(F26*((F20-F9)/F9)))) -> 0 | G27: =IF(G20=0,0,IF(G7='Irr Silage Normals (data)'!C4,N25,SUM(G26*((G20-G9)/G9)))) -> 0 | H27: =IF(H20=0,0,IF(H7='Irr Silage Normals (data)'!C4,O25,SUM(H26*((H20-H9)/H9)))) -> 0 | I27: =IF(I20=0,0,IF(I7='Irr Silage Normals (data)'!C4,P25,SUM(I26*((I20-I9)/I9)))) -> 0 | K27: =(((G$15*G$12)/100)*G$20)+('Properties (Data)'!$E$8) -> 50
B28: SPE Payment with 10% Deductible | D28: N/A | F28: =IF(F10=0,0,IF(F23="",0,IF(F21<F9,((F9*0.9)-F21))/F9*F16*MIN(F23,1))) -> 0 | G28: =IF(G10=0,0,IF(G23="",0,IF(G9=0,0,IF(G21<G9,((G9*0.9)-G21))/G9*G16*MIN(G23,1)))) -> 0 | H28: =IF(H10=0,0,IF(H23="",0,IF(H9=0,0,IF(H21<H9,((H9*0.9)-H21))/H9*H16*MIN(H23,1)))) -> 0 | I28: =IF(I10=0,0,IF(I23="",0,IF(I9=0,0,IF(I21<I9,((I9*0.9)-I21))/I9*I16*MIN(I23,1)))) -> 0 | K28: =(((H$15*H$12)/100)*H$20)+('Properties (Data)'!$E$8) -> 50
B29: Total Payments | D29: =SUM(D26:D27) -> 0 | F29: =SUM(F26:F28) -> 0 | G29: =SUM(G26:G28) -> 0 | H29: =SUM(H26:H28) -> 0 | I29: =SUM(I26:I28) -> 0 | K29: =(((I$15*I$12)/100)*I$20)+('Properties (Data)'!$E$8) -> 50
B31: Benefit from Insurance | D31: =SUM(D29-D18) -> 0 | F31: =SUM(F29-F18) -> 0 | G31: =SUM(G29-G18) -> 0 | H31: =SUM(H29-H18) -> 0 | I31: =SUM(I29-I18) -> 0
C33: =Premium_Costs -> Premium Costs do not include hail endorsement or producer discounts or surcharges.
B35: DISCLAIMER: | C35: =Disclaimer -> The calculations from these worksheets are ESTIMATES. These amounts are not to be used for billing or payment of claims.
B37: Hide here and after
C42: newcov | F42: =F16/F20 ->  | G42: =G16/G20 ->  | H42: =H16/H20 ->  | I42: =I16/I20 -> 
C43: prod cov | D43: =+D15*D12*D14*0.01 -> 0 | F43: =+F15*F12*F14*0.01 -> 0 | G43: =+G15*G12*G14*0.01 -> 0 | H43: =+H15*H12*H14*0.01 -> 0 | I43: =+I15*I12*I14*0.01 -> 0
C44: adj prod | F44: =+F43*F23 -> 0 | G44: =+G43*G23 -> 0 | H44: =+H43*H23 -> 0 | I44: =+I43*I23 -> 0
C45: shortfall | F45: =IF(+F43-F44<0,0,F43-F44) -> 0 | G45: =IF(+G43-G44<0,0,G43-G44) -> 0 | H45: =IF(+H43-H44<0,0,H43-H44) -> 0 | I45: =IF(+I43-I44<0,0,I43-I44) -> 0
D47: =+D11&D7&D12 -> 80 | F47: 080 | G47: 080 | H47: 080 | I47: 080
D48: =+VLOOKUP(D47,'Irr Silage Rates (data)'!$A$2:$F$375,5,FALSE) ->  | F48: =+VLOOKUP(F47,'Irr Silage Rates (data)'!$A$2:$F$375,5,FALSE) ->  | G48: =+VLOOKUP(G47,'Irr Silage Rates (data)'!$A$2:$F$375,5,FALSE) ->  | H48: =+VLOOKUP(H47,'Irr Silage Rates (data)'!$A$2:$F$375,5,FALSE) ->  | I48: =+VLOOKUP(I47,'Irr Silage Rates (data)'!$A$2:$F$375,5,FALSE) -> 

Sheet Corn Heat Unit
B1: =Title & " - Corn Heat Unit" -> Impact of Spring Price Endorsement (SPE) Estimate Worksheet - Corn Heat Unit | L1: Hide here and after
B3: =Instructions -> Complete the colored boxes to compare specific examples.
D5: Corn Heat Unit | G5: Corn Heat Unit Insurance with SPE option
B7: Crop | D7: Corn (Grain) | E7: Corn (Silage) | G7: Corn (Grain) | H7: Corn (Grain) | I7: Corn (Silage) | J7: Corn (Silage)
D8: Price expressed in $ per Bushel
B9: Spring Insurance Price | D9: =VALUE('CHU Normals (data)'!B7) -> 5.588295062 | E9: =VALUE('CHU Normals (data)'!C7) -> 4.876168012 | G9: =LOOKUP(G7,'CHU Normals (data)'!$B$4:$E$4,'CHU Normals (data)'!$B$7:$E$7)*1 -> 5.588295062 | H9: =+LOOKUP(H7,'CHU Normals (data)'!$B$4:$E$4,'CHU Normals (data)'!$B$7:$E$7)*1 -> 5.588295062 | I9: =+LOOKUP(I7,'CHU Normals (data)'!$B$4:$E$4,'CHU Normals (data)'!$B$7:$E$7)*1 -> 4.876168012 | J9: =+LOOKUP(J7,'CHU Normals (data)'!$B$4:$E$4,'CHU Normals (data)'!$B$7:$E$7)*1 -> 4.876168012
B10: Fall Market Price
B11: Record Dollar Coverage | G11: =D11 -> 0 | H11: =D11 -> 0 | I11: =E11 -> 0 | J11: =E11 -> 0
B14: Acres Insured
B15: Total $ Coverage | D15: =D11*D14 -> 0 | E15: =E11*E14 -> 0 | G15: 0 | H15: 0 | I15: 0 | J15: 0
B17: Premium Cost | D17: =VLOOKUP(D7,CHU_Rates,5,TRUE)*D11*D14*0.01 -> 0 | E17: =VLOOKUP(E7,CHU_Rates,5,TRUE)*E11*E14*0.01 -> 0 | G17: =VLOOKUP(G7,CHU_Rates,6,FALSE)*G11*G14*0.01 -> 0 | H17: =VLOOKUP(H7,CHU_Rates,6,FALSE)*H11*H14*0.01 -> 0 | I17: =VLOOKUP(I7,CHU_Rates,6,FALSE)*I11*I14*0.01 -> 0 | J17: =VLOOKUP(J7,CHU_Rates,6,FALSE)*J11*J14*0.01 -> 0
B18: Fall VPB Price | D18: =+IF(D10<(D9*1.1),D9,IF(D10<(D9*1.5),D10,(D9*1.5))) -> 5.588295062 | E18: =+IF(E10<(E9*1.1),E9,IF(E10<(E9*1.5),E10,(E9*1.5))) -> 4.876168012 | G18: =+IF(G10<(G9*1.1),G9,IF(G10<(G9*1.5),G10,(G9*1.5))) -> 5.588295062 | H18: =+IF(H10<(H9*1.1),H9,IF(H10<(H9*1.5),H10,(H9*1.5))) -> 5.588295062 | I18: =+IF(I10<(I9*1.1),I9,IF(I10<(I9*1.5),I10,(I9*1.5))) -> 4.876168012 | J18: =+IF(J10<(J9*1.1),J9,IF(J10<(J9*1.5),J10,(J9*1.5))) -> 4.876168012
B19: Fall SPE Price | D19: N/A | E19: N/A | G19: =+IF(G10>(G9*0.9),G9,IF(G10>(G9*0.5),G10,G9*0.5)) -> 2.794147531 | H19: =+IF(H10>(H9*0.9),H9,IF(H10>(H9*0.5),H10,H9*0.5)) -> 2.794147531 | I19: =+IF(I10>(I9*0.9),I9,IF(I10>(I9*0.5),I10,I9*0.5)) -> 2.438084006 | J19: =+IF(J10>(J9*0.9),J9,IF(J10>(J9*0.5),J10,J9*0.5)) -> 2.438084006
B21: Harvest Claim Rate | K21: 5
B22: Deemed Shortfall | D22: =IF(D21="",0,D11*D21*D14) -> 0 | E22: =IF(E21="",0,E11*E21*E14) -> 0 | G22: =IF(G21="",0,G11*G21*G14) -> 0 | H22: =IF(H21="",0,H11*H21*H14) -> 0 | I22: =IF(I21="",0,I11*I21*I14) -> 0 | J22: =IF(J21="",0,J11*J21*J14) -> 0
B24: CI Payment on Shortfall | D24: =D22 -> 0 | E24: =E22 -> 0 | G24: 0 | H24: 0 | I24: 0 | J24: 0
B25: VPB Payment on Shortfall | D25: =D24*((D18-D9)/D9) -> 0 | E25: =E24*((E18-E9)/E9) -> 0 | G25: =G24*((G18-G9)/G9) -> 0 | H25: =H24*((H18-H9)/H9) -> 0 | I25: =I24*((I18-I9)/I9) -> 0 | J25: =J24*((J18-J9)/J9) -> 0
B26: SPE Payment with 10% Deductible | D26: N/A | E26: N/A | G26: =IF(G10="",0,IF(G21="",0,IF(G9=G19,0,IF(G19<G9,((G9*0.9-G19))*MIN((G11/G9),(G11/G9)*(1-G21))*G14)))) -> 0 | H26: =IF(H10="",0,IF(H21="",0,IF(H9=H19,0,IF(H19<H9,((H9*0.9-H19))*MIN((H11/H9),(H11/H9)*(1-H21))*H14)))) -> 0 | I26: =IF(I10="",0,IF(I21="",0,IF(I9=I19,0,IF(I19<I9,((I9*0.9-I19))*MIN((I11/I9),(I11/I9)*(1-I21))*I14)))) -> 0 | J26: =IF(J10="",0,IF(J21="",0,IF(J9=J19,0,IF(J19<J9,((J9*0.9-J19))*MIN((J11/J9),(J11/J9)*(1-J21))*J14)))) -> 0
B27: Total Payments | D27: =SUM(D24+D25) -> 0 | E27: =SUM(E24+E25) -> 0 | G27: =SUM(G24:G26) -> 0 | H27: =SUM(H24:H26) -> 0 | I27: =SUM(I24:I26) -> 0 | J27: =SUM(J24:J26) -> 0
B29: Benefit from Insurance | D29: =SUM(D27-D17) -> 0 | E29: =SUM(E27-E17) -> 0 | G29: =SUM(G27-G17) -> 0 | H29: =SUM(H27-H17) -> 0 | I29: =SUM(I27-I17) -> 0 | J29: =SUM(J27-J17) -> 0
C31: Premium Rates based on Lethbridge weather station @ Low CHU threshold.
C33: =Premium_Costs -> Premium Costs do not include hail endorsement or producer discounts or surcharges.
B35: DISCLAIMER: | C35: =Disclaimer -> The calculations from these worksheets are ESTIMATES. These amounts are not to be used for billing or payment of claims.
A38: Hide here and after

Sheet CHU Dollar Coverage (data) (hidden)
A1: Grain Corn | B1: Corn Silage
A2: 100 | B2: 100 | D2: 2020 | E2: No change required
A3: 125 | B3: 125
A4: 150 | B4: 150
A5: 175 | B5: 175
A6: 200 | B6: 200
A7: 225 | B7: 225
A8: 250 | B8: 250
A9: 275 | B9: 275
A10: 300 | B10: 300
A11: 325 | B11: 325
A12: 350 | B12: 350
A13: 375 | B13: 375
A14: 400 | B14: 400
A15: 425 | B15: 425
A16: 450 | B16: 450
A17: 475 | B17: 475
A18: 500 | B18: 500
A19: 525 | B19: 525
B20: 550
B21: 575
B22: 600
B23: 625
B24: 650
B25: 675
B26: 700
B27: 725
B28: 750
B29: 775
B30: 800
B31: 825
B32: 850
B33: 875
B34: 900
B35: 925
B36: 950
B37: 975

Sheet CHU Normals (data) (hidden)
A1: a | B1: b | C1: c | D1: d | E1: e | H1: Crop | I1: AG_PROD_UID | J1: AG_PROD_USE_UID | K1: Price/kg | L1: Conversion rate | M1: Price per bushel | T1: 2020-03-09
H2: =C4 -> Corn (Silage) | I2: 12324 | J2: 4475 | K2: 0.215 | L2: 0.044092 | M2: =K2/L2 -> 4.876168012 | N2: Silage uses the barley conversion factor | T2: Ilyas Ali
D3: normal lookup table | H3: =B4 -> Corn (Grain) | I3: 12282 | J3: 477 | K3: 0.22 | L3: 0.039368 | M3: =K3/L3 -> 5.588295062 | T3: change required
B4: Corn (Grain) | C4: Corn (Silage) | E4: 2018 | T4: Done 2020
A5: AG_PROD_UID | B5: 12282 | C5: 12324 | T5: TING4
A6: AG_PROD_USE_UID | T6: Query
A7: Spring Price | B7: =M3 -> 5.588295062 | C7: =M2 -> 4.876168012 | H7: The price per kg is retrieved from the AG_PROD_USE_PRICE_OPTION | T7: select * from AG_PROD_USE_PRICE_OPTION where CROP_YEAR = 2020 And PRICE_OPTION_UID = 4 And PRICE_TYPE_UID = 2 And AG_PROD_USE_UID in (477,4475)
A8: 1 | H8: CROP_YEAR = 2019 And PRICE_OPTION_UID = 4 And PRICE_TYPE_UID = 2 And AG_PROD_USE_UID in (477,4475)
A9: 2
A10: 3
A11: 4
A12: 5
A13: 6
A14: 7

Sheet CHU Rates (data) (hidden)
A1: Column1 | B1: ra | C1: crop | D1: cl | E1: p rem | F1: prem+ | G1: Column2 | H1: Prem | I1: Prem+ | J1: * CHU Data Rate | N1: Barley and Corn Silage rate always same
A2: Corn (Grain) | B2: 1 | C2: corn | D2: 80 | E2: ='Rates (CHU & SPE) (data)'!I5 -> 1.62 | F2: ='Rates (CHU & SPE) (data)'!I5+'Rates (CHU & SPE) (data)'!N5 -> 4.09 | H2: Farm_75 (I5) | I2: Total(I5+N5) | J2: LethBridge | K2: PNP Data CHU Rate Sheet (CHUDATA.XLSX)
A3: Corn (Silage) | B3: 1 | C3: conr | D3: 80 | E3: ='Rates (CHU & SPE) (data)'!I12 -> 1.06 | F3: ='Rates (CHU & SPE) (data)'!I13+'Rates (CHU & SPE) (data)'!N13 -> 3.76 | H3: Farm_75 (I13) | I3: Total(I13+N13)
H5: Note : Get value from as above
J6: The base Corn (Grain) Prem Rate is range “I4” (19003 Lethbridge farm_75) on the Rates sheet
J7: The Corn (Grain) Prem+Rate is range “N4” (19003 Lethbridge Producer SPE) + range “I4” (19003 Lethbridge farm_75) on the Rates sheet
J8: The base Corn (Silage) Premium Rate is range “I12” (29003 Lethbridge farm_75) on the Rates sheet
J9: The Corn (Silage) Prem+Rate is range “N12” (29003 Producer SPE) + range “I12” (29003 Lethbridge farm_75) on the Rates sheet
J10: Then the CHU Rates are manually input into the CHU Normals sheet in SPEData.
M18: Change History
M19: Dated 09 Mar 2020 | N19: Ilyas Ali | O19: Prem and Prem + rate change
M20: 2020-03-26 | N20: Martine | O20: Updated Prem+ data

Sheet Dry Crop Normals (data) (hidden)
A1: F1 | B1: F2 | C1: F3 | D1: F4 | E1: F5 | F1: F6 | G1: F7 | H1: F8 | I1: F9 | J1: F10 | K1: F11 | L1: F12 | M1: F13 | N1: F14 | O1: F15 | P1: F16 | Q1: F17 | R1: F18 | S1: F19 | T1: F20 | U1: F21 | V1: F22 | W1: F23 | X1: F24 | Y1: F25 | Z1: F26 | AA1: F27 | AB1: F28 | AC1: F29 | AD1: F30 | AE1: F31 | AF1: F32 | AG1: F33 | AH1: F34 | AI1: F35 | AJ1: F36 | AK1: F37 | AL1: F38 | AM1: F39 | AN1: F40 | AO1: F41 | AP1: F42 | AQ1: F43 | AR1: Column45
A6: 60 | C6: Crop1 | D6: Crop2 | E6: Crop3 | F6: Crop4 | G6: Crop5 | H6: Crop6 | I6: Crop7 | J6: Crop8 | K6: Crop9 | L6: Crop10 | M6: Crop11 | N6: Crop12 | O6: Crop13 | P6: Crop14 | Q6: Crop15 | R6: Crop16 | S6: Crop17 | T6: Crop18 | U6: Crop19 | V6: Crop20 | W6: Crop21 | X6: Crop22 | Y6: Crop23 | Z6: Crop24 | AA6: Crop25 | AB6: Crop26 | AC6: Crop27 | AD6: Crop28 | AE6: Crop29 | AF6: Crop30 | AG6: Crop31 | AH6: Crop32 | AI6: Crop33 | AJ6: Crop34 | AK6: Crop35 | AL6: Crop36 | AM6: Crop37 | AN6: Crop38 | AO6: Crop39 | AP6: Crop40 | AQ6: Crop41
A7: 70
A8: 80 | C8: Barley | D8: Barley Malting | E8: CanarySeed | F8: Canola-Argentine | G8: Canola-Polish | H8: Canola-Argentine Specialty Oil | I8: Chickpeas-Desi | J8: Chickpeas-Kabuli | K8: FabaBean | L8: Flax | M8: Lentils-Green | N8: Lentils-Red | O8: MixedGrain | P8: Mustard-Brown | Q8: Mustard-Oriental | R8: Mustard-Yellow | S8: Oats | T8: Peas,Field | U8: Rye-Fall | V8: Rye-Spring | W8: Safflower | X8: Sunflower Confectionary | Y8: Sunflower Oilseed(Sunflower) | Z8: Triticale-Spring | AA8: Triticale-Winter | AB8: Wheat-CanadaPrairieSpring | AC8: Wheat-Durum | AD8: Wheat-Durum High Protein | AE8: Wheat-ExtraStrong | AF8: Wheat-HardRedSpring | AG8: Wheat-HardRedWinter | AH8: Wheat-HardRedSpring High Protein | AI8: Wheat-NorthernHardRed | AJ8: Wheat-SoftWhiteSpring | AK8: Wheat-SpecialPurpose | AL8: Wheat-SoftWhiteSpring Industrial
B9: AG_PROD_UID | C9: 12267 | D9: 12267 | E9: 12269 | F9: 12388 | G9: 12389 | H9: 12388 | I9: 13559 | J9: 13558 | K9: 12408 | L9: 12383 | M9: 18898 | N9: 18897 | O9: 12272 | P9: 12392 | Q9: 12393 | R9: 12394 | S9: 12273 | T9: 12411 | U9: 12286 | V9: 12287 | W9: 12386 | X9: 12387 | Y9: 12387 | Z9: 12288 | AA9: 12289 | AB9: 13571 | AC9: 12290 | AD9: 12290 | AE9: 13572 | AF9: 12291 | AG9: 12292 | AH9: 12291 | AI9: 19127 | AJ9: 12294 | AK9: 19126 | AL9: 12294
B10: AG_PROD_USE_UID | C10: 442 | D10: 7139 | E10: 446 | F10: 752 | G10: 754 | H10: 12978 | I10: 3464 | J10: 3463 | K10: 788 | L10: 738 | M10: 23056 | N10: 23054 | O10: 452 | P10: 759 | Q10: 761 | R10: 763 | S10: 456 | T10: 808 | U10: 483 | V10: 485 | W10: 746 | X10: 750 | Y10: 749 | Z10: 487 | AA10: 489 | AB10: 3477 | AC10: 491 | AD10: 3903 | AE10: 3479 | AF10: 493 | AG10: 495 | AH10: 3853 | AI10: 23731 | AJ10: 499 | AK10: 23725 | AL10: 13734
B11: Spring Price | C11: =VLOOKUP(C10,Ag_Prod_Use_Price,5,FALSE) -> 4.876168012 | D11: =VLOOKUP(D10,Ag_Prod_Use_Price,5,FALSE) -> 5.783362061 | E11: 0.2540143337 | F11: 10.20593305 | G11: 10.20593305 | H11: 11.81620249 | I11: 0.1995826907 | J11: 0.18597478 | K11: 0.1020593305 | L11: 13.59006274 | M11: 0.2404064229 | N11: 0.1905107502 | O11: 4.191198483 | P11: 13.72130999 | Q11: 13.72130999 | R11: 17.46348544 | S11: 3.440516263 | T11: 6.939908556 | U11: 4.699367491 | V11: 4.699367491 | W11: 0.2993740361 | X11: 0.3288578427 | Y11: 0.2358704527 | Z11: 4.363619209 | AA11: 4.363619209 | AB11: 5.579142173 | AC11: 6.66775528 | AD11: 6.803831918 | AE11: 5.85129545 | AF11: 5.85129545 | AG11: 5.170912258 | AH11: 6.395602003 | AI11: 5.170912258 | AJ11: 4.898758981 | AK11: 5.034835619 | AL11: 4.898758981
A12: RA | B12: 1 | C12: 51.940376 | D12: 51.940376 | E12: 1302.9186 | F12: 27.5575 | G12: 18.650916 | H12: 27.5575 | I12: 970.024 | J12: 1254.4174 | K12: 1942.2526 | L12: 17.045911 | M12: 1016.3206 | N12: 1097.8908 | O12: 60.52684 | P12: 24.91198 | Q12: 22.48692 | R12: 19.135928 | S12: 49.791946 | T12: 39.022128 | U12: 34.170556 | V12: 27.793102 | W12: 0 | X12: 0 | Y12: 0 | Z12: 28.6173 | AA12: 27.98136 | AB12: 45.452328 | AC12: 43.394664 | AD12: 43.394664 | AE12: 42.512808 | AF12: 41.924904 | AG12: 46.260696 | AH12: 41.924904 | AI12: 41.373744 | AJ12: 40.859328 | AK12: 45.783024 | AL12: 0 | AT12: Modication History
B13: 2 | C13: 59.039188 | D13: 59.039188 | E13: 1038.3666 | F13: 35.846796 | G13: 23.36876 | H13: 35.846796 | I13: 0 | J13: 0 | K13: 1611.5626 | L13: 22.675392 | M13: 1331.5784 | N13: 1437.3992 | O13: 73.45393 | P13: 23.36876 | Q13: 21.340528 | R13: 18.7391 | S13: 55.007733 | T13: 39.022128 | U13: 51.610137 | V13: 31.926637 | W13: 1025.139 | X13: 844.3618 | Y13: 667.9938 | Z13: 56.429076 | AA13: 56.937828 | AB13: 46.958832 | AC13: 47.289528 | AD13: 47.289528 | AE13: 40.675608 | AF13: 43.137456 | AG13: 53.976936 | AH13: 43.137456 | AI13: 43.284432 | AJ13: 52.72764 | AK13: 47.693712 | AL13: 0 | AT13: 2020-03-10 | AU13: Ilyas Ali | AV13: Update Price (SPE_Dry_Crop_Extract.SQL) | AW13: Completed
B14: 3 | C14: 58.64236 | D14: 58.64236 | E14: 1038.3666 | F14: 33.73038 | G14: 21.82554 | H14: 33.73038 | I14: 0 | J14: 0 | K14: 0 | L14: 21.179446 | M14: 1331.5784 | N14: 1437.3992 | O14: 56.01739 | P14: 26.102464 | Q14: 25.220624 | R14: 21.16416 | S14: 54.147397 | T14: 39.022128 | U14: 49.720521 | V14: 27.320698 | W14: 1025.139 | X14: 844.3618 | Y14: 667.9938 | Z14: 48.54342 | AA14: 50.112072 | AB14: 47.326272 | AC14: 45.19512 | AD14: 45.19512 | AE14: 41.337 | AF14: 41.006304 | AG14: 47.95092 | AH14: 41.006304 | AI14: 40.822584 | AJ14: 49.861608 | AK14: 47.693712 | AL14: 0 | AT14: 2020-03-24 | AU14: Martine W | AV14: Put a lookup formula for the price so the correct price is displayed for the commodity.
B15: 4 | C15: 45.282484 | D15: 45.282484 | E15: 1038.3666 | F15: 28.262972 | G15: 18.871376 | H15: 28.262972 | I15: 0 | J15: 0 | K15: 0 | L15: 14.132753 | M15: 1016.3206 | N15: 1097.8908 | O15: 34.822975 | P15: 16.181764 | Q15: 16.269948 | R15: 12.918956 | S15: 40.059395 | T15: 39.022128 | U15: 34.564226 | V15: 17.518315 | W15: 1025.139 | X15: 844.3618 | Y15: 667.9938 | Z15: 37.181292 | AA15: 40.318596 | AB15: 36.597024 | AC15: 35.935632 | AD15: 35.935632 | AE15: 30.387288 | AF15: 32.922624 | AG15: 39.4998 | AH15: 32.922624 | AI15: 33.0696 | AJ15: 37.552368 | AK15: 35.604936 | AL15: 0
B16: 5 | C16: 63.316112 | D16: 63.316112 | E16: 1302.9186 | F16: 37.91912 | G16: 25.485176 | H16: 37.91912 | I16: 0 | J16: 0 | K16: 1942.2526 | L16: 30.588159 | M16: 1252.2128 | N16: 1369.0566 | O16: 57.82117 | P16: 24.47106 | Q16: 24.91198 | R16: 22.619196 | S16: 65.708162 | T16: 43.54164 | U16: 57.633288 | V16: 45.66572 | W16: 0 | X16: 0 | Y16: 0 | Z16: 53.673336 | AA16: 56.556264 | AB16: 62.09736 | AC16: 54.050424 | AD16: 54.050424 | AE16: 50.486256 | AF16: 46.29744 | AG16: 54.711816 | AH16: 46.29744 | AI16: 47.877432 | AJ16: 57.357384 | AK16: 62.244336 | AL16: 0
B17: 6 | C17: 65.300252 | D17: 65.300252 | E17: 1302.9186 | F17: 37.169556 | G17: 23.060116 | H17: 37.169556 | I17: 0 | J17: 0 | K17: 1942.2526 | L17: 14.447689 | M17: 1252.2128 | N17: 1369.0566 | O17: 56.01739 | P17: 0 | Q17: 0 | R17: 0 | S17: 75.763339 | T17: 43.54164 | U17: 48.618245 | V17: 41.256616 | W17: 0 | X17: 0 | Y17: 0 | Z17: 70.37736 | AA17: 77.075928 | AB17: 74.921016 | AC17: 46.407672 | AD17: 46.407672 | AE17: 62.134104 | AF17: 61.656432 | AG17: 41.851416 | AH17: 61.656432 | AI17: 73.267536 | AJ17: 0 | AK17: 74.22288 | AL17: 0
B18: 7 | C18: 78.748312 | D18: 78.748312 | E18: 1302.9186 | F18: 43.254252 | G18: 24.779704 | H18: 43.254252 | I18: 0 | J18: 0 | K18: 1942.2526 | L18: 29.170947 | M18: 1252.2128 | N18: 1369.0566 | O18: 75.65855 | P18: 27.248856 | Q18: 27.248856 | R18: 23.986048 | S18: 81.947004 | T18: 53.976936 | U18: 63.262769 | V18: 51.1771 | W18: 0 | X18: 0 | Y18: 0 | Z18: 78.305412 | AA18: 75.295296 | AB18: 75.655896 | AC18: 47.39976 | AD18: 47.39976 | AE18: 62.722008 | AF18: 66.469896 | AG18: 58.129008 | AH18: 66.469896 | AI18: 73.598232 | AJ18: 0 | AK18: 74.77404 | AL18: 78.301464
B19: 8 | C19: 70.679476 | D19: 70.679476 | E19: 1302.9186 | F19: 37.213648 | G19: 23.545128 | H19: 37.213648 | I19: 0 | J19: 0 | K19: 1942.2526 | L19: 28.34424 | M19: 1252.2128 | N19: 1369.0566 | O19: 67.44133 | P19: 28.6598 | Q19: 28.351156 | R19: 22.001908 | S19: 66.353414 | T19: 53.976936 | U19: 67.750607 | V19: 33.580051 | W19: 0 | X19: 0 | Y19: 0 | Z19: 60.456696 | AA19: 67.40964 | AB19: 66.910824 | AC19: 61.91364 | AD19: 61.91364 | AE19: 49.824864 | AF19: 52.764384 | AG19: 59.15784 | AH19: 52.764384 | AI19: 56.76948 | AJ19: 0 | AK19: 67.131288 | AL19: 65.808504
B20: 9 | C20: 45.1943 | D20: 45.1943 | E20: 1038.3666 | F20: 29.10072 | G20: 17.372248 | H20: 29.10072 | I20: 0 | J20: 0 | K20: 1611.5626 | L20: 16.022369 | M20: 956.7964 | N20: 1027.3436 | O20: 39.432635 | P20: 17.548616 | Q20: 18.915468 | R20: 13.315784 | S20: 41.672525 | T20: 39.022128 | U20: 37.949788 | V20: 22.242355 | W20: 0 | X20: 0 | Y20: 0 | Z20: 31.542624 | AA20: 37.73244 | AB20: 45.56256 | AC20: 34.502616 | AD20: 34.502616 | AE20: 35.8254 | AF20: 32.114256 | AG20: 38.470968 | AH20: 32.114256 | AI20: 32.224488 | AJ20: 36.964464 | AK20: 44.607216 | AL20: 0
B21: 10 | C21: 67.637128 | D21: 67.637128 | E21: 1302.9186 | F21: 44.003816 | G21: 31.393504 | H21: 44.003816 | I21: 0 | J21: 0 | K21: 1942.2526 | L21: 22.793493 | M21: 1252.2128 | N21: 1369.0566 | O21: 69.595845 | P21: 0 | Q21: 0 | R21: 0 | S21: 62.858299 | T21: 43.54164 | U21: 40.94168 | V21: 33.776886 | W21: 0 | X21: 0 | Y21: 0 | Z21: 62.618892 | AA21: 68.427144 | AB21: 75.949848 | AC21: 0 | AD21: 0 | AE21: 61.17876 | AF21: 57.541104 | AG21: 45.599304 | AH21: 57.541104 | AI21: 73.634976 | AJ21: 0 | AK21: 75.472176 | AL21: 76.501008
B22: 11 | C22: 76.27916 | D22: 76.27916 | E22: 1302.9186 | F22: 48.016188 | G22: 28.527524 | H22: 48.016188 | I22: 0 | J22: 0 | K22: 1942.2526 | L22: 34.564226 | M22: 1252.2128 | N22: 1369.0566 | O22: 73.55414 | P22: 0 | Q22: 0 | R22: 0 | S22: 80.871584 | T22: 53.976936 | U22: 66.254661 | V22: 37.516751 | W22: 0 | X22: 0 | Y22: 0 | Z22: 70.928508 | AA22: 70.886112 | AB22: 71.540568 | AC22: 0 | AD22: 0 | AE22: 57.50436 | AF22: 61.766664 | AG22: 56.365296 | AH22: 61.766664 | AI22: 66.433152 | AJ22: 0 | AK22: 71.09964 | AL22: 72.863352
B23: 12 | C23: 65.47662 | D23: 65.47662 | E23: 1100.0954 | F23: 37.522292 | G23: 21.957816 | H23: 37.522292 | I23: 0 | J23: 0 | K23: 1942.2526 | L23: 24.604375 | M23: 868.6124 | N23: 1027.3436 | O23: 61.779465 | P23: 19.576848 | Q23: 19.444572 | R23: 17.41634 | S23: 62.320589 | T23: 43.54164 | U23: 47.791538 | V23: 31.651068 | W23: 0 | X23: 0 | Y23: 0 | Z23: 53.970108 | AA23: 53.970108 | AB23: 55.997856 | AC23: 41.373744 | AD23: 41.373744 | AE23: 44.27652 | AF23: 46.775112 | AG23: 48.061152 | AH23: 46.775112 | AI23: 48.906264 | AJ23: 0 | AK23: 55.961112 | AL23: 55.777392
B24: 13 | C24: 62.522456 | D24: 62.522456 | E24: 1100.0954 | F24: 36.81682 | G24: 20.458688 | H24: 36.81682 | I24: 0 | J24: 0 | K24: 1942.2526 | L24: 23.6202 | M24: 868.6124 | N24: 1027.3436 | O24: 53.261615 | P24: 20.458688 | Q24: 20.50278 | R24: 17.989536 | S24: 64.955368 | T24: 43.54164 | U24: 38.776495 | V24: 27.832469 | W24: 0 | X24: 0 | Y24: 0 | Z24: 50.23926 | AA24: 50.8752 | AB24: 54.38112 | AC24: 0 | AD24: 0 | AE24: 41.373744 | AF24: 46.48116 | AG24: 44.64396 | AH24: 46.48116 | AI24: 47.656968 | AJ24: 0 | AK24: 53.315544 | AL24: 54.454608
B25: 14 | C25: 62.037444 | D25: 62.037444 | E25: 1170.6426 | F25: 35.097232 | G25: 21.781448 | H25: 35.097232 | I25: 0 | J25: 0 | K25: 1611.5626 | L25: 15.7468 | M25: 1252.2128 | N25: 1369.0566 | O25: 65.53734 | P25: 0 | Q25: 0 | R25: 0 | S25: 64.202574 | T25: 43.54164 | U25: 33.540684 | V25: 27.478166 | W25: 0 | X25: 0 | Y25: 0 | Z25: 55.920324 | AA25: 59.100024 | AB25: 64.008048 | AC25: 0 | AD25: 0 | AE25: 52.029504 | AF25: 49.824864 | AG25: 38.617944 | AH25: 49.824864 | AI25: 61.36248 | AJ25: 0 | AK25: 63.640608 | AL25: 0
B26: 15 | C26: 66.843472 | D26: 66.843472 | E26: 1170.6426 | F26: 40.7851 | G26: 22.001908 | H26: 40.7851 | I26: 0 | J26: 0 | K26: 1942.2526 | L26: 19.014261 | M26: 1252.2128 | N26: 1369.0566 | O26: 57.1197 | P26: 0 | Q26: 0 | R26: 0 | S26: 71.730514 | T26: 43.54164 | U26: 36.690044 | V26: 24.879944 | W26: 0 | X26: 0 | Y26: 0 | Z26: 55.1148 | AA26: 60.583884 | AB26: 65.992224 | AC26: 0 | AD26: 0 | AE26: 54.74856 | AF26: 54.270888 | AG26: 45.415584 | AH26: 54.270888 | AI26: 62.354568 | AJ26: 0 | AK26: 65.110368 | AL26: 65.95548
B27: 16 | C27: 54.321344 | D27: 54.321344 | E27: 1170.6426 | F27: 31.922608 | G27: 20.326412 | H27: 31.922608 | I27: 0 | J27: 0 | K27: 1611.5626 | L27: 16.849076 | M27: 1252.2128 | N27: 1369.0566 | O27: 42.739565 | P27: 0 | Q27: 0 | R27: 0 | S27: 70.171155 | T27: 43.54164 | U27: 35.194098 | V27: 24.879944 | W27: 0 | X27: 0 | Y27: 0 | Z27: 41.378496 | AA27: 43.837464 | AB27: 54.270888 | AC27: 0 | AD27: 0 | AE27: 40.491888 | AF27: 42.99048 | AG27: 41.190024 | AH27: 42.99048 | AI27: 52.690896 | AJ27: 0 | AK27: 53.242056 | AL27: 56.071344
B28: 17 | C28: 55.952748 | D28: 55.952748 | E28: 1170.6426 | F28: 31.261228 | G28: 17.989536 | H28: 31.261228 | I28: 0 | J28: 0 | K28: 1611.5626 | L28: 18.738692 | M28: 1252.2128 | N28: 1369.0566 | O28: 54.965185 | P28: 0 | Q28: 0 | R28: 0 | S28: 59.201871 | T28: 43.54164 | U28: 37.39865 | V28: 32.241573 | W28: 0 | X28: 0 | Y28: 0 | Z28: 47.949876 | AA28: 52.401456 | AB28: 48.943008 | AC28: 0 | AD28: 0 | AE28: 38.801664 | AF28: 43.835592 | AG28: 39.940728 | AH28: 43.835592 | AI28: 43.027224 | AJ28: 0 | AK28: 48.979752 | AL28: 0
B29: 18 | C29: 56.966864 | D29: 56.966864 | E29: 1170.6426 | F29: 31.040768 | G29: 21.60508 | H29: 31.040768 | I29: 0 | J29: 0 | K29: 1611.5626 | L29: 17.164012 | M29: 1252.2128 | N29: 1369.0566 | O29: 64.83587 | P29: 0 | Q29: 0 | R29: 0 | S29: 73.451186 | T29: 43.54164 | U29: 41.492818 | V29: 30.509425 | W29: 0 | X29: 0 | Y29: 0 | Z29: 52.104684 | AA29: 57.065016 | AB29: 52.948104 | AC29: 0 | AD29: 0 | AE29: 42.145368 | AF29: 47.179296 | AG29: 40.60212 | AH29: 47.179296 | AI29: 46.738368 | AJ29: 0 | AK29: 52.801128 | AL29: 0
B30: 19 | C30: 66.005724 | D30: 66.005724 | E30: 1170.6426 | F30: 36.464084 | G30: 20.9437 | H30: 36.464084 | I30: 0 | J30: 0 | K30: 1611.5626 | L30: 21.415648 | M30: 1252.2128 | N30: 1369.0566 | O30: 66.589545 | P30: 0 | Q30: 0 | R30: 0 | S30: 74.634148 | T30: 43.54164 | U30: 34.131189 | V30: 30.863728 | W30: 0 | X30: 0 | Y30: 0 | Z30: 55.411572 | AA30: 62.194932 | AB30: 57.651336 | AC30: 0 | AD30: 0 | AE30: 44.239776 | AF30: 49.935096 | AG30: 38.654688 | AH30: 49.935096 | AI30: 49.530912 | AJ30: 0 | AK30: 57.761568 | AL30: 0
B31: 20 | C31: 64.242044 | D31: 64.242044 | E31: 1170.6426 | F31: 33.95084 | G31: 20.370504 | H31: 33.95084 | I31: 0 | J31: 0 | K31: 1611.5626 | L31: 19.407931 | M31: 1252.2128 | N31: 1369.0566 | O31: 65.23671 | P31: 0 | Q31: 0 | R31: 0 | S31: 62.320589 | T31: 43.54164 | U31: 36.060172 | V31: 30.470058 | W31: 0 | X31: 0 | Y31: 0 | Z31: 54.26688 | AA31: 58.040124 | AB31: 61.766664 | AC31: 0 | AD31: 0 | AE31: 47.877432 | AF31: 48.612312 | AG31: 35.09052 | AH31: 48.612312 | AI31: 49.6044 | AJ31: 0 | AK31: 61.766664 | AL31: 0
B32: 21 | C32: 53.704056 | D32: 53.704056 | E32: 1170.6426 | F32: 28.6598 | G32: 16.666776 | H32: 28.6598 | I32: 0 | J32: 0 | K32: 1611.5626 | L32: 14.841359 | M32: 1252.2128 | N32: 1369.0566 | O32: 52.81067 | P32: 0 | Q32: 0 | R32: 0 | S32: 65.761933 | T32: 43.54164 | U32: 38.225357 | V32: 31.09993 | W32: 0 | X32: 0 | Y32: 0 | Z32: 47.101956 | AA32: 51.341556 | AB32: 54.528096 | AC32: 0 | AD32: 0 | AE32: 45.048144 | AF32: 44.790936 | AG32: 36.780744 | AH32: 44.790936 | AI32: 45.415584 | AJ32: 0 | AK32: 54.307632 | AL32: 0
B33: 22 | C33: 56.790496 | D33: 56.790496 | E33: 1170.6426 | F33: 29.54164 | G33: 17.724984 | H33: 29.54164 | I33: 0 | J33: 0 | K33: 1611.5626 | L33: 15.313763 | M33: 1252.2128 | N33: 1369.0566 | O33: 60.72726 | P33: 0 | Q33: 0 | R33: 0 | S33: 73.504957 | T33: 43.54164 | U33: 31.532967 | V33: 33.06828 | W33: 0 | X33: 0 | Y33: 0 | Z33: 49.264152 | AA33: 51.426348 | AB33: 51.184392 | AC33: 0 | AD33: 0 | AE33: 40.822584 | AF33: 43.578384 | AG33: 32.261232 | AH33: 43.578384 | AI33: 45.525816 | AJ33: 0 | AK33: 51.221136 | AL33: 0
C34: Barley
C35: Barley Malting
C36: CanarySeed
C37: Canola-Argentine
C38: Canola-Polish
C39: Canola-Argentine Specialty Oil
C40: Chickpeas-Desi
C41: Chickpeas-Kabuli
C42: FabaBean
C43: Flax
C44: Lentils-Green
C45: Lentils-Red
C46: MixedGrain
C47: Mustard-Brown
C48: Mustard-Oriental
C49: Mustard-Yellow
C50: Oats
C51: Peas,Field
C52: Rye-Fall
C53: Rye-Spring
C54: Safflower
C55: Sunflower Confectionary
C56: Sunflower Oilseed(Sunflower)
C57: Triticale-Spring
C58: Triticale-Winter
C59: Wheat-CanadaPrairieSpring
C60: Wheat-Durum
C61: Wheat-Durum High Protein
C62: Wheat-ExtraStrong
C63: Wheat-HardRedSpring
C64: Wheat-HardRedWinter
C65: Wheat-HardRedSpring High Protein
C66: Wheat-NorthernHardRed
C67: Wheat-SoftWhiteSpring
C68: Wheat-SpecialPurpose
C69: Wheat-SoftWhiteSpring Industrial
C70: 0
C71: 0
C72: 0

Sheet Dry Crop Rates (data) (hidden)
A1: ID | B1: CROP | C1: RA | D1: CL | E1: p rem | F1: prem+
A2: 1Barley60 | B2: Barley | C2: 1 | D2: 60 | E2: 2.22 | F2: 4.76 | I2: Modication History
A3: 1Barley Malting60 | B3: Barley Malting | C3: 1 | D3: 60 | E3: 2.22 | F3: 4.76 | I3: 2020-03-10 | J3: Ilyas Ali | K3: Update Price (spe_dry_crop_extract.sql ) | L3: Completed
A4: 1CanarySeed60 | B4: CanarySeed | C4: 1 | D4: 60 | E4: 2.23 | F4: 5.86
A5: 1Canola-Argentine60 | B5: Canola-Argentine | C5: 1 | D5: 60 | E5: 2.96 | F5: 5.34
A6: 1Canola-Argentine Specialty Oil60 | B6: Canola-Argentine Specialty Oil | C6: 1 | D6: 60 | E6: 3.12 | F6: 5.5
A7: 1Canola-Polish60 | B7: Canola-Polish | C7: 1 | D7: 60 | E7: 5.06 | F7: 7.41
A8: 1Chickpeas-Desi60 | B8: Chickpeas-Desi | C8: 1 | D8: 60 | E8: 9.3 | F8: 11.66
A9: 1Chickpeas-Kabuli60 | B9: Chickpeas-Kabuli | C9: 1 | D9: 60 | E9: 5.88 | F9: 8.25
A10: 1FabaBean60 | B10: FabaBean | C10: 1 | D10: 60 | E10: 3.55 | F10: 6.62
A11: 1Flax60 | B11: Flax | C11: 1 | D11: 60 | E11: 7.14 | F11: 9.67
A12: 1Lentils-Green60 | B12: Lentils-Green | C12: 1 | D12: 60 | E12: 5.77 | F12: 8.34
A13: 1Lentils-Red60 | B13: Lentils-Red | C13: 1 | D13: 60 | E13: 5.31 | F13: 7.88
A14: 1MixedGrain60 | B14: MixedGrain | C14: 1 | D14: 60 | E14: 3 | F14: 5.55
A15: 1Mustard-Brown60 | B15: Mustard-Brown | C15: 1 | D15: 60 | E15: 5.04 | F15: 8.1
A16: 1Mustard-Oriental60 | B16: Mustard-Oriental | C16: 1 | D16: 60 | E16: 5.45 | F16: 8.51
A17: 1Mustard-Yellow60 | B17: Mustard-Yellow | C17: 1 | D17: 60 | E17: 5.17 | F17: 8.25
A18: 1Oats60 | B18: Oats | C18: 1 | D18: 60 | E18: 2.21 | F18: 4.76
A19: 1Peas,Field60 | B19: Peas,Field | C19: 1 | D19: 60 | E19: 3.94 | F19: 6.92
A20: 1Rye-Fall60 | B20: Rye-Fall | C20: 1 | D20: 60 | E20: 5.82 | F20: 8.32
A21: 1Rye-Spring60 | B21: Rye-Spring | C21: 1 | D21: 60 | E21: 4.28 | F21: 6.79
A22: 1Triticale-Spring60 | B22: Triticale-Spring | C22: 1 | D22: 60 | E22: 5.88 | F22: 8.42
A23: 1Triticale-Winter60 | B23: Triticale-Winter | C23: 1 | D23: 60 | E23: 5.17 | F23: 7.71
A24: 1Wheat-CanadaPrairieSpring60 | B24: Wheat-CanadaPrairieSpring | C24: 1 | D24: 60 | E24: 4.19 | F24: 7.8
A25: 1Wheat-Durum60 | B25: Wheat-Durum | C25: 1 | D25: 60 | E25: 4.34 | F25: 8.21
A26: 1Wheat-Durum High Protein60 | B26: Wheat-Durum High Protein | C26: 1 | D26: 60 | E26: 4.56 | F26: 8.43
A27: 1Wheat-ExtraStrong60 | B27: Wheat-ExtraStrong | C27: 1 | D27: 60 | E27: 5.16 | F27: 8.79
A28: 1Wheat-HardRedSpring60 | B28: Wheat-HardRedSpring | C28: 1 | D28: 60 | E28: 2.58 | F28: 6.29
A29: 1Wheat-HardRedSpring High Protein60 | B29: Wheat-HardRedSpring High Protein | C29: 1 | D29: 60 | E29: 3.16 | F29: 6.87
A30: 1Wheat-HardRedWinter60 | B30: Wheat-HardRedWinter | C30: 1 | D30: 60 | E30: 2.18 | F30: 5.77
A31: 1Wheat-NorthernHardRed60 | B31: Wheat-NorthernHardRed | C31: 1 | D31: 60 | E31: 2.58 | F31: 6.29
A32: 1Wheat-SoftWhiteSpring60 | B32: Wheat-SoftWhiteSpring | C32: 1 | D32: 60 | E32: 4.6 | F32: 8.25
A33: 1Wheat-SpecialPurpose60 | B33: Wheat-SpecialPurpose | C33: 1 | D33: 60 | E33: 4.19 | F33: 7.8
A34: 1Barley70 | B34: Barley | C34: 1 | D34: 70 | E34: 3.02 | F34: 5.5
A35: 1Barley Malting70 | B35: Barley Malting | C35: 1 | D35: 70 | E35: 3.02 | F35: 5.5
A36: 1CanarySeed70 | B36: CanarySeed | C36: 1 | D36: 70 | E36: 3.29 | F36: 6.84
A37: 1Canola-Argentine70 | B37: Canola-Argentine | C37: 1 | D37: 70 | E37: 3.97 | F37: 6.29
A38: 1Canola-Argentine Specialty Oil70 | B38: Canola-Argentine Specialty Oil | C38: 1 | D38: 70 | E38: 4.19 | F38: 6.51
A39: 1Canola-Polish70 | B39: Canola-Polish | C39: 1 | D39: 70 | E39: 6.89 | F39: 9.2
A40: 1Chickpeas-Desi70 | B40: Chickpeas-Desi | C40: 1 | D40: 70 | E40: 12.34 | F40: 14.66
A41: 1Chickpeas-Kabuli70 | B41: Chickpeas-Kabuli | C41: 1 | D41: 70 | E41: 7.75 | F41: 10.07
A42: 1FabaBean70 | B42: FabaBean | C42: 1 | D42: 70 | E42: 4.99 | F42: 7.99
A43: 1Flax70 | B43: Flax | C43: 1 | D43: 70 | E43: 10.05 | F43: 12.52
A44: 1Lentils-Green70 | B44: Lentils-Green | C44: 1 | D44: 70 | E44: 7.61 | F44: 10.1
A45: 1Lentils-Red70 | B45: Lentils-Red | C45: 1 | D45: 70 | E45: 6.99 | F45: 9.48
A46: 1MixedGrain70 | B46: MixedGrain | C46: 1 | D46: 70 | E46: 4.14 | F46: 6.62
A47: 1Mustard-Brown70 | B47: Mustard-Brown | C47: 1 | D47: 70 | E47: 7.06 | F47: 10.07
A48: 1Mustard-Oriental70 | B48: Mustard-Oriental | C48: 1 | D48: 70 | E48: 7.66 | F48: 10.67
A49: 1Mustard-Yellow70 | B49: Mustard-Yellow | C49: 1 | D49: 70 | E49: 7.26 | F49: 10.28
A50: 1Oats70 | B50: Oats | C50: 1 | D50: 70 | E50: 2.94 | F50: 5.42
A51: 1Peas,Field70 | B51: Peas,Field | C51: 1 | D51: 70 | E51: 5.34 | F51: 8.29
A52: 1Rye-Fall70 | B52: Rye-Fall | C52: 1 | D52: 70 | E52: 8.2 | F52: 10.65
A53: 1Rye-Spring70 | B53: Rye-Spring | C53: 1 | D53: 70 | E53: 6.05 | F53: 8.51
A54: 1Triticale-Spring70 | B54: Triticale-Spring | C54: 1 | D54: 70 | E54: 8.41 | F54: 10.88
A55: 1Triticale-Winter70 | B55: Triticale-Winter | C55: 1 | D55: 70 | E55: 7.38 | F55: 9.85
A56: 1Wheat-CanadaPrairieSpring70 | B56: Wheat-CanadaPrairieSpring | C56: 1 | D56: 70 | E56: 5.96 | F56: 9.51
A57: 1Wheat-Durum70 | B57: Wheat-Durum | C57: 1 | D57: 70 | E57: 6.51 | F57: 10.21
A58: 1Wheat-Durum High Protein70 | B58: Wheat-Durum High Protein | C58: 1 | D58: 70 | E58: 6.76 | F58: 10.46
A59: 1Wheat-ExtraStrong70 | B59: Wheat-ExtraStrong | C59: 1 | D59: 70 | E59: 7.37 | F59: 10.93
A60: 1Wheat-HardRedSpring70 | B60: Wheat-HardRedSpring | C60: 1 | D60: 70 | E60: 3.58 | F60: 7.18
A61: 1Wheat-HardRedSpring High Protein70 | B61: Wheat-HardRedSpring High Protein | C61: 1 | D61: 70 | E61: 4.21 | F61: 7.81
A62: 1Wheat-HardRedWinter70 | B62: Wheat-HardRedWinter | C62: 1 | D62: 70 | E62: 2.91 | F62: 6.44
A63: 1Wheat-NorthernHardRed70 | B63: Wheat-NorthernHardRed | C63: 1 | D63: 70 | E63: 3.57 | F63: 7.17
A64: 1Wheat-SoftWhiteSpring70 | B64: Wheat-SoftWhiteSpring | C64: 1 | D64: 70 | E64: 6.61 | F64: 10.18
A65: 1Wheat-SpecialPurpose70 | B65: Wheat-SpecialPurpose | C65: 1 | D65: 70 | E65: 5.96 | F65: 9.51
A66: 1Barley80 | B66: Barley | C66: 1 | D66: 80 | E66: 4.04 | F66: 6.42
A67: 1Barley Malting80 | B67: Barley Malting | C67: 1 | D67: 80 | E67: 4.04 | F67: 6.42
A68: 1Canola-Argentine80 | B68: Canola-Argentine | C68: 1 | D68: 80 | E68: 5.24 | F68: 7.49
A69: 1Canola-Argentine Specialty Oil80 | B69: Canola-Argentine Specialty Oil | C69: 1 | D69: 80 | E69: 5.53 | F69: 7.78
A70: 1Canola-Polish80 | B70: Canola-Polish | C70: 1 | D70: 80 | E70: 9.19 | F70: 11.44
A71: 1Chickpeas-Desi80 | B71: Chickpeas-Desi | C71: 1 | D71: 80 | E71: 16.13 | F71: 18.38
A72: 1Chickpeas-Kabuli80 | B72: Chickpeas-Kabuli | C72: 1 | D72: 80 | E72: 10.1 | F72: 12.35
A73: 1FabaBean80 | B73: FabaBean | C73: 1 | D73: 80 | E73: 6.79 | F73: 9.68
A74: 1Flax80 | B74: Flax | C74: 1 | D74: 80 | E74: 13.62 | F74: 16
A75: 1Lentils-Green80 | B75: Lentils-Green | C75: 1 | D75: 80 | E75: 9.92 | F75: 12.3
A76: 1Lentils-Red80 | B76: Lentils-Red | C76: 1 | D76: 80 | E76: 9.09 | F76: 11.47
A77: 1MixedGrain80 | B77: MixedGrain | C77: 1 | D77: 80 | E77: 5.6 | F77: 7.98
A78: 1Mustard-Brown80 | B78: Mustard-Brown | C78: 1 | D78: 80 | E78: 9.63 | F78: 12.56
A79: 1Mustard-Oriental80 | B79: Mustard-Oriental | C79: 1 | D79: 80 | E79: 10.46 | F79: 13.39
A80: 1Mustard-Yellow80 | B80: Mustard-Yellow | C80: 1 | D80: 80 | E80: 9.91 | F80: 12.84
A81: 1Oats80 | B81: Oats | C81: 1 | D81: 80 | E81: 3.86 | F81: 6.24
A82: 1Peas,Field80 | B82: Peas,Field | C82: 1 | D82: 80 | E82: 7.11 | F82: 10
A83: 1Rye-Fall80 | B83: Rye-Fall | C83: 1 | D83: 80 | E83: 11.16 | F83: 13.54
A84: 1Rye-Spring80 | B84: Rye-Spring | C84: 1 | D84: 80 | E84: 8.29 | F84: 10.67
A85: 1Triticale-Spring80 | B85: Triticale-Spring | C85: 1 | D85: 80 | E85: 11.6 | F85: 13.98
A86: 1Triticale-Winter80 | B86: Triticale-Winter | C86: 1 | D86: 80 | E86: 10.15 | F86: 12.53
A87: 1Wheat-CanadaPrairieSpring80 | B87: Wheat-CanadaPrairieSpring | C87: 1 | D87: 80 | E87: 8.2 | F87: 11.65
A88: 1Wheat-Durum80 | B88: Wheat-Durum | C88: 1 | D88: 80 | E88: 9.3 | F88: 12.75
A89: 1Wheat-Durum High Protein80 | B89: Wheat-Durum High Protein | C89: 1 | D89: 80 | E89: 9.6 | F89: 13.05
A90: 1Wheat-ExtraStrong80 | B90: Wheat-ExtraStrong | C90: 1 | D90: 80 | E90: 10.18 | F90: 13.63
A91: 1Wheat-HardRedSpring80 | B91: Wheat-HardRedSpring | C91: 1 | D91: 80 | E91: 4.84 | F91: 8.29
A92: 1Wheat-HardRedSpring High Protein80 | B92: Wheat-HardRedSpring High Protein | C92: 1 | D92: 80 | E92: 5.56 | F92: 9.01
A93: 1Wheat-HardRedWinter80 | B93: Wheat-HardRedWinter | C93: 1 | D93: 80 | E93: 3.85 | F93: 7.3
A94: 1Wheat-NorthernHardRed80 | B94: Wheat-NorthernHardRed | C94: 1 | D94: 80 | E94: 4.83 | F94: 8.28
A95: 1Wheat-SoftWhiteSpring80 | B95: Wheat-SoftWhiteSpring | C95: 1 | D95: 80 | E95: 9.2 | F95: 12.65
A96: 1Wheat-SpecialPurpose80 | B96: Wheat-SpecialPurpose | C96: 1 | D96: 80 | E96: 8.21 | F96: 11.66
A97: 2Barley60 | B97: Barley | C97: 2 | D97: 60 | E97: 2.45 | F97: 4.99
A98: 2Barley Malting60 | B98: Barley Malting | C98: 2 | D98: 60 | E98: 2.45 | F98: 4.99
A99: 2CanarySeed60 | B99: CanarySeed | C99: 2 | D99: 60 | E99: 6.71 | F99: 10.47
A100: 2Canola-Argentine60 | B100: Canola-Argentine | C100: 2 | D100: 60 | E100: 4.03 | F100: 6.45
A101: 2Canola-Argentine Specialty Oil60 | B101: Canola-Argentine Specialty Oil | C101: 2 | D101: 60 | E101: 4.25 | F101: 6.67
A102: 2Canola-Polish60 | B102: Canola-Polish | C102: 2 | D102: 60 | E102: 4.37 | F102: 6.75
A103: 2FabaBean60 | B103: FabaBean | C103: 2 | D103: 60 | E103: 7.46 | F103: 10.61
A104: 2Flax60 | B104: Flax | C104: 2 | D104: 60 | E104: 4.37 | F104: 6.98
A105: 2Lentils-Green60 | B105: Lentils-Green | C105: 2 | D105: 60 | E105: 3.83 | F105: 6.39
A106: 2Lentils-Red60 | B106: Lentils-Red | C106: 2 | D106: 60 | E106: 3.52 | F106: 6.08
A107: 2MixedGrain60 | B107: MixedGrain | C107: 2 | D107: 60 | E107: 4.02 | F107: 6.56
A108: 2Mustard-Brown60 | B108: Mustard-Brown | C108: 2 | D108: 60 | E108: 4.19 | F108: 7.35
A109: 2Mustard-Oriental60 | B109: Mustard-Oriental | C109: 2 | D109: 60 | E109: 5.19 | F109: 8.33
A110: 2Mustard-Yellow60 | B110: Mustard-Yellow | C110: 2 | D110: 60 | E110: 3.05 | F110: 6.13
A111: 2Oats60 | B111: Oats | C111: 2 | D111: 60 | E111: 3.17 | F111: 5.68
A112: 2Peas,Field60 | B112: Peas,Field | C112: 2 | D112: 60 | E112: 3.94 | F112: 6.92
A113: 2Rye-Fall60 | B113: Rye-Fall | C113: 2 | D113: 60 | E113: 2.26 | F113: 4.77
A114: 2Rye-Spring60 | B114: Rye-Spring | C114: 2 | D114: 60 | E114: 6.21 | F114: 8.82
A115: 2Safflower60 | B115: Safflower | C115: 2 | D115: 60 | E115: 5.17 | F115: 7.54
A116: 2Sunflower Confectionary60 | B116: Sunflower Confectionary | C116: 2 | D116: 60 | E116: 3.87 | F116: 6.21
A117: 2Sunflower Oilseed(Sunflower)60 | B117: Sunflower Oilseed(Sunflower) | C117: 2 | D117: 60 | E117: 3.58 | F117: 5.94
A118: 2Triticale-Spring60 | B118: Triticale-Spring | C118: 2 | D118: 60 | E118: 2.86 | F118: 5.39
A119: 2Triticale-Winter60 | B119: Triticale-Winter | C119: 2 | D119: 60 | E119: 2.72 | F119: 5.22
A120: 2Wheat-CanadaPrairieSpring60 | B120: Wheat-CanadaPrairieSpring | C120: 2 | D120: 60 | E120: 3.69 | F120: 7.37
A121: 2Wheat-Durum60 | B121: Wheat-Durum | C121: 2 | D121: 60 | E121: 2.54 | F121: 6.24
A122: 2Wheat-Durum High Protein60 | B122: Wheat-Durum High Protein | C122: 2 | D122: 60 | E122: 2.54 | F122: 6.24
A123: 2Wheat-ExtraStrong60 | B123: Wheat-ExtraStrong | C123: 2 | D123: 60 | E123: 4.26 | F123: 7.93
A124: 2Wheat-HardRedSpring60 | B124: Wheat-HardRedSpring | C124: 2 | D124: 60 | E124: 2.05 | F124: 5.72
A125: 2Wheat-HardRedSpring High Protein60 | B125: Wheat-HardRedSpring High Protein | C125: 2 | D125: 60 | E125: 2.05 | F125: 5.72
A126: 2Wheat-HardRedWinter60 | B126: Wheat-HardRedWinter | C126: 2 | D126: 60 | E126: 2.05 | F126: 5.68
A127: 2Wheat-NorthernHardRed60 | B127: Wheat-NorthernHardRed | C127: 2 | D127: 60 | E127: 2.14 | F127: 5.81
A128: 2Wheat-SoftWhiteSpring60 | B128: Wheat-SoftWhiteSpring | C128: 2 | D128: 60 | E128: 2.01 | F128: 5.65
A129: 2Wheat-SpecialPurpose60 | B129: Wheat-SpecialPurpose | C129: 2 | D129: 60 | E129: 3.61 | F129: 7.29
A130: 2Barley70 | B130: Barley | C130: 2 | D130: 70 | E130: 3.38 | F130: 5.85
A131: 2Barley Malting70 | B131: Barley Malting | C131: 2 | D131: 70 | E131: 3.38 | F131: 5.85
A132: 2CanarySeed70 | B132: CanarySeed | C132: 2 | D132: 70 | E132: 9.63 | F132: 13.26
A133: 2Canola-Argentine70 | B133: Canola-Argentine | C133: 2 | D133: 70 | E133: 5.44 | F133: 7.79
A134: 2Canola-Argentine Specialty Oil70 | B134: Canola-Argentine Specialty Oil | C134: 2 | D134: 70 | E134: 5.74 | F134: 8.09
A135: 2Canola-Polish70 | B135: Canola-Polish | C135: 2 | D135: 70 | E135: 5.9 | F135: 8.23
A136: 2FabaBean70 | B136: FabaBean | C136: 2 | D136: 70 | E136: 10.75 | F136: 13.79
A137: 2Flax70 | B137: Flax | C137: 2 | D137: 70 | E137: 5.99 | F137: 8.51
A138: 2Lentils-Green70 | B138: Lentils-Green | C138: 2 | D138: 70 | E138: 5.22 | F138: 7.71
A139: 2Lentils-Red70 | B139: Lentils-Red | C139: 2 | D139: 70 | E139: 4.78 | F139: 7.27
A140: 2MixedGrain70 | B140: MixedGrain | C140: 2 | D140: 70 | E140: 5.67 | F140: 8.15
A141: 2Mustard-Brown70 | B141: Mustard-Brown | C141: 2 | D141: 70 | E141: 5.85 | F141: 8.92
A142: 2Mustard-Oriental70 | B142: Mustard-Oriental | C142: 2 | D142: 70 | E142: 7.28 | F142: 10.33
A143: 2Mustard-Yellow70 | B143: Mustard-Yellow | C143: 2 | D143: 70 | E143: 4.22 | F143: 7.24
A144: 2Oats70 | B144: Oats | C144: 2 | D144: 70 | E144: 4.28 | F144: 6.74
A145: 2Peas,Field70 | B145: Peas,Field | C145: 2 | D145: 70 | E145: 5.34 | F145: 8.29
A146: 2Rye-Fall70 | B146: Rye-Fall | C146: 2 | D146: 70 | E146: 3.11 | F146: 5.56
A147: 2Rye-Spring70 | B147: Rye-Spring | C147: 2 | D147: 70 | E147: 8.55 | F147: 11.07
A148: 2Safflower70 | B148: Safflower | C148: 2 | D148: 70 | E148: 6.65 | F148: 8.97
A149: 2Sunflower Confectionary70 | B149: Sunflower Confectionary | C149: 2 | D149: 70 | E149: 5.28 | F149: 7.59
A150: 2Sunflower Oilseed(Sunflower)70 | B150: Sunflower Oilseed(Sunflower) | C150: 2 | D150: 70 | E150: 4.8 | F150: 7.12
A151: 2Triticale-Spring70 | B151: Triticale-Spring | C151: 2 | D151: 70 | E151: 4.04 | F151: 6.51
A152: 2Triticale-Winter70 | B152: Triticale-Winter | C152: 2 | D152: 70 | E152: 3.84 | F152: 6.29
A153: 2Wheat-CanadaPrairieSpring70 | B153: Wheat-CanadaPrairieSpring | C153: 2 | D153: 70 | E153: 5.22 | F153: 8.8
A154: 2Wheat-Durum70 | B154: Wheat-Durum | C154: 2 | D154: 70 | E154: 3.53 | F154: 7.13
A155: 2Wheat-Durum High Protein70 | B155: Wheat-Durum High Protein | C155: 2 | D155: 70 | E155: 3.53 | F155: 7.13
A156: 2Wheat-ExtraStrong70 | B156: Wheat-ExtraStrong | C156: 2 | D156: 70 | E156: 6.06 | F156: 9.64
A157: 2Wheat-HardRedSpring70 | B157: Wheat-HardRedSpring | C157: 2 | D157: 70 | E157: 2.83 | F157: 6.41
A158: 2Wheat-HardRedSpring High Protein70 | B158: Wheat-HardRedSpring High Protein | C158: 2 | D158: 70 | E158: 2.83 | F158: 6.41
A159: 2Wheat-HardRedWinter70 | B159: Wheat-HardRedWinter | C159: 2 | D159: 70 | E159: 2.73 | F159: 6.29
A160: 2Wheat-NorthernHardRed70 | B160: Wheat-NorthernHardRed | C160: 2 | D160: 70 | E160: 2.96 | F160: 6.54
A161: 2Wheat-SoftWhiteSpring70 | B161: Wheat-SoftWhiteSpring | C161: 2 | D161: 70 | E161: 2.83 | F161: 6.39
A162: 2Wheat-SpecialPurpose70 | B162: Wheat-SpecialPurpose | C162: 2 | D162: 70 | E162: 5.11 | F162: 8.69
A163: 2Barley80 | B163: Barley | C163: 2 | D163: 80 | E163: 4.57 | F163: 6.95
A164: 2Barley Malting80 | B164: Barley Malting | C164: 2 | D164: 80 | E164: 4.57 | F164: 6.95
A165: 2Canola-Argentine80 | B165: Canola-Argentine | C165: 2 | D165: 80 | E165: 7.19 | F165: 9.44
A166: 2Canola-Argentine Specialty Oil80 | B166: Canola-Argentine Specialty Oil | C166: 2 | D166: 80 | E166: 7.59 | F166: 9.84
A167: 2Canola-Polish80 | B167: Canola-Polish | C167: 2 | D167: 80 | E167: 7.81 | F167: 10.06
A168: 2FabaBean80 | B168: FabaBean | C168: 2 | D168: 80 | E168: 14.86 | F168: 17.75
A169: 2Flax80 | B169: Flax | C169: 2 | D169: 80 | E169: 7.98 | F169: 10.36
A170: 2Lentils-Green80 | B170: Lentils-Green | C170: 2 | D170: 80 | E170: 6.93 | F170: 9.31
A171: 2Lentils-Red80 | B171: Lentils-Red | C171: 2 | D171: 80 | E171: 6.34 | F171: 8.72
A172: 2MixedGrain80 | B172: MixedGrain | C172: 2 | D172: 80 | E172: 7.76 | F172: 10.14
A173: 2Mustard-Brown80 | B173: Mustard-Brown | C173: 2 | D173: 80 | E173: 7.96 | F173: 10.89
A174: 2Mustard-Oriental80 | B174: Mustard-Oriental | C174: 2 | D174: 80 | E174: 9.93 | F174: 12.86
A175: 2Mustard-Yellow80 | B175: Mustard-Yellow | C175: 2 | D175: 80 | E175: 5.71 | F175: 8.64
A176: 2Oats80 | B176: Oats | C176: 2 | D176: 80 | E176: 5.65 | F176: 8.03
A177: 2Peas,Field80 | B177: Peas,Field | C177: 2 | D177: 80 | E177: 7.11 | F177: 10
A178: 2Rye-Fall80 | B178: Rye-Fall | C178: 2 | D178: 80 | E178: 4.19 | F178: 6.57
A179: 2Rye-Spring80 | B179: Rye-Spring | C179: 2 | D179: 80 | E179: 11.54 | F179: 13.92
A180: 2Safflower80 | B180: Safflower | C180: 2 | D180: 80 | E180: 8.4 | F180: 10.65
A181: 2Sunflower Confectionary80 | B181: Sunflower Confectionary | C181: 2 | D181: 80 | E181: 7.08 | F181: 9.33
A182: 2Sunflower Oilseed(Sunflower)80 | B182: Sunflower Oilseed(Sunflower) | C182: 2 | D182: 80 | E182: 6.33 | F182: 8.58
A183: 2Triticale-Spring80 | B183: Triticale-Spring | C183: 2 | D183: 80 | E183: 5.55 | F183: 7.93
A184: 2Triticale-Winter80 | B184: Triticale-Winter | C184: 2 | D184: 80 | E184: 5.26 | F184: 7.64
A185: 2Wheat-CanadaPrairieSpring80 | B185: Wheat-CanadaPrairieSpring | C185: 2 | D185: 80 | E185: 7.18 | F185: 10.63
A186: 2Wheat-Durum80 | B186: Wheat-Durum | C186: 2 | D186: 80 | E186: 4.79 | F186: 8.24
A187: 2Wheat-Durum High Protein80 | B187: Wheat-Durum High Protein | C187: 2 | D187: 80 | E187: 4.79 | F187: 8.24
A188: 2Wheat-ExtraStrong80 | B188: Wheat-ExtraStrong | C188: 2 | D188: 80 | E188: 8.35 | F188: 11.8
A189: 2Wheat-HardRedSpring80 | B189: Wheat-HardRedSpring | C189: 2 | D189: 80 | E189: 3.83 | F189: 7.28
A190: 2Wheat-HardRedSpring High Protein80 | B190: Wheat-HardRedSpring High Protein | C190: 2 | D190: 80 | E190: 3.83 | F190: 7.28
A191: 2Wheat-HardRedWinter80 | B191: Wheat-HardRedWinter | C191: 2 | D191: 80 | E191: 3.6 | F191: 7.05
A192: 2Wheat-NorthernHardRed80 | B192: Wheat-NorthernHardRed | C192: 2 | D192: 80 | E192: 4.01 | F192: 7.46
A193: 2Wheat-SoftWhiteSpring80 | B193: Wheat-SoftWhiteSpring | C193: 2 | D193: 80 | E193: 3.92 | F193: 7.37
A194: 2Wheat-SpecialPurpose80 | B194: Wheat-SpecialPurpose | C194: 2 | D194: 80 | E194: 7.03 | F194: 10.48
A195: 3Barley60 | B195: Barley | C195: 3 | D195: 60 | E195: 2.92 | F195: 5.47
A196: 3Barley Malting60 | B196: Barley Malting | C196: 3 | D196: 60 | E196: 2.92 | F196: 5.47
A197: 3CanarySeed60 | B197: CanarySeed | C197: 3 | D197: 60 | E197: 6.71 | F197: 10.47
A198: 3Canola-Argentine60 | B198: Canola-Argentine | C198: 3 | D198: 60 | E198: 3.47 | F198: 5.86
A199: 3Canola-Argentine Specialty Oil60 | B199: Canola-Argentine Specialty Oil | C199: 3 | D199: 60 | E199: 3.66 | F199: 6.05
A200: 3Canola-Polish60 | B200: Canola-Polish | C200: 3 | D200: 60 | E200: 4.98 | F200: 7.34
... 1582 more rows

Sheet Dry Silage Normals (data) (hidden)
A1: a | B1: b | C1: c | D1: d | E1: e
B2: BarleyProxy | C2: BarleyProxy(Corn) | D2: LOM(Barley) | E2: LOM(Corn)
A3: spring Price | B3: =+'Dry Crop Normals (data)'!C11 -> 4.876168012 | C3: =+Table_Query_from_Excel_Files5[[#This Row],[b]] -> 4.876168012 | D3: =+Table_Query_from_Excel_Files5[[#This Row],[b]] -> 4.876168012 | E3: =+Table_Query_from_Excel_Files5[[#This Row],[b]] -> 4.876168012 | I3: Modication History
A4: 1 | B4: =+'Dry Crop Normals (data)'!C12 -> 51.940376 | C4: =Table_Query_from_Excel_Files5[[#This Row],[b]] -> 51.940376 | D4: =+Table_Query_from_Excel_Files5[[#This Row],[b]] -> 51.940376 | E4: =+Table_Query_from_Excel_Files5[[#This Row],[b]] -> 51.940376 | G4: =IF(Table_Query_from_Excel_Files5[[#This Row],[b]]=Table_Query_from_Excel_Files5[[#This Row],[c]],"",1) ->  | H4: =IF(Table_Query_from_Excel_Files5[[#This Row],[c]]=Table_Query_from_Excel_Files5[[#This Row],[d]],"",2) ->  | I4: 2020-03-10 | J4: Ilyas Ali | K4: Update Price (Barley Fallow - provided by business ) | L4: Completed
A5: 2 | B5: =+'Dry Crop Normals (data)'!C13 -> 59.039188 | C5: =Table_Query_from_Excel_Files5[[#This Row],[b]] -> 59.039188 | D5: =+Table_Query_from_Excel_Files5[[#This Row],[b]] -> 59.039188 | E5: =+Table_Query_from_Excel_Files5[[#This Row],[b]] -> 59.039188 | G5: =IF(Table_Query_from_Excel_Files5[[#This Row],[b]]=Table_Query_from_Excel_Files5[[#This Row],[c]],"",1) ->  | H5: =IF(Table_Query_from_Excel_Files5[[#This Row],[c]]=Table_Query_from_Excel_Files5[[#This Row],[d]],"",2) ->  | K5: Future - This sheet auto populates Barley data from 'Dry Crop Normal'Data'
A6: 3 | B6: =+'Dry Crop Normals (data)'!C14 -> 58.64236 | C6: =Table_Query_from_Excel_Files5[[#This Row],[b]] -> 58.64236 | D6: =+Table_Query_from_Excel_Files5[[#This Row],[b]] -> 58.64236 | E6: =+Table_Query_from_Excel_Files5[[#This Row],[b]] -> 58.64236 | G6: =IF(Table_Query_from_Excel_Files5[[#This Row],[b]]=Table_Query_from_Excel_Files5[[#This Row],[c]],"",1) ->  | H6: =IF(Table_Query_from_Excel_Files5[[#This Row],[c]]=Table_Query_from_Excel_Files5[[#This Row],[d]],"",2) -> 
A7: 4 | B7: =+'Dry Crop Normals (data)'!C15 -> 45.282484 | C7: =Table_Query_from_Excel_Files5[[#This Row],[b]] -> 45.282484 | D7: =+Table_Query_from_Excel_Files5[[#This Row],[b]] -> 45.282484 | E7: =+Table_Query_from_Excel_Files5[[#This Row],[b]] -> 45.282484 | G7: =IF(Table_Query_from_Excel_Files5[[#This Row],[b]]=Table_Query_from_Excel_Files5[[#This Row],[c]],"",1) ->  | H7: =IF(Table_Query_from_Excel_Files5[[#This Row],[c]]=Table_Query_from_Excel_Files5[[#This Row],[d]],"",2) -> 
A8: 5 | B8: =+'Dry Crop Normals (data)'!C16 -> 63.316112 | C8: =Table_Query_from_Excel_Files5[[#This Row],[b]] -> 63.316112 | D8: =+Table_Query_from_Excel_Files5[[#This Row],[b]] -> 63.316112 | E8: =+Table_Query_from_Excel_Files5[[#This Row],[b]] -> 63.316112 | G8: =IF(Table_Query_from_Excel_Files5[[#This Row],[b]]=Table_Query_from_Excel_Files5[[#This Row],[c]],"",1) ->  | H8: =IF(Table_Query_from_Excel_Files5[[#This Row],[c]]=Table_Query_from_Excel_Files5[[#This Row],[d]],"",2) -> 
A9: 6 | B9: =+'Dry Crop Normals (data)'!C17 -> 65.300252 | C9: =Table_Query_from_Excel_Files5[[#This Row],[b]] -> 65.300252 | D9: =+Table_Query_from_Excel_Files5[[#This Row],[b]] -> 65.300252 | E9: =+Table_Query_from_Excel_Files5[[#This Row],[b]] -> 65.300252 | G9: =IF(Table_Query_from_Excel_Files5[[#This Row],[b]]=Table_Query_from_Excel_Files5[[#This Row],[c]],"",1) ->  | H9: =IF(Table_Query_from_Excel_Files5[[#This Row],[c]]=Table_Query_from_Excel_Files5[[#This Row],[d]],"",2) -> 
A10: 7 | B10: =+'Dry Crop Normals (data)'!C18 -> 78.748312 | C10: =Table_Query_from_Excel_Files5[[#This Row],[b]] -> 78.748312 | D10: =+Table_Query_from_Excel_Files5[[#This Row],[b]] -> 78.748312 | E10: =+Table_Query_from_Excel_Files5[[#This Row],[b]] -> 78.748312 | G10: =IF(Table_Query_from_Excel_Files5[[#This Row],[b]]=Table_Query_from_Excel_Files5[[#This Row],[c]],"",1) ->  | H10: =IF(Table_Query_from_Excel_Files5[[#This Row],[c]]=Table_Query_from_Excel_Files5[[#This Row],[d]],"",2) -> 
A11: 8 | B11: =+'Dry Crop Normals (data)'!C19 -> 70.679476 | C11: =Table_Query_from_Excel_Files5[[#This Row],[b]] -> 70.679476 | D11: =+Table_Query_from_Excel_Files5[[#This Row],[b]] -> 70.679476 | E11: =+Table_Query_from_Excel_Files5[[#This Row],[b]] -> 70.679476 | G11: =IF(Table_Query_from_Excel_Files5[[#This Row],[b]]=Table_Query_from_Excel_Files5[[#This Row],[c]],"",1) ->  | H11: =IF(Table_Query_from_Excel_Files5[[#This Row],[c]]=Table_Query_from_Excel_Files5[[#This Row],[d]],"",2) ->  | I11: =IF(Table_Query_from_Excel_Files5[[#This Row],[d]]=Table_Query_from_Excel_Files5[[#This Row],[e]],"",3) -> 
A12: 9 | B12: =+'Dry Crop Normals (data)'!C20 -> 45.1943 | C12: =Table_Query_from_Excel_Files5[[#This Row],[b]] -> 45.1943 | D12: =+Table_Query_from_Excel_Files5[[#This Row],[b]] -> 45.1943 | E12: =+Table_Query_from_Excel_Files5[[#This Row],[b]] -> 45.1943 | G12: =IF(Table_Query_from_Excel_Files5[[#This Row],[b]]=Table_Query_from_Excel_Files5[[#This Row],[c]],"",1) ->  | H12: =IF(Table_Query_from_Excel_Files5[[#This Row],[c]]=Table_Query_from_Excel_Files5[[#This Row],[d]],"",2) ->  | I12: =IF(Table_Query_from_Excel_Files5[[#This Row],[d]]=Table_Query_from_Excel_Files5[[#This Row],[e]],"",3) -> 
A13: 10 | B13: =+'Dry Crop Normals (data)'!C21 -> 67.637128 | C13: =Table_Query_from_Excel_Files5[[#This Row],[b]] -> 67.637128 | D13: =+Table_Query_from_Excel_Files5[[#This Row],[b]] -> 67.637128 | E13: =+Table_Query_from_Excel_Files5[[#This Row],[b]] -> 67.637128 | G13: =IF(Table_Query_from_Excel_Files5[[#This Row],[b]]=Table_Query_from_Excel_Files5[[#This Row],[c]],"",1) ->  | H13: =IF(Table_Query_from_Excel_Files5[[#This Row],[c]]=Table_Query_from_Excel_Files5[[#This Row],[d]],"",2) ->  | I13: =IF(Table_Query_from_Excel_Files5[[#This Row],[d]]=Table_Query_from_Excel_Files5[[#This Row],[e]],"",3) -> 
A14: 11 | B14: =+'Dry Crop Normals (data)'!C22 -> 76.27916 | C14: =Table_Query_from_Excel_Files5[[#This Row],[b]] -> 76.27916 | D14: =+Table_Query_from_Excel_Files5[[#This Row],[b]] -> 76.27916 | E14: =+Table_Query_from_Excel_Files5[[#This Row],[b]] -> 76.27916 | G14: =IF(Table_Query_from_Excel_Files5[[#This Row],[b]]=Table_Query_from_Excel_Files5[[#This Row],[c]],"",1) ->  | H14: =IF(Table_Query_from_Excel_Files5[[#This Row],[c]]=Table_Query_from_Excel_Files5[[#This Row],[d]],"",2) ->  | I14: =IF(Table_Query_from_Excel_Files5[[#This Row],[d]]=Table_Query_from_Excel_Files5[[#This Row],[e]],"",3) -> 
A15: 12 | B15: =+'Dry Crop Normals (data)'!C23 -> 65.47662 | C15: =Table_Query_from_Excel_Files5[[#This Row],[b]] -> 65.47662 | D15: =+Table_Query_from_Excel_Files5[[#This Row],[b]] -> 65.47662 | E15: =+Table_Query_from_Excel_Files5[[#This Row],[b]] -> 65.47662 | G15: =IF(Table_Query_from_Excel_Files5[[#This Row],[b]]=Table_Query_from_Excel_Files5[[#This Row],[c]],"",1) ->  | H15: =IF(Table_Query_from_Excel_Files5[[#This Row],[c]]=Table_Query_from_Excel_Files5[[#This Row],[d]],"",2) ->  | I15: =IF(Table_Query_from_Excel_Files5[[#This Row],[d]]=Table_Query_from_Excel_Files5[[#This Row],[e]],"",3) -> 
A16: 13 | B16: =+'Dry Crop Normals (data)'!C24 -> 62.522456 | C16: =Table_Query_from_Excel_Files5[[#This Row],[b]] -> 62.522456 | D16: =+Table_Query_from_Excel_Files5[[#This Row],[b]] -> 62.522456 | E16: =+Table_Query_from_Excel_Files5[[#This Row],[b]] -> 62.522456 | G16: =IF(Table_Query_from_Excel_Files5[[#This Row],[b]]=Table_Query_from_Excel_Files5[[#This Row],[c]],"",1) ->  | H16: =IF(Table_Query_from_Excel_Files5[[#This Row],[c]]=Table_Query_from_Excel_Files5[[#This Row],[d]],"",2) ->  | I16: =IF(Table_Query_from_Excel_Files5[[#This Row],[d]]=Table_Query_from_Excel_Files5[[#This Row],[e]],"",3) -> 
A17: 14 | B17: =+'Dry Crop Normals (data)'!C25 -> 62.037444 | C17: =Table_Query_from_Excel_Files5[[#This Row],[b]] -> 62.037444 | D17: =+Table_Query_from_Excel_Files5[[#This Row],[b]] -> 62.037444 | E17: =+Table_Query_from_Excel_Files5[[#This Row],[b]] -> 62.037444 | G17: =IF(Table_Query_from_Excel_Files5[[#This Row],[b]]=Table_Query_from_Excel_Files5[[#This Row],[c]],"",1) ->  | H17: =IF(Table_Query_from_Excel_Files5[[#This Row],[c]]=Table_Query_from_Excel_Files5[[#This Row],[d]],"",2) ->  | I17: =IF(Table_Query_from_Excel_Files5[[#This Row],[d]]=Table_Query_from_Excel_Files5[[#This Row],[e]],"",3) -> 
A18: 15 | B18: =+'Dry Crop Normals (data)'!C26 -> 66.843472 | C18: =Table_Query_from_Excel_Files5[[#This Row],[b]] -> 66.843472 | D18: =+Table_Query_from_Excel_Files5[[#This Row],[b]] -> 66.843472 | E18: =+Table_Query_from_Excel_Files5[[#This Row],[b]] -> 66.843472 | G18: =IF(Table_Query_from_Excel_Files5[[#This Row],[b]]=Table_Query_from_Excel_Files5[[#This Row],[c]],"",1) ->  | H18: =IF(Table_Query_from_Excel_Files5[[#This Row],[c]]=Table_Query_from_Excel_Files5[[#This Row],[d]],"",2) ->  | I18: =IF(Table_Query_from_Excel_Files5[[#This Row],[d]]=Table_Query_from_Excel_Files5[[#This Row],[e]],"",3) -> 
A19: 16 | B19: =+'Dry Crop Normals (data)'!C27 -> 54.321344 | C19: =Table_Query_from_Excel_Files5[[#This Row],[b]] -> 54.321344 | D19: =+Table_Query_from_Excel_Files5[[#This Row],[b]] -> 54.321344 | E19: =+Table_Query_from_Excel_Files5[[#This Row],[b]] -> 54.321344 | G19: =IF(Table_Query_from_Excel_Files5[[#This Row],[b]]=Table_Query_from_Excel_Files5[[#This Row],[c]],"",1) ->  | H19: =IF(Table_Query_from_Excel_Files5[[#This Row],[c]]=Table_Query_from_Excel_Files5[[#This Row],[d]],"",2) ->  | I19: =IF(Table_Query_from_Excel_Files5[[#This Row],[d]]=Table_Query_from_Excel_Files5[[#This Row],[e]],"",3) -> 
A20: 17 | B20: =+'Dry Crop Normals (data)'!C28 -> 55.952748 | C20: =Table_Query_from_Excel_Files5[[#This Row],[b]] -> 55.952748 | D20: =+Table_Query_from_Excel_Files5[[#This Row],[b]] -> 55.952748 | E20: =+Table_Query_from_Excel_Files5[[#This Row],[b]] -> 55.952748 | G20: =IF(Table_Query_from_Excel_Files5[[#This Row],[b]]=Table_Query_from_Excel_Files5[[#This Row],[c]],"",1) ->  | H20: =IF(Table_Query_from_Excel_Files5[[#This Row],[c]]=Table_Query_from_Excel_Files5[[#This Row],[d]],"",2) ->  | I20: =IF(Table_Query_from_Excel_Files5[[#This Row],[d]]=Table_Query_from_Excel_Files5[[#This Row],[e]],"",3) -> 
A21: 18 | B21: =+'Dry Crop Normals (data)'!C29 -> 56.966864 | C21: =Table_Query_from_Excel_Files5[[#This Row],[b]] -> 56.966864 | D21: =+Table_Query_from_Excel_Files5[[#This Row],[b]] -> 56.966864 | E21: =+Table_Query_from_Excel_Files5[[#This Row],[b]] -> 56.966864 | G21: =IF(Table_Query_from_Excel_Files5[[#This Row],[b]]=Table_Query_from_Excel_Files5[[#This Row],[c]],"",1) ->  | H21: =IF(Table_Query_from_Excel_Files5[[#This Row],[c]]=Table_Query_from_Excel_Files5[[#This Row],[d]],"",2) ->  | I21: =IF(Table_Query_from_Excel_Files5[[#This Row],[d]]=Table_Query_from_Excel_Files5[[#This Row],[e]],"",3) -> 
A22: 19 | B22: =+'Dry Crop Normals (data)'!C30 -> 66.005724 | C22: =Table_Query_from_Excel_Files5[[#This Row],[b]] -> 66.005724 | D22: =+Table_Query_from_Excel_Files5[[#This Row],[b]] -> 66.005724 | E22: =+Table_Query_from_Excel_Files5[[#This Row],[b]] -> 66.005724 | G22: =IF(Table_Query_from_Excel_Files5[[#This Row],[b]]=Table_Query_from_Excel_Files5[[#This Row],[c]],"",1) ->  | H22: =IF(Table_Query_from_Excel_Files5[[#This Row],[c]]=Table_Query_from_Excel_Files5[[#This Row],[d]],"",2) ->  | I22: =IF(Table_Query_from_Excel_Files5[[#This Row],[d]]=Table_Query_from_Excel_Files5[[#This Row],[e]],"",3) -> 
A23: 20 | B23: =+'Dry Crop Normals (data)'!C31 -> 64.242044 | C23: =Table_Query_from_Excel_Files5[[#This Row],[b]] -> 64.242044 | D23: =+Table_Query_from_Excel_Files5[[#This Row],[b]] -> 64.242044 | E23: =+Table_Query_from_Excel_Files5[[#This Row],[b]] -> 64.242044 | G23: =IF(Table_Query_from_Excel_Files5[[#This Row],[b]]=Table_Query_from_Excel_Files5[[#This Row],[c]],"",1) ->  | H23: =IF(Table_Query_from_Excel_Files5[[#This Row],[c]]=Table_Query_from_Excel_Files5[[#This Row],[d]],"",2) ->  | I23: =IF(Table_Query_from_Excel_Files5[[#This Row],[d]]=Table_Query_from_Excel_Files5[[#This Row],[e]],"",3) -> 
A24: 21 | B24: =+'Dry Crop Normals (data)'!C32 -> 53.704056 | C24: =Table_Query_from_Excel_Files5[[#This Row],[b]] -> 53.704056 | D24: =+Table_Query_from_Excel_Files5[[#This Row],[b]] -> 53.704056 | E24: =+Table_Query_from_Excel_Files5[[#This Row],[b]] -> 53.704056 | G24: =IF(Table_Query_from_Excel_Files5[[#This Row],[b]]=Table_Query_from_Excel_Files5[[#This Row],[c]],"",1) ->  | H24: =IF(Table_Query_from_Excel_Files5[[#This Row],[c]]=Table_Query_from_Excel_Files5[[#This Row],[d]],"",2) ->  | I24: =IF(Table_Query_from_Excel_Files5[[#This Row],[d]]=Table_Query_from_Excel_Files5[[#This Row],[e]],"",3) -> 
A25: 22 | B25: =+'Dry Crop Normals (data)'!C33 -> 56.790496 | C25: =Table_Query_from_Excel_Files5[[#This Row],[b]] -> 56.790496 | D25: =+Table_Query_from_Excel_Files5[[#This Row],[b]] -> 56.790496 | E25: =+Table_Query_from_Excel_Files5[[#This Row],[b]] -> 56.790496 | G25: =IF(Table_Query_from_Excel_Files5[[#This Row],[b]]=Table_Query_from_Excel_Files5[[#This Row],[c]],"",1) ->  | H25: =IF(Table_Query_from_Excel_Files5[[#This Row],[c]]=Table_Query_from_Excel_Files5[[#This Row],[d]],"",2) ->  | I25: =IF(Table_Query_from_Excel_Files5[[#This Row],[d]]=Table_Query_from_Excel_Files5[[#This Row],[e]],"",3) -> 

Sheet Dry Silage Rates (data) (hidden)
A1: ID | B1: CROP | C1: RA | D1: CL | E1: p rem | F1: prem+
A2: 1BarleyProxy80 | B2: BarleyProxy | C2: 1 | D2: 80 | E2: 3.22 | F2: 5.6 | M2: Modication History
A3: 1BarleyProxy(Corn)80 | B3: BarleyProxy(Corn) | C3: 1 | D3: 80 | E3: 3.22 | F3: 5.6 | M3: 2020-03-10 | N3: Ilyas Ali | O3: Update Price (SPE_dry_SilageGreenfeed_extract ) | P3: Completed
A4: 1LOM(Barley)80 | B4: LOM(Barley) | C4: 1 | D4: 80 | E4: 3.22 | F4: 5.6
A5: 1LOM(Corn)80 | B5: LOM(Corn) | C5: 1 | D5: 80 | E5: 3.22 | F5: 5.6
A6: 2BarleyProxy80 | B6: BarleyProxy | C6: 2 | D6: 80 | E6: 3.75 | F6: 6.13
A7: 2BarleyProxy(Corn)80 | B7: BarleyProxy(Corn) | C7: 2 | D7: 80 | E7: 3.75 | F7: 6.13
A8: 2LOM(Barley)80 | B8: LOM(Barley) | C8: 2 | D8: 80 | E8: 3.75 | F8: 6.13
A9: 2LOM(Corn)80 | B9: LOM(Corn) | C9: 2 | D9: 80 | E9: 3.75 | F9: 6.13
A10: 3BarleyProxy80 | B10: BarleyProxy | C10: 3 | D10: 80 | E10: 4.34 | F10: 6.72
A11: 3BarleyProxy(Corn)80 | B11: BarleyProxy(Corn) | C11: 3 | D11: 80 | E11: 4.34 | F11: 6.72
A12: 3LOM(Barley)80 | B12: LOM(Barley) | C12: 3 | D12: 80 | E12: 4.34 | F12: 6.72
A13: 3LOM(Corn)80 | B13: LOM(Corn) | C13: 3 | D13: 80 | E13: 4.34 | F13: 6.72
A14: 4BarleyProxy80 | B14: BarleyProxy | C14: 4 | D14: 80 | E14: 8.84 | F14: 11.22
A15: 4BarleyProxy(Corn)80 | B15: BarleyProxy(Corn) | C15: 4 | D15: 80 | E15: 8.84 | F15: 11.22
A16: 4LOM(Barley)80 | B16: LOM(Barley) | C16: 4 | D16: 80 | E16: 8.84 | F16: 11.22
A17: 4LOM(Corn)80 | B17: LOM(Corn) | C17: 4 | D17: 80 | E17: 8.84 | F17: 11.22
A18: 5BarleyProxy80 | B18: BarleyProxy | C18: 5 | D18: 80 | E18: 2.7 | F18: 5.17
A19: 5BarleyProxy(Corn)80 | B19: BarleyProxy(Corn) | C19: 5 | D19: 80 | E19: 2.7 | F19: 5.17
A20: 5LOM(Barley)80 | B20: LOM(Barley) | C20: 5 | D20: 80 | E20: 2.7 | F20: 5.17
A21: 5LOM(Corn)80 | B21: LOM(Corn) | C21: 5 | D21: 80 | E21: 2.7 | F21: 5.17
A22: 6BarleyProxy80 | B22: BarleyProxy | C22: 6 | D22: 80 | E22: 3.9 | F22: 6.39
A23: 6BarleyProxy(Corn)80 | B23: BarleyProxy(Corn) | C23: 6 | D23: 80 | E23: 3.9 | F23: 6.39
A24: 6LOM(Barley)80 | B24: LOM(Barley) | C24: 6 | D24: 80 | E24: 3.9 | F24: 6.39
A25: 6LOM(Corn)80 | B25: LOM(Corn) | C25: 6 | D25: 80 | E25: 3.9 | F25: 6.39
A26: 7BarleyProxy80 | B26: BarleyProxy | C26: 7 | D26: 80 | E26: 1.38 | F26: 3.96
A27: 7BarleyProxy(Corn)80 | B27: BarleyProxy(Corn) | C27: 7 | D27: 80 | E27: 1.38 | F27: 3.96
A28: 7LOM(Barley)80 | B28: LOM(Barley) | C28: 7 | D28: 80 | E28: 1.38 | F28: 3.96
A29: 7LOM(Corn)80 | B29: LOM(Corn) | C29: 7 | D29: 80 | E29: 1.38 | F29: 3.96
A30: 8BarleyProxy80 | B30: BarleyProxy | C30: 8 | D30: 80 | E30: 2.75 | F30: 5.26
A31: 8BarleyProxy(Corn)80 | B31: BarleyProxy(Corn) | C31: 8 | D31: 80 | E31: 2.75 | F31: 5.26
A32: 8LOM(Barley)80 | B32: LOM(Barley) | C32: 8 | D32: 80 | E32: 2.75 | F32: 5.26
A33: 8LOM(Corn)80 | B33: LOM(Corn) | C33: 8 | D33: 80 | E33: 2.75 | F33: 5.26
A34: 9BarleyProxy80 | B34: BarleyProxy | C34: 9 | D34: 80 | E34: 7.07 | F34: 9.45
A35: 9BarleyProxy(Corn)80 | B35: BarleyProxy(Corn) | C35: 9 | D35: 80 | E35: 7.07 | F35: 9.45
A36: 9LOM(Barley)80 | B36: LOM(Barley) | C36: 9 | D36: 80 | E36: 7.07 | F36: 9.45
A37: 9LOM(Corn)80 | B37: LOM(Corn) | C37: 9 | D37: 80 | E37: 7.07 | F37: 9.45
A38: 10BarleyProxy80 | B38: BarleyProxy | C38: 10 | D38: 80 | E38: 4.48 | F38: 6.94
A39: 10BarleyProxy(Corn)80 | B39: BarleyProxy(Corn) | C39: 10 | D39: 80 | E39: 4.48 | F39: 6.94
A40: 10LOM(Barley)80 | B40: LOM(Barley) | C40: 10 | D40: 80 | E40: 4.48 | F40: 6.94
A41: 10LOM(Corn)80 | B41: LOM(Corn) | C41: 10 | D41: 80 | E41: 4.48 | F41: 6.94
A42: 11BarleyProxy80 | B42: BarleyProxy | C42: 11 | D42: 80 | E42: 2.59 | F42: 5.12
A43: 11BarleyProxy(Corn)80 | B43: BarleyProxy(Corn) | C43: 11 | D43: 80 | E43: 2.59 | F43: 5.12
A44: 11LOM(Barley)80 | B44: LOM(Barley) | C44: 11 | D44: 80 | E44: 2.59 | F44: 5.12
A45: 11LOM(Corn)80 | B45: LOM(Corn) | C45: 11 | D45: 80 | E45: 2.59 | F45: 5.12
A46: 12BarleyProxy80 | B46: BarleyProxy | C46: 12 | D46: 80 | E46: 3.1 | F46: 5.63
A47: 12BarleyProxy(Corn)80 | B47: BarleyProxy(Corn) | C47: 12 | D47: 80 | E47: 3.1 | F47: 5.63
A48: 12LOM(Barley)80 | B48: LOM(Barley) | C48: 12 | D48: 80 | E48: 3.1 | F48: 5.63
A49: 12LOM(Corn)80 | B49: LOM(Corn) | C49: 12 | D49: 80 | E49: 3.1 | F49: 5.63
A50: 13BarleyProxy80 | B50: BarleyProxy | C50: 13 | D50: 80 | E50: 3.76 | F50: 6.18
A51: 13BarleyProxy(Corn)80 | B51: BarleyProxy(Corn) | C51: 13 | D51: 80 | E51: 3.76 | F51: 6.18
A52: 13LOM(Barley)80 | B52: LOM(Barley) | C52: 13 | D52: 80 | E52: 3.76 | F52: 6.18
A53: 13LOM(Corn)80 | B53: LOM(Corn) | C53: 13 | D53: 80 | E53: 3.76 | F53: 6.18
A54: 14BarleyProxy80 | B54: BarleyProxy | C54: 14 | D54: 80 | E54: 7.71 | F54: 10.09
A55: 14BarleyProxy(Corn)80 | B55: BarleyProxy(Corn) | C55: 14 | D55: 80 | E55: 7.71 | F55: 10.09
A56: 14LOM(Barley)80 | B56: LOM(Barley) | C56: 14 | D56: 80 | E56: 7.71 | F56: 10.09
A57: 14LOM(Corn)80 | B57: LOM(Corn) | C57: 14 | D57: 80 | E57: 7.71 | F57: 10.09
A58: 15BarleyProxy80 | B58: BarleyProxy | C58: 15 | D58: 80 | E58: 3.33 | F58: 5.79
A59: 15BarleyProxy(Corn)80 | B59: BarleyProxy(Corn) | C59: 15 | D59: 80 | E59: 3.33 | F59: 5.79
A60: 15LOM(Barley)80 | B60: LOM(Barley) | C60: 15 | D60: 80 | E60: 3.33 | F60: 5.79
A61: 15LOM(Corn)80 | B61: LOM(Corn) | C61: 15 | D61: 80 | E61: 3.33 | F61: 5.79
A62: 16BarleyProxy80 | B62: BarleyProxy | C62: 16 | D62: 80 | E62: 6.85 | F62: 9.23
A63: 16BarleyProxy(Corn)80 | B63: BarleyProxy(Corn) | C63: 16 | D63: 80 | E63: 6.85 | F63: 9.23
A64: 16LOM(Barley)80 | B64: LOM(Barley) | C64: 16 | D64: 80 | E64: 6.85 | F64: 9.23
A65: 16LOM(Corn)80 | B65: LOM(Corn) | C65: 16 | D65: 80 | E65: 6.85 | F65: 9.23
A66: 17BarleyProxy80 | B66: BarleyProxy | C66: 17 | D66: 80 | E66: 6.17 | F66: 8.55
A67: 17BarleyProxy(Corn)80 | B67: BarleyProxy(Corn) | C67: 17 | D67: 80 | E67: 6.17 | F67: 8.55
A68: 17LOM(Barley)80 | B68: LOM(Barley) | C68: 17 | D68: 80 | E68: 6.17 | F68: 8.55
A69: 17LOM(Corn)80 | B69: LOM(Corn) | C69: 17 | D69: 80 | E69: 6.17 | F69: 8.55
A70: 18BarleyProxy80 | B70: BarleyProxy | C70: 18 | D70: 80 | E70: 5.99 | F70: 8.37
A71: 18BarleyProxy(Corn)80 | B71: BarleyProxy(Corn) | C71: 18 | D71: 80 | E71: 5.99 | F71: 8.37
A72: 18LOM(Barley)80 | B72: LOM(Barley) | C72: 18 | D72: 80 | E72: 5.99 | F72: 8.37
A73: 18LOM(Corn)80 | B73: LOM(Corn) | C73: 18 | D73: 80 | E73: 5.99 | F73: 8.37
A74: 19BarleyProxy80 | B74: BarleyProxy | C74: 19 | D74: 80 | E74: 3.63 | F74: 6.09
A75: 19BarleyProxy(Corn)80 | B75: BarleyProxy(Corn) | C75: 19 | D75: 80 | E75: 3.63 | F75: 6.09
A76: 19LOM(Barley)80 | B76: LOM(Barley) | C76: 19 | D76: 80 | E76: 3.63 | F76: 6.09
A77: 19LOM(Corn)80 | B77: LOM(Corn) | C77: 19 | D77: 80 | E77: 3.63 | F77: 6.09
A78: 20BarleyProxy80 | B78: BarleyProxy | C78: 20 | D78: 80 | E78: 4.1 | F78: 6.48
A79: 20BarleyProxy(Corn)80 | B79: BarleyProxy(Corn) | C79: 20 | D79: 80 | E79: 4.1 | F79: 6.48
A80: 20LOM(Barley)80 | B80: LOM(Barley) | C80: 20 | D80: 80 | E80: 4.1 | F80: 6.48
A81: 20LOM(Corn)80 | B81: LOM(Corn) | C81: 20 | D81: 80 | E81: 4.1 | F81: 6.48
A82: 21BarleyProxy80 | B82: BarleyProxy | C82: 21 | D82: 80 | E82: 6.56 | F82: 8.94
A83: 21BarleyProxy(Corn)80 | B83: BarleyProxy(Corn) | C83: 21 | D83: 80 | E83: 6.56 | F83: 8.94
A84: 21LOM(Barley)80 | B84: LOM(Barley) | C84: 21 | D84: 80 | E84: 6.56 | F84: 8.94
A85: 21LOM(Corn)80 | B85: LOM(Corn) | C85: 21 | D85: 80 | E85: 6.56 | F85: 8.94
A86: 22BarleyProxy80 | B86: BarleyProxy | C86: 22 | D86: 80 | E86: 4.27 | F86: 6.65
A87: 22BarleyProxy(Corn)80 | B87: BarleyProxy(Corn) | C87: 22 | D87: 80 | E87: 4.27 | F87: 6.65
A88: 22LOM(Barley)80 | B88: LOM(Barley) | C88: 22 | D88: 80 | E88: 4.27 | F88: 6.65
A89: 22LOM(Corn)80 | B89: LOM(Corn) | C89: 22 | D89: 80 | E89: 4.27 | F89: 6.65

Sheet Irrigated Crop Rates (data) (hidden)
A1: ID | B1: CROP | C1: RA | D1: CL | E1: p rem | F1: prem+
A2: 2Barley Malting80 | B2: Barley Malting | C2: 2 | D2: 80 | E2: 2.02 | F2: 4.49 | J2: Modication History
A3: 9Barley Malting70 | B3: Barley Malting | C3: 9 | D3: 70 | E3: 3.94 | F3: 6.39 | J3: 2020-03-10 | K3: Ilyas Ali | L3: Update Price (spe_Irrigated_crop_extract.sql ) | M3: Completed
A4: 1Barley Malting60 | B4: Barley Malting | C4: 1 | D4: 60 | E4: 1.35 | F4: 3.88
A5: 22Barley80 | B5: Barley | C5: 22 | D5: 80 | E5: 4.74 | F5: 7.19
A6: 9Barley80 | B6: Barley | C6: 9 | D6: 80 | E6: 9.65 | F6: 14.52
A7: 4Corn(Grain)60 | B7: Corn(Grain) | C7: 4 | D7: 60 | E7: 1.82 | F7: 4.28
A8: 2MixedGrain70 | B8: MixedGrain | C8: 2 | D8: 70 | E8: 1.63 | F8: 4.18
A9: 1MixedGrain60 | B9: MixedGrain | C9: 1 | D9: 60 | E9: 2.07 | F9: 4.61
A10: 3Oats80 | B10: Oats | C10: 3 | D10: 80 | E10: 2.17 | F10: 4.68
A11: 22Oats60 | B11: Oats | C11: 22 | D11: 60 | E11: 2.32 | F11: 4.82
A12: 2Rye-Fall80 | B12: Rye-Fall | C12: 2 | D12: 80 | E12: 3.97 | F12: 6.35
A13: 3Rye-Fall70 | B13: Rye-Fall | C13: 3 | D13: 70 | E13: 3.31 | F13: 5.76
A14: 9Rye-Fall60 | B14: Rye-Fall | C14: 9 | D14: 60 | E14: 2.84 | F14: 5.33
A15: 4Rye-Fall60 | B15: Rye-Fall | C15: 4 | D15: 60 | E15: 1.85 | F15: 4.34
A16: 3Rye-Fall60 | B16: Rye-Fall | C16: 3 | D16: 60 | E16: 2.22 | F16: 4.71
A17: 2Rye-Spring70 | B17: Rye-Spring | C17: 2 | D17: 70 | E17: 4.67 | F17: 7.11
A18: 2Rye-Spring60 | B18: Rye-Spring | C18: 2 | D18: 60 | E18: 3.1 | F18: 5.59
A19: 9Triticale-Spring80 | B19: Triticale-Spring | C19: 9 | D19: 80 | E19: 7.71 | F19: 10.09
A20: 1Triticale-Winter80 | B20: Triticale-Winter | C20: 1 | D20: 80 | E20: 7.71 | F20: 10.09
A21: 3Triticale-Winter70 | B21: Triticale-Winter | C21: 3 | D21: 70 | E21: 2.67 | F21: 5.11
A22: 2Triticale-Winter70 | B22: Triticale-Winter | C22: 2 | D22: 70 | E22: 1.95 | F22: 4.39
A23: 4Wheat-Durum High Protein80 | B23: Wheat-Durum High Protein | C23: 4 | D23: 80 | E23: 2.71 | F23: 6.34
A24: 9Wheat-Durum High Protein60 | B24: Wheat-Durum High Protein | C24: 9 | D24: 60 | E24: 2.97 | F24: 6.66
A25: 5Wheat-Durum80 | B25: Wheat-Durum | C25: 5 | D25: 80 | E25: 6.52 | F25: 9.97
A26: 4Wheat-Durum70 | B26: Wheat-Durum | C26: 4 | D26: 70 | E26: 1.88 | F26: 5.56
A27: 9Wheat-Durum60 | B27: Wheat-Durum | C27: 9 | D27: 60 | E27: 2.93 | F27: 6.62
A28: 4Wheat-Durum60 | B28: Wheat-Durum | C28: 4 | D28: 60 | E28: 1.3 | F28: 5.01
A29: 1Wheat-Durum60 | B29: Wheat-Durum | C29: 1 | D29: 60 | E29: 2.66 | F29: 6.28
A30: 8Wheat-HardRedSpring High Protein60 | B30: Wheat-HardRedSpring High Protein | C30: 8 | D30: 60 | E30: 1.92 | F30: 5.6
A31: 3Wheat-HardRedSpring High Protein60 | B31: Wheat-HardRedSpring High Protein | C31: 3 | D31: 60 | E31: 0.91 | F31: 4.61
A32: 4Wheat-HardRedSpring High Protein80 | B32: Wheat-HardRedSpring High Protein | C32: 4 | D32: 80 | E32: 1.34 | F32: 4.97
A33: 3Wheat-HardRedSpring80 | B33: Wheat-HardRedSpring | C33: 3 | D33: 80 | E33: 1.65 | F33: 5.28
A34: 22Wheat-HardRedSpring70 | B34: Wheat-HardRedSpring | C34: 22 | D34: 70 | E34: 3.29 | F34: 6.91
A35: 4Wheat-HardRedSpring60 | B35: Wheat-HardRedSpring | C35: 4 | D35: 60 | E35: 0.77 | F35: 4.47
A36: 3Wheat-HardRedSpring60 | B36: Wheat-HardRedSpring | C36: 3 | D36: 60 | E36: 0.91 | F36: 4.61
A37: 9Wheat-HardRedWinter70 | B37: Wheat-HardRedWinter | C37: 9 | D37: 70 | E37: 6.49 | F37: 10.03
A38: 4Wheat-SoftWhiteSpring80 | B38: Wheat-SoftWhiteSpring | C38: 4 | D38: 80 | E38: 2.82 | F38: 6.31
A39: 5Wheat-SoftWhiteSpring70 | B39: Wheat-SoftWhiteSpring | C39: 5 | D39: 70 | E39: 1.31 | F39: 4.94
A40: 3Wheat-SoftWhiteSpring70 | B40: Wheat-SoftWhiteSpring | C40: 3 | D40: 70 | E40: 1.27 | F40: 4.95
A41: 3Wheat-SoftWhiteSpring60 | B41: Wheat-SoftWhiteSpring | C41: 3 | D41: 60 | E41: 0.9 | F41: 4.61
A42: 5Flax70 | B42: Flax | C42: 5 | D42: 70 | E42: 2.62 | F42: 5.13
A43: 4Safflower60 | B43: Safflower | C43: 4 | D43: 60 | E43: 4.61 | F43: 6.96
A44: 2Sunflower Oilseed(Sunflower)70 | B44: Sunflower Oilseed(Sunflower) | C44: 2 | D44: 70 | E44: 3.63 | F44: 5.98
A45: 4Sunflower Confectionary80 | B45: Sunflower Confectionary | C45: 4 | D45: 80 | E45: 3.52 | F45: 5.85
A46: 9Sunflower Confectionary70 | B46: Sunflower Confectionary | C46: 9 | D46: 70 | E46: 2.55 | F46: 4.91
A47: 4Canola-Argentine Specialty Oil80 | B47: Canola-Argentine Specialty Oil | C47: 4 | D47: 80 | E47: 3.13 | F47: 5.39
A48: 3Canola-Argentine Specialty Oil80 | B48: Canola-Argentine Specialty Oil | C48: 3 | D48: 80 | E48: 2.42 | F48: 4.74
A49: 8Canola-Argentine Specialty Oil60 | B49: Canola-Argentine Specialty Oil | C49: 8 | D49: 60 | E49: 2.03 | F49: 4.39
A50: 5Canola-Argentine80 | B50: Canola-Argentine | C50: 5 | D50: 80 | E50: 3.23 | F50: 5.48
A51: 8Canola-Argentine70 | B51: Canola-Argentine | C51: 8 | D51: 70 | E51: 2.8 | F51: 5.12
A52: 5Canola-Argentine70 | B52: Canola-Argentine | C52: 5 | D52: 70 | E52: 2.29 | F52: 4.61
A53: 8Canola-Argentine60 | B53: Canola-Argentine | C53: 8 | D53: 60 | E53: 1.92 | F53: 4.28
A54: 4Canola-Polish80 | B54: Canola-Polish | C54: 4 | D54: 80 | E54: 4.65 | F54: 6.96
A55: 8Canola-Polish70 | B55: Canola-Polish | C55: 8 | D55: 70 | E55: 4.04 | F55: 6.36
A56: 5Mustard-Brown70 | B56: Mustard-Brown | C56: 5 | D56: 70 | E56: 6.88 | F56: 9.91
A57: 9Mustard-Brown60 | B57: Mustard-Brown | C57: 9 | D57: 60 | E57: 4.44 | F57: 7.52
A58: 2Mustard-Brown60 | B58: Mustard-Brown | C58: 2 | D58: 60 | E58: 5.19 | F58: 8.3
A59: 9Mustard-Oriental70 | B59: Mustard-Oriental | C59: 9 | D59: 70 | E59: 6.35 | F59: 9.38
A60: 3Mustard-Oriental70 | B60: Mustard-Oriental | C60: 3 | D60: 70 | E60: 5.57 | F60: 8.59
A61: 3Mustard-Oriental60 | B61: Mustard-Oriental | C61: 3 | D61: 60 | E61: 3.85 | F61: 6.92
A62: 9Mustard-Yellow80 | B62: Mustard-Yellow | C62: 9 | D62: 80 | E62: 8.97 | F62: 11.9
A63: 2Mustard-Yellow80 | B63: Mustard-Yellow | C63: 2 | D63: 80 | E63: 5.33 | F63: 8.26
A64: 1Mustard-Yellow70 | B64: Mustard-Yellow | C64: 1 | D64: 70 | E64: 6.35 | F64: 9.38
A65: 4Mustard-Yellow60 | B65: Mustard-Yellow | C65: 4 | D65: 60 | E65: 2.76 | F65: 5.81
A66: 1Mustard-Yellow60 | B66: Mustard-Yellow | C66: 1 | D66: 60 | E66: 4.44 | F66: 7.52
A67: 1FabaBean60 | B67: FabaBean | C67: 1 | D67: 60 | E67: 5.52 | F67: 8.58
A68: 4Peas,Field70 | B68: Peas,Field | C68: 4 | D68: 70 | E68: 2.65 | F68: 5.62
A69: 5Peas,Field60 | B69: Peas,Field | C69: 5 | D69: 60 | E69: 1.83 | F69: 4.85
A70: 4Peas,Field60 | B70: Peas,Field | C70: 4 | D70: 60 | E70: 1.83 | F70: 4.85
A71: 4Beans,Dry-GreatNorthern60 | B71: Beans,Dry-GreatNorthern | C71: 4 | D71: 60 | E71: 1.99 | F71: 4.31
A72: 4Beans,Dry-Pinto80 | B72: Beans,Dry-Pinto | C72: 4 | D72: 80 | E72: 3.86 | F72: 6.11
A73: 3Beans,Dry-SmallRed70 | B73: Beans,Dry-SmallRed | C73: 3 | D73: 70 | E73: 3.26 | F73: 5.55
A74: 2Beans,Dry-SmallRed60 | B74: Beans,Dry-SmallRed | C74: 2 | D74: 60 | E74: 2.37 | F74: 4.69
A75: 8Wheat-CanadaPrairieSpring80 | B75: Wheat-CanadaPrairieSpring | C75: 8 | D75: 80 | E75: 3.28 | F75: 6.95
A76: 1Wheat-CanadaPrairieSpring70 | B76: Wheat-CanadaPrairieSpring | C76: 1 | D76: 70 | E76: 5.33 | F76: 8.91
A77: 8Wheat-CanadaPrairieSpring60 | B77: Wheat-CanadaPrairieSpring | C77: 8 | D77: 60 | E77: 1.5 | F77: 5.23
A78: 2Wheat-CanadaPrairieSpring60 | B78: Wheat-CanadaPrairieSpring | C78: 2 | D78: 60 | E78: 1.71 | F78: 5.4
A79: 9Wheat-ExtraStrong80 | B79: Wheat-ExtraStrong | C79: 9 | D79: 80 | E79: 7.17 | F79: 10.62
A80: 4Wheat-ExtraStrong80 | B80: Wheat-ExtraStrong | C80: 4 | D80: 80 | E80: 2.2 | F80: 5.9
A81: 2Wheat-ExtraStrong80 | B81: Wheat-ExtraStrong | C81: 2 | D81: 80 | E81: 4.26 | F81: 7.84
A82: 3Wheat-ExtraStrong60 | B82: Wheat-ExtraStrong | C82: 3 | D82: 60 | E82: 1.07 | F82: 4.82
A83: 4Beans,Dry-Yellow80 | B83: Beans,Dry-Yellow | C83: 4 | D83: 80 | E83: 8.18 | F83: 10.43
A84: 9Beans,Dry-Yellow60 | B84: Beans,Dry-Yellow | C84: 9 | D84: 60 | E84: 4.31 | F84: 6.66
A85: 4Lentils-Red80 | B85: Lentils-Red | C85: 4 | D85: 80 | E85: 9.22 | F85: 11.6
A86: 5Lentils-Red70 | B86: Lentils-Red | C86: 5 | D86: 70 | E86: 6.81 | F86: 9.29
A87: 4Lentils-Green70 | B87: Lentils-Green | C87: 4 | D87: 70 | E87: 7.67 | F87: 10.15
A88: 2Wheat-SpecialPurpose80 | B88: Wheat-SpecialPurpose | C88: 2 | D88: 80 | E88: 3.73 | F88: 7.32
A89: 3Wheat-NorthernHardRed80 | B89: Wheat-NorthernHardRed | C89: 3 | D89: 80 | E89: 1.95 | F89: 5.58
A90: 4Wheat-NorthernHardRed70 | B90: Wheat-NorthernHardRed | C90: 4 | D90: 70 | E90: 1.37 | F90: 5.05
A91: 2Wheat-NorthernHardRed70 | B91: Wheat-NorthernHardRed | C91: 2 | D91: 70 | E91: 1.76 | F91: 5.37
A92: 3Barley Malting70 | B92: Barley Malting | C92: 3 | D92: 70 | E92: 1.47 | F92: 4.02
A93: 9Barley Malting60 | B93: Barley Malting | C93: 9 | D93: 60 | E93: 2.52 | F93: 5.02
A94: 8Barley Malting80 | B94: Barley Malting | C94: 8 | D94: 80 | E94: 2.84 | F94: 5.3
A95: 3Barley80 | B95: Barley | C95: 3 | D95: 80 | E95: 3.53 | F95: 8.62
A96: 8Barley70 | B96: Barley | C96: 8 | D96: 70 | E96: 1.94 | F96: 4.44
A97: 22Barley60 | B97: Barley | C97: 22 | D97: 60 | E97: 2.35 | F97: 4.88
A98: 9Barley60 | B98: Barley | C98: 9 | D98: 60 | E98: 2.52 | F98: 5.02
A99: 8Barley60 | B99: Barley | C99: 8 | D99: 60 | E99: 1.32 | F99: 3.85
A100: 2Barley60 | B100: Barley | C100: 2 | D100: 60 | E100: 1.01 | F100: 3.55
A101: 1Corn(Grain)80 | B101: Corn(Grain) | C101: 1 | D101: 80 | E101: 4.83 | F101: 7.17
A102: 3Corn(Grain)70 | B102: Corn(Grain) | C102: 3 | D102: 70 | E102: 2.75 | F102: 5.17
A103: 3Corn(Grain)60 | B103: Corn(Grain) | C103: 3 | D103: 60 | E103: 1.82 | F103: 4.28
A104: 9MixedGrain80 | B104: MixedGrain | C104: 9 | D104: 80 | E104: 5.44 | F104: 7.89
A105: 5MixedGrain80 | B105: MixedGrain | C105: 5 | D105: 80 | E105: 1.42 | F105: 3.92
A106: 4MixedGrain70 | B106: MixedGrain | C106: 4 | D106: 70 | E106: 0.9 | F106: 3.49
A107: 2MixedGrain60 | B107: MixedGrain | C107: 2 | D107: 60 | E107: 1.14 | F107: 3.71
A108: 22Oats70 | B108: Oats | C108: 22 | D108: 70 | E108: 3.2 | F108: 5.7
A109: 8Oats70 | B109: Oats | C109: 8 | D109: 70 | E109: 2.83 | F109: 5.38
A110: 2Oats70 | B110: Oats | C110: 2 | D110: 70 | E110: 0.76 | F110: 3.3
A111: 4Triticale-Spring70 | B111: Triticale-Spring | C111: 4 | D111: 70 | E111: 1.7 | F111: 4.15
A112: 3Triticale-Spring70 | B112: Triticale-Spring | C112: 3 | D112: 70 | E112: 2.02 | F112: 4.46
A113: 1Triticale-Spring60 | B113: Triticale-Spring | C113: 1 | D113: 60 | E113: 3.39 | F113: 5.88
A114: 5Triticale-Winter70 | B114: Triticale-Winter | C114: 5 | D114: 70 | E114: 3.47 | F114: 5.95
A115: 9Wheat-Durum High Protein80 | B115: Wheat-Durum High Protein | C115: 9 | D115: 80 | E115: 6.79 | F115: 10.24
A116: 2Wheat-Durum High Protein80 | B116: Wheat-Durum High Protein | C116: 2 | D116: 80 | E116: 3.42 | F116: 6.93
A117: 4Wheat-Durum High Protein70 | B117: Wheat-Durum High Protein | C117: 4 | D117: 70 | E117: 1.88 | F117: 5.56
A118: 1Wheat-Durum High Protein60 | B118: Wheat-Durum High Protein | C118: 1 | D118: 60 | E118: 2.79 | F118: 6.41
A119: 3Wheat-Durum70 | B119: Wheat-Durum | C119: 3 | D119: 70 | E119: 2.28 | F119: 5.89
A120: 5Wheat-Durum60 | B120: Wheat-Durum | C120: 5 | D120: 60 | E120: 2.84 | F120: 6.44
A121: 2Wheat-HardRedSpring High Protein80 | B121: Wheat-HardRedSpring High Protein | C121: 2 | D121: 80 | E121: 1.84 | F121: 5.39
A122: 5Wheat-HardRedSpring High Protein70 | B122: Wheat-HardRedSpring High Protein | C122: 5 | D122: 70 | E122: 2.29 | F122: 5.93
A123: 8Wheat-HardRedSpring High Protein80 | B123: Wheat-HardRedSpring High Protein | C123: 8 | D123: 80 | E123: 3.98 | F123: 7.56
A124: 5Wheat-HardRedSpring High Protein80 | B124: Wheat-HardRedSpring High Protein | C124: 5 | D124: 80 | E124: 3.26 | F124: 6.84
A125: 9Wheat-HardRedSpring80 | B125: Wheat-HardRedSpring | C125: 9 | D125: 80 | E125: 3.88 | F125: 7.33
A126: 5Wheat-HardRedSpring80 | B126: Wheat-HardRedSpring | C126: 5 | D126: 80 | E126: 2.87 | F126: 6.45
A127: 2Wheat-HardRedSpring80 | B127: Wheat-HardRedSpring | C127: 2 | D127: 80 | E127: 1.84 | F127: 5.39
A128: 5Wheat-HardRedSpring70 | B128: Wheat-HardRedSpring | C128: 5 | D128: 70 | E128: 1.97 | F128: 5.61
A129: 2Wheat-HardRedSpring60 | B129: Wheat-HardRedSpring | C129: 2 | D129: 60 | E129: 1.01 | F129: 4.66
A130: 4Wheat-HardRedWinter80 | B130: Wheat-HardRedWinter | C130: 4 | D130: 80 | E130: 1.73 | F130: 5.2
A131: 3Wheat-HardRedWinter80 | B131: Wheat-HardRedWinter | C131: 3 | D131: 80 | E131: 2.29 | F131: 5.78
A132: 2Wheat-HardRedWinter70 | B132: Wheat-HardRedWinter | C132: 2 | D132: 70 | E132: 1.03 | F132: 4.62
A133: 9Flax80 | B133: Flax | C133: 9 | D133: 80 | E133: 6.16 | F133: 8.54
A134: 8Flax70 | B134: Flax | C134: 8 | D134: 70 | E134: 3.23 | F134: 5.74
A135: 3Sunflower Oilseed(Sunflower)70 | B135: Sunflower Oilseed(Sunflower) | C135: 3 | D135: 70 | E135: 3.63 | F135: 5.98
A136: 5Canola-Argentine Specialty Oil80 | B136: Canola-Argentine Specialty Oil | C136: 5 | D136: 80 | E136: 3.41 | F136: 5.66
A137: 3Canola-Argentine80 | B137: Canola-Argentine | C137: 3 | D137: 80 | E137: 2.29 | F137: 4.61
A138: 9Canola-Argentine70 | B138: Canola-Argentine | C138: 9 | D138: 70 | E138: 3.14 | F138: 5.45
A139: 22Canola-Polish80 | B139: Canola-Polish | C139: 22 | D139: 80 | E139: 7.15 | F139: 9.45
A140: 9Canola-Polish80 | B140: Canola-Polish | C140: 9 | D140: 80 | E140: 5.25 | F140: 7.55
A141: 9Canola-Polish70 | B141: Canola-Polish | C141: 9 | D141: 70 | E141: 3.65 | F141: 5.99
A142: 1Canola-Polish70 | B142: Canola-Polish | C142: 1 | D142: 70 | E142: 3.12 | F142: 5.49
A143: 22Canola-Polish60 | B143: Canola-Polish | C143: 22 | D143: 60 | E143: 3.82 | F143: 6.2
A144: 9Canola-Polish60 | B144: Canola-Polish | C144: 9 | D144: 60 | E144: 2.46 | F144: 4.83
A145: 3Canola-Polish60 | B145: Canola-Polish | C145: 3 | D145: 60 | E145: 1.64 | F145: 4.05
A146: 3Mustard-Brown70 | B146: Mustard-Brown | C146: 3 | D146: 70 | E146: 5.48 | F146: 8.5
A147: 2Mustard-Brown70 | B147: Mustard-Brown | C147: 2 | D147: 70 | E147: 7.34 | F147: 10.38
A148: 1Mustard-Brown70 | B148: Mustard-Brown | C148: 1 | D148: 70 | E148: 6.35 | F148: 9.38
A149: 5Mustard-Oriental70 | B149: Mustard-Oriental | C149: 5 | D149: 70 | E149: 6.88 | F149: 9.91
A150: 4Mustard-Yellow80 | B150: Mustard-Yellow | C150: 4 | D150: 80 | E150: 5.37 | F150: 8.3
A151: 5Mustard-Yellow70 | B151: Mustard-Yellow | C151: 5 | D151: 70 | E151: 6.61 | F151: 9.62
A152: 2Mustard-Yellow70 | B152: Mustard-Yellow | C152: 2 | D152: 70 | E152: 3.87 | F152: 6.89
A153: 2Mustard-Yellow60 | B153: Mustard-Yellow | C153: 2 | D153: 60 | E153: 2.78 | F153: 5.85
A154: 9FabaBean80 | B154: FabaBean | C154: 9 | D154: 80 | E154: 10.22 | F154: 13.11
A155: 5FabaBean70 | B155: FabaBean | C155: 5 | D155: 70 | E155: 7.58 | F155: 10.58
A156: 4FabaBean70 | B156: FabaBean | C156: 4 | D156: 70 | E156: 7.58 | F156: 10.58
A157: 1Peas,Field80 | B157: Peas,Field | C157: 1 | D157: 80 | E157: 3.76 | F157: 6.66
A158: 22Peas,Field70 | B158: Peas,Field | C158: 22 | D158: 70 | E158: 3.54 | F158: 6.51
A159: 5Peas,Field70 | B159: Peas,Field | C159: 5 | D159: 70 | E159: 2.65 | F159: 5.62
A160: 1Peas,Field70 | B160: Peas,Field | C160: 1 | D160: 70 | E160: 2.65 | F160: 5.62
A161: 3Beans,Dry-Black/Others70 | B161: Beans,Dry-Black/Others | C161: 3 | D161: 70 | E161: 4.52 | F161: 6.83
A162: 9Beans,Dry-SmallRed60 | B162: Beans,Dry-SmallRed | C162: 9 | D162: 60 | E162: 2.37 | F162: 4.69
A163: 22Wheat-CanadaPrairieSpring80 | B163: Wheat-CanadaPrairieSpring | C163: 22 | D163: 80 | E163: 5.8 | F163: 9.4
A164: 9Wheat-CanadaPrairieSpring80 | B164: Wheat-CanadaPrairieSpring | C164: 9 | D164: 80 | E164: 6.55 | F164: 10
A165: 4Wheat-CanadaPrairieSpring80 | B165: Wheat-CanadaPrairieSpring | C165: 4 | D165: 80 | E165: 2.66 | F165: 6.36
A166: 9Wheat-CanadaPrairieSpring70 | B166: Wheat-CanadaPrairieSpring | C166: 9 | D166: 70 | E166: 4.26 | F166: 7.82
A167: 2Wheat-CanadaPrairieSpring70 | B167: Wheat-CanadaPrairieSpring | C167: 2 | D167: 70 | E167: 2.55 | F167: 6.2
A168: 5Wheat-CanadaPrairieSpring60 | B168: Wheat-CanadaPrairieSpring | C168: 5 | D168: 60 | E168: 1.62 | F168: 5.35
A169: 5Wheat-ExtraStrong80 | B169: Wheat-ExtraStrong | C169: 5 | D169: 80 | E169: 2.9 | F169: 6.57
A170: 5Wheat-ExtraStrong70 | B170: Wheat-ExtraStrong | C170: 5 | D170: 70 | E170: 1.98 | F170: 5.68
A171: 2Wheat-ExtraStrong70 | B171: Wheat-ExtraStrong | C171: 2 | D171: 70 | E171: 2.89 | F171: 6.53
A172: 1Wheat-ExtraStrong70 | B172: Wheat-ExtraStrong | C172: 1 | D172: 70 | E172: 5.58 | F172: 9.16
A173: 9Wheat-ExtraStrong60 | B173: Wheat-ExtraStrong | C173: 9 | D173: 60 | E173: 2.92 | F173: 6.56
A174: 2Beans,Dry-Yellow70 | B174: Beans,Dry-Yellow | C174: 2 | D174: 70 | E174: 6.03 | F174: 8.34
A175: 3Lentils-Red80 | B175: Lentils-Red | C175: 3 | D175: 80 | E175: 9.22 | F175: 11.6
A176: 3Lentils-Green80 | B176: Lentils-Green | C176: 3 | D176: 80 | E176: 10.4 | F176: 12.78
A177: 5Lentils-Green60 | B177: Lentils-Green | C177: 5 | D177: 60 | E177: 5.42 | F177: 7.98
A178: 3Lentils-Green60 | B178: Lentils-Green | C178: 3 | D178: 60 | E178: 5.42 | F178: 7.98
A179: 8Wheat-SpecialPurpose80 | B179: Wheat-SpecialPurpose | C179: 8 | D179: 80 | E179: 3.28 | F179: 6.95
A180: 4Wheat-SpecialPurpose60 | B180: Wheat-SpecialPurpose | C180: 4 | D180: 60 | E180: 1.17 | F180: 4.92
A181: 5Barley Malting60 | B181: Barley Malting | C181: 5 | D181: 60 | E181: 1.07 | F181: 3.6
A182: 5Barley Malting80 | B182: Barley Malting | C182: 5 | D182: 80 | E182: 2.21 | F182: 4.67
A183: 5Barley70 | B183: Barley | C183: 5 | D183: 70 | E183: 1.53 | F183: 4.03
A184: 1Barley60 | B184: Barley | C184: 1 | D184: 60 | E184: 1.35 | F184: 3.88
A185: 3Corn(Grain)80 | B185: Corn(Grain) | C185: 3 | D185: 80 | E185: 3.89 | F185: 6.27
A186: 2Corn(Grain)80 | B186: Corn(Grain) | C186: 2 | D186: 80 | E186: 4.17 | F186: 6.55
A187: 2Corn(Grain)60 | B187: Corn(Grain) | C187: 2 | D187: 60 | E187: 1.95 | F187: 4.41
A188: 8MixedGrain80 | B188: MixedGrain | C188: 8 | D188: 80 | E188: 2.68 | F188: 5.18
A189: 22Oats80 | B189: Oats | C189: 22 | D189: 80 | E189: 4.31 | F189: 6.81
A190: 4Oats70 | B190: Oats | C190: 4 | D190: 70 | E190: 0.96 | F190: 3.5
A191: 3Oats70 | B191: Oats | C191: 3 | D191: 70 | E191: 1.56 | F191: 4.1
A192: 1Oats70 | B192: Oats | C192: 1 | D192: 70 | E192: 3.05 | F192: 5.55
A193: 4Rye-Fall70 | B193: Rye-Fall | C193: 4 | D193: 70 | E193: 2.68 | F193: 5.13
A194: 9Rye-Spring80 | B194: Rye-Spring | C194: 9 | D194: 80 | E194: 6.37 | F194: 8.78
A195: 9Rye-Spring70 | B195: Rye-Spring | C195: 9 | D195: 70 | E195: 4.32 | F195: 6.78
A196: 5Rye-Spring70 | B196: Rye-Spring | C196: 5 | D196: 70 | E196: 3.26 | F196: 5.77
A197: 3Rye-Spring70 | B197: Rye-Spring | C197: 3 | D197: 70 | E197: 4.25 | F197: 6.72
A198: 9Triticale-Spring70 | B198: Triticale-Spring | C198: 9 | D198: 70 | E198: 5.3 | F198: 7.74
A199: 5Triticale-Spring60 | B199: Triticale-Spring | C199: 5 | D199: 60 | E199: 2.28 | F199: 4.8
A200: 4Triticale-Winter80 | B200: Triticale-Winter | C200: 4 | D200: 80 | E200: 3.58 | F200: 5.96
... 506 more rows

Sheet Rates (CHU & SPE) (data) (hidden)
N1: SPE
A2: Lookup_ID | B2: Station | C2: Type ID | D2: Group | E2: Cov Option | F2: farm_50 | G2: fed_50 | H2: prov_50 | I2: farm_75 | J2: fed_75 | K2: prov_75 | L2: tot_50 | M2: tot_75 | N2: Producer | O2: Prov | P2: Total | Q2: SPE Adj Fctr | R2: SPE Full Rate
A3: =(C3*10000)+(E3*100)+D3 -> 19001 | B3: Bow Island | C3: 1 | D3: 1 | E3: 90 | F3: 0.85 | G3: 0.83 | H3: 0.55 | I3: 1.48 | J3: 1.45 | K3: 0.97 | L3: =SUM(F3:H3) -> 2.23 | M3: =SUM(I3:K3) -> 3.9 | N3: =ROUND(0.5*$Q3*$R$3,2) -> 2.49 | O3: =$N3 -> 2.49 | P3: =$N3+$O3 -> 4.98 | Q3: 0.955 | R3: 5.21 | S3: from Corn grain SPE
A4: 19002 | B4: Brooks | C4: 1 | D4: 2 | E4: 90 | F4: 0.7 | G4: 0.68 | H4: 0.45 | I4: 1.21 | J4: 1.19 | K4: 0.79 | L4: 1.83 | M4: 3.19 | N4: =ROUND(0.5*$Q4*$R$3,2) -> 2.5 | O4: =$N4 -> 2.5 | P4: =$N4+$O4 -> 5 | Q4: 0.96
A5: 19003 | B5: Lethbridge | C5: 1 | D5: 3 | E5: 90 | F5: 0.93 | G5: 0.91 | H5: 0.61 | I5: 1.62 | J5: 1.59 | K5: 1.06 | L5: 2.45 | M5: 4.27 | N5: =ROUND(0.5*$Q5*$R$3,2) -> 2.47 | O5: =$N5 -> 2.47 | P5: =$N5+$O5 -> 4.94 | Q5: 0.947
A6: 19004 | B6: Patricia | C6: 1 | D6: 4 | E6: 90 | F6: 0.77 | G6: 0.75 | H6: 0.5 | I6: 1.34 | J6: 1.31 | K6: 0.87 | L6: 2.02 | M6: 3.52 | N6: =ROUND(0.5*$Q6*$R$3,2) -> 2.49 | O6: =$N6 -> 2.49 | P6: =$N6+$O6 -> 4.98 | Q6: 0.954
A7: 19501 | B7: Bow Island | C7: 1 | D7: 1 | E7: 95 | F7: =ROUND(F3*2.9,2) -> 2.47 | G7: 2.41 | H7: 1.6 | I7: 4.29 | J7: 4.21 | K7: 2.81 | L7: 6.48 | M7: 11.31 | N7: =P7*0.5 -> 2.49 | O7: =P7-N7 -> 2.49 | P7: =P3 -> 4.98
A8: 19502 | B8: Brooks | C8: 1 | D8: 2 | E8: 95 | F8: 2.03 | G8: 1.97 | H8: 1.31 | I8: 3.51 | J8: 3.45 | K8: 2.29 | L8: 5.31 | M8: 9.25 | N8: 2.5 | O8: 2.5 | P8: =P4 -> 5
A9: 19503 | B9: Lethbridge | C9: 1 | D9: 3 | E9: 95 | F9: 2.7 | G9: 2.64 | H9: 1.77 | I9: 4.7 | J9: 4.61 | K9: 3.07 | L9: 7.11 | M9: 12.38 | N9: 2.47 | O9: 2.47 | P9: =P5 -> 4.94
A10: 19504 | B10: Patricia | C10: 1 | D10: 4 | E10: 95 | F10: 2.23 | G10: 2.18 | H10: 1.45 | I10: 3.89 | J10: 3.8 | K10: 2.52 | L10: 5.86 | M10: 10.21 | N10: 2.49 | O10: 2.49 | P10: =P6 -> 4.98
A11: 29001 | B11: Bow Island | C11: 2 | D11: 1 | E11: 90 | F11: 0.92 | G11: 0.9 | H11: 0.6 | I11: 1.6 | J11: 1.57 | K11: 1.04 | L11: 2.42 | M11: =SUM(I11:K11) -> 4.21 | N11: =ROUND(0.5*$Q11*$R$11,2) -> 2.56 | O11: =$N11 -> 2.56 | P11: =$N11+$O11 -> 5.12 | Q11: 0.966 | R11: 5.29 | S11: from Barley SPE
A12: 29002 | B12: Brooks | C12: 2 | D12: 2 | E12: 90 | F12: 0.61 | G12: 0.6 | H12: 0.4 | I12: 1.06 | J12: 1.04 | K12: 0.69 | L12: 1.61 | M12: 2.79 | N12: =ROUND(0.5*$Q12*$R$11,2) -> 2.58 | O12: =$N12 -> 2.58 | P12: =$N12+$O12 -> 5.16 | Q12: 0.974
A13: 29003 | B13: Lethbridge | C13: 2 | D13: 3 | E13: 90 | F13: 0.7 | G13: 0.68 | H13: 0.45 | I13: 1.21 | J13: 1.19 | K13: 0.79 | L13: 1.83 | M13: 3.19 | N13: =ROUND(0.5*$Q13*$R$11,2) -> 2.55 | O13: =$N13 -> 2.55 | P13: =$N13+$O13 -> 5.1 | Q13: 0.965
A14: 29004 | B14: Patricia | C14: 2 | D14: 4 | E14: 90 | F14: 0.54 | G14: 0.53 | H14: 0.35 | I14: 0.94 | J14: 0.92 | K14: 0.61 | L14: 1.42 | M14: 2.47 | N14: =ROUND(0.5*$Q14*$R$11,2) -> 2.56 | O14: =$N14 -> 2.56 | P14: =$N14+$O14 -> 5.12 | Q14: 0.968
A15: 29501 | B15: Bow Island | C15: 2 | D15: 1 | E15: 95 | F15: =ROUND(F11*2.9,2) -> 2.67 | G15: 2.61 | H15: 1.74 | I15: 4.64 | J15: 4.55 | K15: 3.02 | L15: 7.02 | M15: 12.21 | N15: 2.56 | O15: 2.56 | P15: =P11 -> 5.12
A16: 29502 | B16: Brooks | C16: 2 | D16: 2 | E16: 95 | F16: 1.77 | G16: 1.74 | H16: 1.16 | I16: 3.07 | J16: 3.02 | K16: 2 | L16: 4.67 | M16: 8.09 | N16: 2.58 | O16: 2.58 | P16: =P12 -> 5.16
A17: 29503 | B17: Lethbridge | C17: 2 | D17: 3 | E17: 95 | F17: 2.03 | G17: 1.97 | H17: 1.31 | I17: 3.51 | J17: 3.45 | K17: 2.29 | L17: 5.31 | M17: 9.25 | N17: 2.55 | O17: 2.55 | P17: =P13 -> 5.1
A18: 29504 | B18: Patricia | C18: 2 | D18: 4 | E18: 95 | F18: 1.57 | G18: 1.54 | H18: 1.02 | I18: 2.73 | J18: 2.67 | K18: 1.77 | L18: 4.13 | M18: 7.17 | N18: 2.56 | O18: 2.56 | P18: =P14 -> 5.12
A19: =(C15*10000)+(E15*100)+D15
A20: Grain Corn = 1 and Silage Corn = 2 | F20: Inputs from 2020 CHU Premium Rates
A21: vpb_load_factor = 0.110 | F21: Inputs from SPE full rate (Corn grain and Barley)
A22: 90 to 95 coverage conversion factor = 2.9
A23: (Type x 10000) +(Cov Option x 100) + (Group)
F24: Cost Sharing Structure
F25: CHU | I25: SPE | K25: Hail Endors.
F26: Farm | G26: Fed | H26: Prov | I26: Farm | J26: Prov | K26: Farm | L26: Fed | M26: Prov
F27: =F3/$L3 -> 0.3811659193 | G27: =G3/$L3 -> 0.3721973094 | H27: =H3/$L3 -> 0.2466367713 | I27: =N3/$P3 -> 0.5 | J27: =O3/$P3 -> 0.5 | K27: =(0.37/(0.37+0.31)) -> 0.5441176471 | L27: =(0.31/(0.37+0.31))*0.5 -> 0.2279411765 | M27: =$L$27 -> 0.2279411765

Sheet Prices Dry Crop (data) (hidden)
A1: AG_PROD_UID | B1: DESCRIPTION | C1: AG_PROD_USE_UID | D1: PRICE | E1: VOLUME_MEASURE_UID | F1: CONVERSION_FACTOR | G1: CALCULATED_PRICE
A2: 12267 | B2: Barley | C2: 442 | D2: 0.215 | E2: 1 | F2: 0.044092 | G2: =(D2/F2) -> 4.876168012
A3: 12267 | B3: Barley Malting | C3: 7139 | D3: 0.255 | E3: 1 | F3: 0.044092 | G3: 5.783362061 | I3: Modication History
A4: 12269 | B4: CanarySeed | C4: 446 | D4: 0.56 | E4: 1923 | F4: 2.2046 | G4: 0.2540143337 | H4: lb | I4: 2020-03-10 | J4: Ilyas Ali | K4: Update Price (SPE_Prices_Irrigated_Crop.SQL ) | L4: Completed
A5: 12388 | B5: Canola-Argentine | C5: 752 | D5: 0.45 | E5: 1 | F5: 0.044092 | G5: 10.20593305 | I5: 2020-03-24 | J5: Martine West | K5: Update Price (SPE_Dry_Crop) | L5: Completed
A6: 12388 | B6: Canola-Argentine Specialty Oil | C6: 12978 | D6: 0.521 | E6: 1 | F6: 0.044092 | G6: 11.81620249 | I6: 2020-03-25 | J6: Martine West | K6: Update Wheat-Northern AG_PROD_USE_UID from pedigreed to commercial | L6: Completed
A7: 12389 | B7: Canola-Polish | C7: 754 | D7: 0.45 | E7: 1 | F7: 0.044092 | G7: 10.20593305 | I7: 2020-03-25 | J7: Martine West | K7: Manually update items in Red Fill from bushel to lb to match Price List | L7: Completed
A8: 13559 | B8: Chickpeas-Desi | C8: 3464 | D8: 0.44 | E8: 1923 | F8: 2.2046 | G8: 0.1995826907 | H8: lb | I8: 2020-04-01 | J8: Martine West | K8: Updated the conversion factor for Mustard to bushel as per direction from Nancy Smith | L8: Completed
A9: 13558 | B9: Chickpeas-Kabuli | C9: 3463 | D9: 0.41 | E9: 1923 | F9: 2.2046 | G9: 0.18597478 | H9: lb
A10: 12408 | B10: FabaBean | C10: 788 | D10: 0.225 | E10: 1923 | F10: 2.2046 | G10: 0.1020593305 | H10: lb
A11: 12383 | B11: Flax | C11: 738 | D11: 0.535 | E11: 1 | F11: 0.039367 | G11: 13.59006274
A12: 18898 | B12: Lentils-Green | C12: 23056 | D12: 0.53 | E12: 1923 | F12: 2.2046 | G12: 0.2404064229 | H12: lb
A13: 18897 | B13: Lentils-Red | C13: 23054 | D13: 0.42 | E13: 1923 | F13: 2.2046 | G13: 0.1905107502 | H13: lb
A14: 12272 | B14: MixedGrain | C14: 452 | D14: 0.21 | E14: 1 | F14: 0.050105 | G14: 4.191198483
A15: 12392 | B15: Mustard-Brown | C15: 759 | D15: 0.605 | E15: 1 | F15: 0.044092 | G15: 13.72130999
A16: 12393 | B16: Mustard-Oriental | C16: 761 | D16: 0.605 | E16: 1 | F16: 0.044092 | G16: 13.72130999
A17: 12394 | B17: Mustard-Yellow | C17: 763 | D17: 0.77 | E17: 1 | F17: 0.044092 | G17: 17.46348544
A18: 12273 | B18: Oats | C18: 456 | D18: 0.185 | E18: 1 | F18: 0.053771 | G18: 3.440516263
A19: 12411 | B19: Peas,Field | C19: 808 | D19: 0.255 | E19: 1 | F19: 0.036744 | G19: 6.939908556
A20: 12286 | B20: Rye-Fall | C20: 483 | D20: 0.185 | E20: 1 | F20: 0.039367 | G20: 4.699367491
A21: 12287 | B21: Rye-Spring | C21: 485 | D21: 0.185 | E21: 1 | F21: 0.039367 | G21: 4.699367491
A22: 12386 | B22: Safflower | C22: 746 | D22: 0.66 | E22: 1923 | F22: 2.2046 | G22: 0.2993740361 | H22: lb
A23: 12387 | B23: Sunflower Confectionary | C23: 750 | D23: 0.725 | E23: 1923 | F23: 2.2046 | G23: 0.3288578427 | H23: lb
A24: 12387 | B24: Sunflower Oilseed(Sunflower) | C24: 749 | D24: 0.52 | E24: 1923 | F24: 2.2046 | G24: 0.2358704527 | H24: lb
A25: 12288 | B25: Triticale-Spring | C25: 487 | D25: 0.185 | E25: 1 | F25: 0.042396 | G25: 4.363619209
A26: 12289 | B26: Triticale-Winter | C26: 489 | D26: 0.185 | E26: 1 | F26: 0.042396 | G26: 4.363619209
A27: 13571 | B27: Wheat-CanadaPrairieSpring | C27: 3477 | D27: 0.205 | E27: 1 | F27: 0.036744 | G27: 5.579142173
A28: 12290 | B28: Wheat-Durum | C28: 491 | D28: 0.245 | E28: 1 | F28: 0.036744 | G28: 6.66775528
A29: 12290 | B29: Wheat-Durum High Protein | C29: 3903 | D29: 0.25 | E29: 1 | F29: 0.036744 | G29: 6.803831918
A30: 13572 | B30: Wheat-ExtraStrong | C30: 3479 | D30: 0.215 | E30: 1 | F30: 0.036744 | G30: 5.85129545
A31: 12291 | B31: Wheat-HardRedSpring | C31: 493 | D31: 0.215 | E31: 1 | F31: 0.036744 | G31: 5.85129545
A32: 12291 | B32: Wheat-HardRedSpring High Protein | C32: 3853 | D32: 0.235 | E32: 1 | F32: 0.036744 | G32: 6.395602003
A33: 12292 | B33: Wheat-HardRedWinter | C33: 495 | D33: 0.19 | E33: 1 | F33: 0.036744 | G33: 5.170912258
A34: 19253 | B34: Wheat-NorthernHardRed | C34: 23731 | D34: 0.19 | E34: 1 | F34: 0.036744 | G34: 5.170912258
A35: 12294 | B35: Wheat-SoftWhiteSpring | C35: 499 | D35: 0.18 | E35: 1 | F35: 0.036744 | G35: 4.898758981
A36: 12294 | B36: Wheat-SoftWhiteSpring Industrial | C36: 13734 | D36: 0.18 | E36: 1 | F36: 0.036744 | G36: 4.898758981
A37: 19126 | B37: Wheat-SpecialPurpose | C37: 23725 | D37: 0.185 | E37: 1 | F37: 0.036744 | G37: 5.034835619

Sheet Prices Irrigated Crop(data) (hidden)
A1: AG_PROD_UID | B1: DESCRIPTION | C1: AG_PROD_USE_UID | D1: PRICE | E1: VOLUME_MEASURE_UID | F1: CONVERSION_FACTOR | G1: CALCULATED_PRICE
A2: 12267 | B2: Barley | C2: 442 | D2: 0.215 | E2: 1 | F2: 0.044092 | G2: =D2/F2 -> 4.876168012
A3: 12267 | B3: Barley Malting | C3: 7139 | D3: 0.255 | E3: 1 | F3: 0.044092 | G3: =D3/F3 -> 5.783362061 | O3: Modication History
A4: 12413 | B4: Beans,Dry-Black/Others | C4: 810 | D4: 0.7 | E4: 1923 | F4: 2.2046 | G4: 0.3175179171 | H4: lb | O4: 2020-03-10 | P4: Ilyas Ali | Q4: Update Price (SPE_Prices_Irrigated_Crop.SQL ) | R4: Completed
A5: 12414 | B5: Beans,Dry-GreatNorthern | C5: 811 | D5: 0.75 | E5: 1923 | F5: 2.2046 | G5: 0.3401977683 | H5: lb | O5: 2020-03-25 | P5: Martine West | Q5: Manually update items in Red Fill from bushel to lb to match Price List | R5: Completed
A6: 12415 | B6: Beans,Dry-Pink | C6: 812 | D6: 0.8 | E6: 1923 | F6: 2.2046 | G6: 0.3628776195 | H6: lb
A7: 12416 | B7: Beans,Dry-Pinto | C7: 813 | D7: 0.72 | E7: 1923 | F7: 2.2046 | G7: 0.3265898576 | H7: lb
A8: 12417 | B8: Beans,Dry-SmallRed | C8: 814 | D8: 0.81 | E8: 1923 | F8: 2.2046 | G8: 0.3674135898 | H8: lb
A9: 18741 | B9: Beans,Dry-Yellow | C9: 22153 | D9: 0.7 | E9: 1923 | F9: 2.2046 | G9: 0.3175179171 | H9: lb
A10: 12388 | B10: Canola-Argentine | C10: 752 | D10: 0.45 | E10: 1 | F10: 0.044092 | G10: 10.20593305
A11: 12389 | B11: Canola-Polish | C11: 754 | D11: 0.45 | E11: 1 | F11: 0.044092 | G11: 10.20593305
A12: 12388 | B12: Canola-ArgentineSpecialtyOil | C12: 12978 | D12: 0.521 | E12: 1 | F12: 0.044092 | G12: 11.81620249
A13: 13559 | B13: Chickpeas-Desi | C13: 3464 | D13: 0.44 | E13: 1923 | F13: 2.2046 | G13: 0.1995826907 | H13: lb
A14: 13558 | B14: Chickpeas-Kabuli | C14: 3463 | D14: 0.41 | E14: 1923 | F14: 2.2046 | G14: 0.18597478 | H14: lb
A15: 12270 | B15: Corn(Grain) | C15: 448 | D15: 0.22 | E15: 1 | F15: 0.039368 | G15: 5.588295062
A16: 12408 | B16: FabaBean | C16: 788 | D16: 0.225 | E16: 1923 | F16: 2.2046 | G16: 0.1020593305 | H16: lb
A17: 12383 | B17: Flax | C17: 738 | D17: 0.535 | E17: 1 | F17: 0.039367 | G17: 13.59006274
A18: 18898 | B18: Lentils-Green | C18: 23056 | D18: 0.53 | E18: 1923 | F18: 2.2046 | G18: 0.2404064229 | H18: lb
A19: 18897 | B19: Lentils-Red | C19: 23054 | D19: 0.42 | E19: 1923 | F19: 2.2046 | G19: 0.1905107502 | H19: lb
A20: 12272 | B20: MixedGrain | C20: 452 | D20: 0.21 | E20: 1 | F20: 0.050105 | G20: 4.191198483
A21: 12392 | B21: Mustard-Brown | C21: 759 | D21: 0.605 | E21: 1 | F21: 0.044092 | G21: 13.72130999
A22: 12393 | B22: Mustard-Oriental | C22: 761 | D22: 0.605 | E22: 1 | F22: 0.044092 | G22: 13.72130999
A23: 12394 | B23: Mustard-Yellow | C23: 763 | D23: 0.77 | E23: 1 | F23: 0.044092 | G23: 17.46348544
A24: 12273 | B24: Oats | C24: 456 | D24: 0.185 | E24: 1 | F24: 0.053771 | G24: 3.440516263
A25: 12411 | B25: Peas,Field | C25: 808 | D25: 0.255 | E25: 1 | F25: 0.036744 | G25: 6.939908556
A26: 12286 | B26: Rye-Fall | C26: 483 | D26: 0.185 | E26: 1 | F26: 0.039367 | G26: 4.699367491
A27: 12287 | B27: Rye-Spring | C27: 485 | D27: 0.185 | E27: 1 | F27: 0.039367 | G27: 4.699367491
A28: 12386 | B28: Safflower | C28: 746 | D28: 0.66 | E28: 1923 | F28: 2.2046 | G28: 0.2993740361 | H28: lb
A29: 12387 | B29: SunflowerConfectionary | C29: 750 | D29: 0.725 | E29: 1923 | F29: 2.2046 | G29: 0.3288578427 | H29: lb
A30: 12387 | B30: SunflowerOilseed(Sunflower) | C30: 749 | D30: 0.52 | E30: 1923 | F30: 2.2046 | G30: 0.2358704527 | H30: lb
A31: 12288 | B31: Triticale-Spring | C31: 487 | D31: 0.185 | E31: 1 | F31: 0.042396 | G31: 4.363619209
A32: 12289 | B32: Triticale-Winter | C32: 489 | D32: 0.185 | E32: 1 | F32: 0.042396 | G32: 4.363619209
A33: 13571 | B33: Wheat-CanadaPrairieSpring | C33: 3477 | D33: 0.205 | E33: 1 | F33: 0.036744 | G33: 5.579142173
A34: 12290 | B34: Wheat-Durum | C34: 491 | D34: 0.245 | E34: 1 | F34: 0.036744 | G34: 6.66775528
A35: 12290 | B35: Wheat-DurumHighProtein | C35: 3903 | D35: 0.25 | E35: 1 | F35: 0.036744 | G35: 6.803831918
A36: 13572 | B36: Wheat-ExtraStrong | C36: 3479 | D36: 0.215 | E36: 1 | F36: 0.036744 | G36: 5.85129545
A37: 12291 | B37: Wheat-HardRedSpring | C37: 493 | D37: 0.215 | E37: 1 | F37: 0.036744 | G37: 5.85129545
A38: 12291 | B38: Wheat-HardRedSpringHighProtein | C38: 3853 | D38: 0.235 | E38: 1 | F38: 0.036744 | G38: 6.395602003
A39: 12292 | B39: Wheat-HardRedWinter | C39: 495 | D39: 0.19 | E39: 1 | F39: 0.036744 | G39: 5.170912258
A40: 19127 | B40: Wheat-NorthernHardRed | C40: 23731 | D40: 0.19 | E40: 1 | F40: 0.036744 | G40: 5.170912258
A41: 12294 | B41: Wheat-SoftWhiteSpring | C41: 499 | D41: 0.18 | E41: 1 | F41: 0.036744 | G41: 4.898758981
A42: 19126 | B42: Wheat-SpecialPurpose | C42: 23725 | D42: 0.185 | E42: 1 | F42: 0.036744 | G42: 5.034835619

Sheet Irr Crop Normals (data) (hidden)
A1: F1 | B1: F2 | C1: F3 | D1: F4 | E1: F5 | F1: F6 | G1: F7 | H1: F8 | I1: F9 | J1: F10 | K1: F11 | L1: F12 | M1: F13 | N1: F14 | O1: F15 | P1: F16 | Q1: F17 | R1: F18 | S1: F19 | T1: F20 | U1: F21 | V1: F22 | W1: F23 | X1: F24 | Y1: F25 | Z1: F26 | AA1: F27 | AB1: F28 | AC1: F29 | AD1: F30 | AE1: F31 | AF1: F32 | AG1: F33 | AH1: F34 | AI1: F35 | AJ1: F36 | AK1: F37 | AL1: F38 | AM1: F39 | AN1: F40 | AO1: F41 | AP1: F42 | AQ1: F43 | AR1: F44 | AS1: Column1 | AT1: Column2 | AU1: Column3
A6: 60 | C6: Crop1 | D6: Crop2 | E6: Crop3 | F6: Crop4 | G6: Crop5 | H6: Crop6 | I6: Crop7 | J6: Crop8 | K6: Crop9 | L6: Crop10 | M6: Crop11 | N6: Crop12 | O6: Crop13 | P6: Crop14 | Q6: Crop15 | R6: Crop16 | S6: Crop17 | T6: Crop18 | U6: Crop19 | V6: Crop20 | W6: Crop21 | X6: Crop22 | Y6: Crop23 | Z6: Crop24 | AA6: Crop25 | AB6: Crop26 | AC6: Crop27 | AD6: Crop28 | AE6: Crop29 | AF6: Crop30 | AG6: Crop31 | AH6: Crop32 | AI6: Crop33 | AJ6: Crop34 | AK6: Crop35 | AL6: Crop36 | AM6: Crop37 | AN6: Crop38 | AO6: Crop39 | AP6: Crop40 | AQ6: Crop41
A7: 70 | F7: normal lookup table
A8: 80 | C8: Barley | D8: Barley Malting | E8: Beans,Dry-Black/Others | F8: Beans,Dry-GreatNorthern | G8: Beans,Dry-Pink | H8: Beans,Dry-Pinto | I8: Beans,Dry-SmallRed | J8: Beans,Dry-Yellow | K8: Canola-Argentine | L8: Canola-Polish | M8: Canola-Argentine Specialty Oil | N8: Chickpeas-Desi | O8: Chickpeas-Kabuli | P8: Corn(Grain) | Q8: FabaBean | R8: Flax | S8: Lentils-Green | T8: Lentils-Red | U8: MixedGrain | V8: Mustard-Brown | W8: Mustard-Oriental | X8: Mustard-Yellow | Y8: Oats | Z8: Peas,Field | AA8: Rye-Fall | AB8: Rye-Spring | AC8: Safflower | AD8: Sunflower Confectionary | AE8: Sunflower Oilseed(Sunflower) | AF8: Triticale-Spring | AG8: Triticale-Winter | AH8: Wheat-CanadaPrairieSpring | AI8: Wheat-Durum | AJ8: Wheat-Durum High Protein* | AK8: Wheat-ExtraStrong | AL8: Wheat-HardRedSpring | AM8: Wheat-HardRedSpring High Protein* | AN8: Wheat-HardRedWinter | AO8: Wheat-NorthernHardRed | AP8: Wheat-SoftWhiteSpring | AQ8: Wheat-SpecialPurpose
B9: AG_PROD_UID | C9: 12267 | D9: 12267 | E9: 12413 | F9: 12414 | G9: 12415 | H9: 12416 | I9: 12417 | J9: 18741 | K9: 12388 | L9: 12389 | M9: 12388 | N9: 13559 | O9: 13558 | P9: 12270 | Q9: 12408 | R9: 12383 | S9: 18898 | T9: 18897 | U9: 12272 | V9: 12392 | W9: 12393 | X9: 12394 | Y9: 12273 | Z9: 12411 | AA9: 12286 | AB9: 12287 | AC9: 12386 | AD9: 12387 | AE9: 12387 | AF9: 12288 | AG9: 12289 | AH9: 13571 | AI9: 12290 | AJ9: 12290 | AK9: 13572 | AL9: 12291 | AM9: 12292 | AN9: 12292 | AO9: 19127 | AP9: 12294 | AQ9: 19126
B10: AG_PROD_USE_UID | C10: 442 | D10: 7139 | E10: 810 | F10: 811 | G10: 812 | H10: 813 | I10: 814 | J10: 22153 | K10: 752 | L10: 754 | M10: 12978 | N10: 3464 | O10: 3463 | P10: 448 | Q10: 788 | R10: 738 | S10: 23056 | T10: 23054 | U10: 452 | V10: 759 | W10: 761 | X10: 763 | Y10: 456 | Z10: 808 | AA10: 483 | AB10: 485 | AC10: 746 | AD10: 750 | AE10: 749 | AF10: 487 | AG10: 489 | AH10: 3477 | AI10: 491 | AJ10: 3903 | AK10: 3479 | AL10: 493 | AM10: 3853 | AN10: 495 | AO10: 23731 | AP10: 499 | AQ10: 23725
B11: Spring Price | C11: =VLOOKUP(C10, Irr_Price_Lookup,5,FALSE) -> 4.876168012 | D11: 5.783362061 | E11: 0.3175179171 | F11: 0.3401977683 | G11: 0.3628776195 | H11: 0.3265898576 | I11: 0.3674135898 | J11: 0.3175179171 | K11: 10.20593305 | L11: 10.20593305 | M11: 11.81620249 | N11: 0.1995826907 | O11: 0.18597478 | P11: 5.588295062 | Q11: 0.1020593305 | R11: 13.59006274 | S11: 0.2404064229 | T11: 0.1905107502 | U11: 4.191198483 | V11: 13.72130999 | W11: 13.72130999 | X11: 17.46348544 | Y11: 3.440516263 | Z11: 6.939908556 | AA11: 4.699367491 | AB11: 4.699367491 | AC11: 0.2993740361 | AD11: 0.3288578427 | AE11: 0.2358704527 | AF11: 4.363619209 | AG11: 4.363619209 | AH11: 5.579142173 | AI11: 6.66775528 | AJ11: 6.803831918 | AK11: 5.85129545 | AL11: 5.85129545 | AM11: 6.395602003 | AN11: 5.170912258 | AO11: 5.170912258 | AP11: 4.898758981 | AQ11: 5.034835619
A12: RA | B12: 1 | C12: 109.965448 | D12: 109.965448 | K12: 47.663452 | L12: 33.818564 | M12: 47.663452 | N12: 1067.0264 | O12: 1402.1256 | P12: 53.068064 | Q12: 2696.2258 | R12: 31.375499 | S12: 1472.6728 | T12: 1620.381 | U12: 112.83646 | V12: 31.040768 | W12: 30.599848 | X12: 20.414596 | Y12: 83.452592 | Z12: 49.42068 | AA12: 82.749434 | AB12: 76.962485 | AF12: 86.233464 | AG12: 91.744944 | AH12: 69.887088 | AI12: 85.723752 | AJ12: 85.723752 | AK12: 67.535472 | AL12: 63.677352 | AM12: 63.677352 | AN12: 96.563232 | AO12: 63.603864 | AP12: 93.366504 | AQ12: 69.99732 | AX12: Modication History
B13: 2 | C13: 113.492808 | D13: 113.492808 | E13: 2039.255 | F13: 2105.393 | G13: 1957.6848 | H13: 1977.5262 | I13: 2065.7102 | J13: 2427.2646 | K13: 52.998584 | L13: 34.127208 | M13: 52.998584 | P13: 109.876088 | Q13: 2696.2258 | R13: 50.507861 | S13: 1472.6728 | T13: 1620.381 | U13: 137.939065 | V13: 28.703892 | W13: 28.307064 | X13: 19.797308 | Y13: 103.455404 | Z13: 49.42068 | AA13: 95.779911 | AB13: 93.732827 | AC13: 1265.4404 | AD13: 1554.243 | AE13: 1503.5372 | AF13: 105.311664 | AG13: 101.029668 | AH13: 87.671184 | AI13: 87.891648 | AJ13: 87.891648 | AK13: 83.702832 | AL13: 77.456352 | AM13: 77.456352 | AN13: 96.08556 | AO13: 80.763312 | AP13: 101.854368 | AQ13: 87.120024 | AX13: 2020-03-10 | AY13: Ilyas Ali | AZ13: Update Price from excel Irrigated Sheet (Provide by Busines) | BA13: Completed
B14: 3 | C14: 110.406368 | D14: 110.406368 | E14: 2039.255 | F14: 2105.393 | G14: 1957.6848 | H14: 1977.5262 | I14: 2065.7102 | J14: 2427.2646 | K14: 55.159092 | L14: 35.361784 | M14: 55.159092 | P14: 118.733888 | Q14: 2696.2258 | R14: 41.965222 | S14: 1472.6728 | T14: 1620.381 | U14: 122.707145 | V14: 42.063768 | W14: 41.534664 | X14: 26.67566 | Y14: 98.723556 | Z14: 49.42068 | AA14: 89.599292 | AB14: 82.828168 | AC14: 1265.4404 | AD14: 1554.243 | AE14: 1503.5372 | AF14: 123.58434 | AG14: 125.746536 | AH14: 100.421352 | AI14: 99.502752 | AJ14: 99.502752 | AK14: 96.967416 | AL14: 94.579056 | AM14: 94.579056 | AN14: 103.8018 | AO14: 95.90184 | AP14: 101.78088 | AQ14: 100.200888
B15: 4 | C15: 101.058864 | D15: 101.058864 | E15: 2039.255 | F15: 2105.393 | G15: 1957.6848 | H15: 1977.5262 | I15: 2065.7102 | J15: 2427.2646 | K15: 53.483596 | L15: 35.405876 | M15: 53.483596 | P15: 118.733888 | Q15: 2696.2258 | R15: 41.807754 | S15: 1472.6728 | T15: 1620.381 | U15: 100.560735 | V15: 31.128952 | W15: 30.64394 | X15: 20.370504 | Y15: 100.766854 | Z15: 49.42068 | AA15: 77.356155 | AB15: 59.719739 | AC15: 1265.4404 | AD15: 1554.243 | AE15: 1503.5372 | AF15: 96.323712 | AG15: 110.01762 | AH15: 85.870728 | AI15: 87.046536 | AJ15: 87.046536 | AK15: 87.781416 | AL15: 78.962856 | AM15: 78.962856 | AN15: 96.746952 | AO15: 82.710744 | AP15: 88.883736 | AQ15: 85.98096
B16: 5 | C16: 95.106444 | D16: 95.106444 | K16: 48.633476 | L16: 30.688032 | M16: 48.633476 | Q16: 2696.2258 | R16: 29.52525 | S16: 1472.6728 | T16: 1620.381 | U16: 105.02008 | V16: 30.070744 | W16: 29.629824 | X16: 19.797308 | Y16: 86.248684 | Z16: 49.42068 | AA16: 85.347656 | AB16: 78.143495 | AF16: 105.014892 | AG16: 104.50614 | AH16: 81.498192 | AI16: 91.639536 | AJ16: 91.639536 | AK16: 84.584688 | AL16: 77.382864 | AM16: 77.382864 | AN16: 116.698944 | AO16: 79.293552 | AP16: 84.400968 | AQ16: 81.608424
B17: 6
B18: 7
B19: 8 | C19: 95.767824 | D19: 95.767824 | K19: 38.404132 | L19: 26.4552 | M19: 38.404132 | R19: 30.194489 | U19: 104.01798 | Y19: 84.259157 | AH19: 85.723752 | AK19: 84.621432 | AL19: 76.97868 | AM19: 76.97868 | AO19: 80.322384 | AQ19: 85.870728
B20: 9 | C20: 93.25458 | D20: 93.25458 | E20: 2039.255 | F20: 2105.393 | G20: 1957.6848 | H20: 1977.5262 | I20: 2065.7102 | J20: 2427.2646 | K20: 35.05314 | L20: 24.647428 | M20: 35.05314 | Q20: 2696.2258 | R20: 30.942462 | S20: 1472.6728 | T20: 1620.381 | U20: 102.81546 | V20: 31.128952 | W20: 30.599848 | X20: 20.458688 | Y20: 80.226332 | Z20: 49.42068 | AA20: 69.364654 | AB20: 55.743672 | AD20: 1554.243 | AF20: 81.697092 | AG20: 86.827008 | AH20: 68.123376 | AI20: 85.833984 | AJ20: 85.833984 | AK20: 66.102456 | AL20: 60.480624 | AM20: 60.480624 | AN20: 82.600512 | AO20: 63.420144 | AP20: 83.078184 | AQ20: 68.233608
C21: Barley
C22: Barley Malting
C23: Beans,Dry-Black/Others
C24: Beans,Dry-GreatNorthern
C25: Beans,Dry-Pink
C26: Beans,Dry-Pinto
C27: Beans,Dry-SmallRed
C28: Beans,Dry-Yellow
C29: Canola-Argentine
C30: Canola-Polish
C31: Canola-Argentine Specialty Oil
C32: Chickpeas-Desi
C33: Chickpeas-Kabuli
C34: Corn(Grain)
C35: FabaBean
C36: Flax
C37: Lentils-Green
C38: Lentils-Red
C39: MixedGrain
C40: Mustard-Brown
C41: Mustard-Oriental
C42: Mustard-Yellow
C43: Oats
C44: Peas,Field
C45: Rye-Fall
C46: Rye-Spring
C47: Safflower
C48: Sunflower Confectionary
C49: Sunflower Oilseed(Sunflower)
C50: Triticale-Spring
C51: Triticale-Winter
C52: Wheat-CanadaPrairieSpring
C53: Wheat-Durum
C54: Wheat-Durum High Protein*
C55: Wheat-ExtraStrong
C56: Wheat-HardRedSpring
C57: Wheat-HardRedSpring High Protein*
C58: Wheat-HardRedWinter
C59: Wheat-NorthernHardRed
C60: Wheat-SoftWhiteSpring
C61: Wheat-SpecialPurpose
C62: 0
C63: 0
C64: 0

Sheet Irr Silage Normals (data) (hidden)
A1: a | B1: b | C1: c | D1: d | E1: e | F1: F6 | G1: F7
B2: Crop39 | M2: Modication History
D3: normal lookup table | G3: This data come from the Irrigated data from Raymond for Barley. | M3: 2020-03-10 | N3: Ilyas Ali | P3: Completed
B4: BarleyProxy | C4: BarleyProxy(Corn) | I4: =Table_Query_from_Excel_Files10[[#This Row],[b]] -> BarleyProxy | M4: 2020-03-25 | N4: Martine West | O4: Updated the price from 4.08 to 4.88
I5: =C4 -> BarleyProxy(Corn)
A6: Spring Price | B6: 4.88 | C6: 4.88
A7: 1 | B7: 109.965448 | C7: =Table_Query_from_Excel_Files10[[#This Row],[b]] -> 109.965448
A8: 2 | B8: 113.492808 | C8: =Table_Query_from_Excel_Files10[[#This Row],[b]] -> 113.492808
A9: 3 | B9: 110.406368 | C9: =Table_Query_from_Excel_Files10[[#This Row],[b]] -> 110.406368
A10: 4 | B10: 101.058864 | C10: =Table_Query_from_Excel_Files10[[#This Row],[b]] -> 101.058864
A11: 5 | B11: 95.106444 | C11: =Table_Query_from_Excel_Files10[[#This Row],[b]] -> 95.106444
A12: 6
A13: 7
A14: 8 | B14: 95.767824 | C14: =Table_Query_from_Excel_Files10[[#This Row],[b]] -> 95.767824
A15: 9 | B15: 93.25458 | C15: =Table_Query_from_Excel_Files10[[#This Row],[b]] -> 93.25458

Sheet Irr Silage Rates (data) (hidden)
A1: ID | B1: CROP | C1: RA | D1: CL | E1: p rem | F1: prem+
A2: 1BarleyProxy80 | B2: BarleyProxy | C2: 1 | D2: 80 | E2: 1.9 | F2: 4.36 | H2: Modication History
A3: 1BarleyProxy(Corn)80 | B3: BarleyProxy(Corn) | C3: 1 | D3: 80 | E3: 1.9 | F3: 4.36 | H3: 2020-03-10 | I3: Ilyas Ali | J3: Update Price (Dry_SilageGreenfeed_extract.sql) | K3: Completed
A4: 1LOM(Barley)80 | B4: LOM(Barley) | C4: 1 | D4: 80 | E4: 1.9 | F4: 4.36
A5: 1LOM(Corn)80 | B5: LOM(Corn) | C5: 1 | D5: 80 | E5: 1.9 | F5: 4.36
A6: 2BarleyProxy80 | B6: BarleyProxy | C6: 2 | D6: 80 | E6: 1.3 | F6: 3.85
A7: 2BarleyProxy(Corn)80 | B7: BarleyProxy(Corn) | C7: 2 | D7: 80 | E7: 1.3 | F7: 3.85
A8: 2LOM(Barley)80 | B8: LOM(Barley) | C8: 2 | D8: 80 | E8: 1.3 | F8: 3.85
A9: 2LOM(Corn)80 | B9: LOM(Corn) | C9: 2 | D9: 80 | E9: 1.3 | F9: 3.85
A10: 3BarleyProxy80 | B10: BarleyProxy | C10: 3 | D10: 80 | E10: 1.38 | F10: 3.95
A11: 3BarleyProxy(Corn)80 | B11: BarleyProxy(Corn) | C11: 3 | D11: 80 | E11: 1.38 | F11: 3.95
A12: 3LOM(Barley)80 | B12: LOM(Barley) | C12: 3 | D12: 80 | E12: 1.38 | F12: 3.95
A13: 3LOM(Corn)80 | B13: LOM(Corn) | C13: 3 | D13: 80 | E13: 1.38 | F13: 3.95
A14: 4BarleyProxy80 | B14: BarleyProxy | C14: 4 | D14: 80 | E14: 1.24 | F14: 3.79
A15: 4BarleyProxy(Corn)80 | B15: BarleyProxy(Corn) | C15: 4 | D15: 80 | E15: 1.24 | F15: 3.79
A16: 4LOM(Barley)80 | B16: LOM(Barley) | C16: 4 | D16: 80 | E16: 1.24 | F16: 3.79
A17: 4LOM(Corn)80 | B17: LOM(Corn) | C17: 4 | D17: 80 | E17: 1.24 | F17: 3.79
A18: 5BarleyProxy80 | B18: BarleyProxy | C18: 5 | D18: 80 | E18: 1.41 | F18: 3.95
A19: 5BarleyProxy(Corn)80 | B19: BarleyProxy(Corn) | C19: 5 | D19: 80 | E19: 1.41 | F19: 3.95
A20: 5LOM(Barley)80 | B20: LOM(Barley) | C20: 5 | D20: 80 | E20: 1.41 | F20: 3.95
A21: 5LOM(Corn)80 | B21: LOM(Corn) | C21: 5 | D21: 80 | E21: 1.41 | F21: 3.95
A22: 8BarleyProxy80 | B22: BarleyProxy | C22: 8 | D22: 80 | E22: 1.8 | F22: 4.33
A23: 8BarleyProxy(Corn)80 | B23: BarleyProxy(Corn) | C23: 8 | D23: 80 | E23: 1.8 | F23: 4.33
A24: 8LOM(Barley)80 | B24: LOM(Barley) | C24: 8 | D24: 80 | E24: 1.8 | F24: 4.33
A25: 8LOM(Corn)80 | B25: LOM(Corn) | C25: 8 | D25: 80 | E25: 1.8 | F25: 4.33
A26: 9BarleyProxy80 | B26: BarleyProxy | C26: 9 | D26: 80 | E26: 3.7 | F26: 6.19
A27: 9BarleyProxy(Corn)80 | B27: BarleyProxy(Corn) | C27: 9 | D27: 80 | E27: 3.7 | F27: 6.19
A28: 9LOM(Barley)80 | B28: LOM(Barley) | C28: 9 | D28: 80 | E28: 3.7 | F28: 6.19
A29: 9LOM(Corn)80 | B29: LOM(Corn) | C29: 9 | D29: 80 | E29: 3.7 | F29: 6.19

Sheet Properties (Data) (hidden)
A1: Common Properties | D1: Local Properties
A2: Property | B2: Value | D2: Property | E2: Value | F2: F3 | G2: F4
A3: Hail Factor | B3: 37 | D3: CropYear | E3: 2020 | H3: CropYear | I3: 2020
A4: ReplyEmailAddress | B4: Info@afsc.ca | D4: Corn Grain Producer Premium | E4: 2.47 | F4: 19003 Lethbridge CHU Rates (data) | G4: SPE
A5: LogoFile | B5: CAP AFSC AB CAN bw.jpg | D5: Corn Silage Producer Premium | E5: 2.55 | F5: 29003 Lethbridge CHU Rates (data) | G5: SPE | H5: Current Path | I5: \\hs-committees.afsc.ca@SSL\DavWWWRoot\inlas\Documents\
A6: DataFilePath1 | B6: \\hs-committees.afsc.ca@SSL\DavWWWRoot\inlas\Documents\ | D6: Corn Grain farm_75 Premium | E6: 4.7 | F6: 19003 Lethbridge CHU Rates (data)
A7: DataFilePath2 | B7: \\homestead.afsc.ca@SSL\DavWWWRoot\wrkres\Documents | D7: Corn Silage farm_75 Premium | E7: 3.51 | F7: 29003 Lethbridge CHU Rates (data)
A8: CommonDataFile | B8: ManualCalcCommonData | D8: VPB Shortfall on corn silage | E8: 50 | F8: As per Carol Law April 10, 2018
A9: ModulePath | B9: \\hs-committees.afsc.ca@SSL\DavWWWRoot\inlas\Documents\
A10: ModuleName | B10: CalculatorMacros.code
